{"text_format":"1","workbook":"xlsx","n_sheets":2,"sheets":["ГРАФИК К.П  ДЕКАБРЬ ","ТАБЕЛЬ К.П. ДЕКАБРЬ "],"not_rendered":{"charts":0,"images":0,"macros":1,"external_links":5,"defined_names":47,"comments":0,"pivot_tables":0},"unopened":[],"bounds":{"document_bytes":16777216,"sheet_cells":100000,"rows_first":2000,"rows_last":500,"rows_between":2000,"halvings":0,"cell_chars":16384,"cell_head_chars":4096},"cells_cut":0,"cells_raw":0,"read":"whole","date_system":"1900"}

{"sheet":"ГРАФИК К.П  ДЕКАБРЬ ","index":0,"n_rows":113,"n_cols":250,"rows_kept":113,"cut":false,"hidden":false,"merged":[[112,38,112,67],[112,74,112,104],[110,16,110,18],[110,38,110,67],[110,74,110,104],[111,16,111,18],[111,38,111,67],[111,74,111,104],[108,16,108,18],[108,38,108,67],[108,74,108,104],[109,16,109,18],[109,38,109,67],[109,74,109,104],[106,16,106,18],[106,38,106,67],[106,74,106,104],[107,16,107,18],[107,38,107,67],[107,74,107,104],[104,16,104,18],[104,38,104,67],[104,74,104,104],[105,16,105,18],[105,38,105,67],[105,74,105,104],[102,16,102,18],[102,38,102,67],[102,74,102,104],[103,16,103,18],[103,38,103,67],[103,74,103,104],[100,196,100,201],[100,202,100,207],[100,208,100,213],[101,16,101,18],[101,38,101,67],[101,74,101,104],[100,160,100,165],[100,166,100,171],[100,172,100,177],[100,178,100,183],[100,184,100,189],[100,190,100,195],[100,124,100,129],[100,130,100,135],[100,136,100,141],[100,142,100,147],[100,148,100,153],[100,154,100,159],[100,88,100,93],[100,94,100,99],[100,100,100,105],[100,106,100,111],[100,112,100,117],[100,118,100,123],[100,52,100,57],[100,58,100,63],[100,64,100,69],[100,70,100,75],[100,76,100,81],[100,82,100,87],[97,190,97,195],[97,196,97,201],[97,202,97,207],[97,208,97,213],[99,17,99,21],[100,16,100,18],[100,28,100,33],[100,34,100,39],[100,40,100,45],[100,46,100,51],[97,154,97,159],[97,160,97,165],[97,166,97,171],[97,172,97,177],[97,178,97,183],[97,184,97,189],[97,118,97,123],[97,124,97,129],[97,130,97,135],[97,136,97,141],[97,142,97,147],[97,148,97,153],[97,82,97,87],[97,88,97,93],[97,94,97,99],[97,100,97,105],[97,106,97,111],[97,112,97,117],[96,208,96,213],[97,28,97,33],[97,34,97,39],[97,40,97,45],[97,46,97,51],[97,52,97,57],[97,58,97,63],[97,64,97,69],[97,70,97,75],[97,76,97,81],[96,172,96,177],[96,178,96,183],[96,184,96,189],[96,190,96,195],[96,196,96,201],[96,202,96,207],[96,136,96,141],[96,142,96,147],[96,148,96,153],[96,154,96,159],[96,160,96,165],[96,166,96,171],[96,100,96,105],[96,106,96,111],[96,112,96,117],[96,118,96,123],[96,124,96,129],[96,130,96,135],[96,64,96,69],[96,70,96,75],[96,76,96,81],[96,82,96,87],[96,88,96,93],[96,94,96,99],[95,202,95,207],[95,208,95,213],[96,16,96,21],[96,24,96,27],[96,28,96,33],[96,34,96,39],[96,40,96,45],[96,46,96,51],[96,52,96,57],[96,58,96,63],[95,166,95,171],[95,172,95,177],[95,178,95,183],[95,184,95,189],[95,190,95,195],[95,196,95,201],[95,130,95,135],[95,136,95,141],[95,142,95,147],[95,148,95,153],[95,154,95,159],[95,160,95,165],[95,94,95,99],[95,100,95,105],[95,106,95,111],[95,112,95,117],[95,118,95,123],[95,124,95,129],[95,58,95,63],[95,64,95,69],[95,70,95,75],[95,76,95,81],[95,82,95,87],[95,88,95,93],[94,208,94,213],[94,214,95,220],[94,221,95,228],[94,232,95,232],[95,24,95,27],[95,28,95,33],[95,34,95,39],[95,40,95,45],[95,46,95,51],[95,52,95,57],[94,172,94,177],[94,178,94,183],[94,184,94,189],[94,190,94,195],[94,196,94,201],[94,202,94,207],[94,136,94,141],[94,142,94,147],[94,148,94,153],[94,154,94,159],[94,160,94,165],[94,166,94,171],[94,100,94,105],[94,106,94,111],[94,112,94,117],[94,118,94,123],[94,124,94,129],[94,130,94,135],[94,64,94,69],[94,70,94,75],[94,76,94,81],[94,82,94,87],[94,88,94,93],[94,94,94,99],[94,28,94,33],[94,34,94,39],[94,40,94,45],[94,46,94,51],[94,52,94,57],[94,58,94,63],[93,178,93,183],[93,184,93,189],[93,190,93,195],[93,196,93,201],[93,202,93,207],[93,208,93,213],[93,142,93,147],[93,148,93,153],[93,154,93,159],[93,160,93,165],[93,166,93,171],[93,172,93,177],[93,106,93,111],[93,112,93,117],[93,118,93,123],[93,124,93,129],[93,130,93,135],[93,136,93,141],[93,70,93,75],[93,76,93,81],[93,82,93,87],[93,88,93,93],[93,94,93,99],[93,100,93,105],[92,202,92,207],[92,208,92,213],[93,24,94,27],[93,28,93,33],[93,34,93,39],[93,40,93,45],[93,46,93,51],[93,52,93,57],[93,58,93,63],[93,64,93,69],[92,166,92,171],[92,172,92,177],[92,178,92,183],[92,184,92,189],[92,190,92,195],[92,196,92,201],[92,130,92,135],[92,136,92,141],[92,142,92,147],[92,148,92,153],[92,154,92,159],[92,160,92,165],[92,94,92,99],[92,100,92,105],[92,106,92,111],[92,112,92,117],[92,118,92,123],[92,124,92,129],[92,58,92,63],[92,64,92,69],[92,70,92,75],[92,76,92,81],[92,82,92,87],[92,88,92,93],[91,184,91,189],[91,190,91,195],[91,196,91,201],[91,202,91,207],[91,208,91,213],[92,28,92,33],[92,34,92,39],[92,40,92,45],[92,46,92,51],[92,52,92,57],[91,148,91,153],[91,154,91,159],[91,160,91,165],[91,166,91,171],[91,172,91,177],[91,178,91,183],[91,112,91,117],[91,118,91,123],[91,124,91,129],[91,130,91,135],[91,136,91,141],[91,142,91,147],[91,76,91,81],[91,82,91,87],[91,88,91,93],[91,94,91,99],[91,100,91,105],[91,106,91,111],[90,221,91,228],[91,24,91,27],[91,28,91,33],[91,34,91,39],[91,40,91,45],[91,46,91,51],[91,52,91,57],[91,58,91,63],[91,64,91,69],[91,70,91,75],[90,178,90,183],[90,184,90,189],[90,190,90,195],[90,196,90,201],[90,202,90,207],[90,208,90,213],[90,142,90,147],[90,148,90,153],[90,154,90,159],[90,160,90,165],[90,166,90,171],[90,172,90,177],[90,106,90,111],[90,112,90,117],[90,118,90,123],[90,124,90,129],[90,130,90,135],[90,136,90,141],[90,70,90,75],[90,76,90,81],[90,82,90,87],[90,88,90,93],[90,94,90,99],[90,100,90,105],[89,202,89,207],[89,208,89,213],[89,214,90,220],[90,28,90,33],[90,34,90,39],[90,40,90,45],[90,46,90,51],[90,52,90,57],[90,58,90,63],[90,64,90,69],[89,166,89,171],[89,172,89,177],[89,178,89,183],[89,184,89,189],[89,190,89,195],[89,196,89,201],[89,130,89,135],[89,136,89,141],[89,142,89,147],[89,148,89,153],[89,154,89,159],[89,160,89,165],[89,94,89,99],[89,100,89,105],[89,106,89,111],[89,112,89,117],[89,118,89,123],[89,124,89,129],[89,58,89,63],[89,64,89,69],[89,70,89,75],[89,76,89,81],[89,82,89,87],[89,88,89,93],[87,208,88,213],[88,221,88,228],[89,1,95,4],[89,5,95,23],[89,24,90,27],[89,28,89,33],[89,34,89,39],[89,40,89,45],[89,46,89,51],[89,52,89,57],[87,172,88,177],[87,178,88,183],[87,184,88,189],[87,190,88,195],[87,196,88,201],[87,202,88,207],[87,136,88,141],[87,142,88,147],[87,148,88,153],[87,154,88,159],[87,160,88,165],[87,166,88,171],[87,100,88,105],[87,106,88,111],[87,112,88,117],[87,118,88,123],[87,124,88,129],[87,130,88,135],[87,64,88,69],[87,70,88,75],[87,76,88,81],[87,82,88,87],[87,88,88,93],[87,94,88,99],[86,202,86,207],[86,208,86,213],[86,214,87,220],[87,24,88,27],[87,28,88,33],[87,34,88,39],[87,40,88,45],[87,46,88,51],[87,52,88,57],[87,58,88,63],[86,166,86,171],[86,172,86,177],[86,178,86,183],[86,184,86,189],[86,190,86,195],[86,196,86,201],[86,130,86,135],[86,136,86,141],[86,142,86,147],[86,148,86,153],[86,154,86,159],[86,160,86,165],[86,94,86,99],[86,100,86,105],[86,106,86,111],[86,112,86,117],[86,118,86,123],[86,124,86,129],[86,58,86,63],[86,64,86,69],[86,70,86,75],[86,76,86,81],[86,82,86,87],[86,88,86,93],[86,24,86,27],[86,28,86,33],[86,34,86,39],[86,40,86,45],[86,46,86,51],[86,52,86,57],[85,184,85,189],[85,190,85,195],[85,196,85,201],[85,202,85,207],[85,208,85,213],[85,214,85,220],[85,148,85,153],[85,154,85,159],[85,160,85,165],[85,166,85,171],[85,172,85,177],[85,178,85,183],[85,112,85,117],[85,118,85,123],[85,124,85,129],[85,130,85,135],[85,136,85,141],[85,142,85,147],[85,76,85,81],[85,82,85,87],[85,88,85,93],[85,94,85,99],[85,100,85,105],[85,106,85,111],[84,208,84,213],[85,24,85,27],[85,28,85,33],[85,34,85,39],[85,40,85,45],[85,46,85,51],[85,52,85,57],[85,58,85,63],[85,64,85,69],[85,70,85,75],[84,172,84,177],[84,178,84,183],[84,184,84,189],[84,190,84,195],[84,196,84,201],[84,202,84,207],[84,136,84,141],[84,142,84,147],[84,148,84,153],[84,154,84,159],[84,160,84,165],[84,166,84,171],[84,100,84,105],[84,106,84,111],[84,112,84,117],[84,118,84,123],[84,124,84,129],[84,130,84,135],[84,64,84,69],[84,70,84,75],[84,76,84,81],[84,82,84,87],[84,88,84,93],[84,94,84,99],[83,196,83,201],[83,202,83,207],[83,208,83,213],[83,214,84,220],[84,28,84,33],[84,34,84,39],[84,40,84,45],[84,46,84,51],[84,52,84,57],[84,58,84,63],[83,160,83,165],[83,166,83,171],[83,172,83,177],[83,178,83,183],[83,184,83,189],[83,190,83,195],[83,124,83,129],[83,130,83,135],[83,136,83,141],[83,142,83,147],[83,148,83,153],[83,154,83,159],[83,88,83,93],[83,94,83,99],[83,100,83,105],[83,106,83,111],[83,112,83,117],[83,118,83,123],[83,52,83,57],[83,58,83,63],[83,64,83,69],[83,70,83,75],[83,76,83,81],[83,82,83,87],[81,202,82,207],[81,208,82,213],[82,214,82,220],[83,1,88,4],[83,5,88,22],[83,24,84,27],[83,28,83,33],[83,34,83,39],[83,40,83,45],[83,46,83,51],[81,166,82,171],[81,172,82,177],[81,178,82,183],[81,184,82,189],[81,190,82,195],[81,196,82,201],[81,130,82,135],[81,136,82,141],[81,142,82,147],[81,148,82,153],[81,154,82,159],[81,160,82,165],[81,94,82,99],[81,100,82,105],[81,106,82,111],[81,112,82,117],[81,118,82,123],[81,124,82,129],[81,58,82,63],[81,64,82,69],[81,70,82,75],[81,76,82,81],[81,82,82,87],[81,88,82,93],[80,202,80,207],[80,208,80,213],[80,214,81,220],[80,232,81,232],[81,24,82,27],[81,28,82,33],[81,34,82,39],[81,40,82,45],[81,46,82,51],[81,52,82,57],[80,166,80,171],[80,172,80,177],[80,178,80,183],[80,184,80,189],[80,190,80,195],[80,196,80,201],[80,130,80,135],[80,136,80,141],[80,142,80,147],[80,148,80,153],[80,154,80,159],[80,160,80,165],[80,94,80,99],[80,100,80,105],[80,106,80,111],[80,112,80,117],[80,118,80,123],[80,124,80,129],[80,58,80,63],[80,64,80,69],[80,70,80,75],[80,76,80,81],[80,82,80,87],[80,88,80,93],[80,24,80,27],[80,28,80,33],[80,34,80,39],[80,40,80,45],[80,46,80,51],[80,52,80,57],[79,184,79,189],[79,190,79,195],[79,196,79,201],[79,202,79,207],[79,208,79,213],[79,214,79,220],[79,148,79,153],[79,154,79,159],[79,160,79,165],[79,166,79,171],[79,172,79,177],[79,178,79,183],[79,112,79,117],[79,118,79,123],[79,124,79,129],[79,130,79,135],[79,136,79,141],[79,142,79,147],[79,76,79,81],[79,82,79,87],[79,88,79,93],[79,94,79,99],[79,100,79,105],[79,106,79,111],[78,208,78,213],[79,24,79,27],[79,28,79,33],[79,34,79,39],[79,40,79,45],[79,46,79,51],[79,52,79,57],[79,58,79,63],[79,64,79,69],[79,70,79,75],[78,172,78,177],[78,178,78,183],[78,184,78,189],[78,190,78,195],[78,196,78,201],[78,202,78,207],[78,136,78,141],[78,142,78,147],[78,148,78,153],[78,154,78,159],[78,160,78,165],[78,166,78,171],[78,100,78,105],[78,106,78,111],[78,112,78,117],[78,118,78,123],[78,124,78,129],[78,130,78,135],[78,64,78,69],[78,70,78,75],[78,76,78,81],[78,82,78,87],[78,88,78,93],[78,94,78,99],[77,202,77,207],[77,208,77,213],[77,214,78,220],[78,24,78,27],[78,28,78,33],[78,34,78,39],[78,40,78,45],[78,46,78,51],[78,52,78,57],[78,58,78,63],[77,166,77,171],[77,172,77,177],[77,178,77,183],[77,184,77,189],[77,190,77,195],[77,196,77,201],[77,130,77,135],[77,136,77,141],[77,142,77,147],[77,148,77,153],[77,154,77,159],[77,160,77,165],[77,94,77,99],[77,100,77,105],[77,106,77,111],[77,112,77,117],[77,118,77,123],[77,124,77,129],[77,58,77,63],[77,64,77,69],[77,70,77,75],[77,76,77,81],[77,82,77,87],[77,88,77,93],[76,196,76,201],[76,202,76,207],[76,208,76,213],[76,214,76,220],[76,232,77,232],[77,28,77,33],[77,34,77,39],[77,40,77,45],[77,46,77,51],[77,52,77,57],[76,160,76,165],[76,166,76,171],[76,172,76,177],[76,178,76,183],[76,184,76,189],[76,190,76,195],[76,124,76,129],[76,130,76,135],[76,136,76,141],[76,142,76,147],[76,148,76,153],[76,154,76,159],[76,88,76,93],[76,94,76,99],[76,100,76,105],[76,106,76,111],[76,112,76,117],[76,118,76,123],[76,52,76,57],[76,58,76,63],[76,64,76,69],[76,70,76,75],[76,76,76,81],[76,82,76,87],[74,202,75,207],[74,208,75,213],[74,214,75,220],[76,1,82,4],[76,5,82,22],[76,24,77,27],[76,28,76,33],[76,34,76,39],[76,40,76,45],[76,46,76,51],[74,166,75,171],[74,172,75,177],[74,178,75,183],[74,184,75,189],[74,190,75,195],[74,196,75,201],[74,130,75,135],[74,136,75,141],[74,142,75,147],[74,148,75,153],[74,154,75,159],[74,160,75,165],[74,94,75,99],[74,100,75,105],[74,106,75,111],[74,112,75,117],[74,118,75,123],[74,124,75,129],[74,58,75,63],[74,64,75,69],[74,70,75,75],[74,76,75,81],[74,82,75,87],[74,88,75,93],[74,24,75,27],[74,28,75,33],[74,34,75,39],[74,40,75,45],[74,46,75,51],[74,52,75,57],[73,184,73,189],[73,190,73,195],[73,196,73,201],[73,202,73,207],[73,208,73,213],[73,214,73,220],[73,148,73,153],[73,154,73,159],[73,160,73,165],[73,166,73,171],[73,172,73,177],[73,178,73,183],[73,112,73,117],[73,118,73,123],[73,124,73,129],[73,130,73,135],[73,136,73,141],[73,142,73,147],[71,166,71,171],[73,76,73,81],[73,82,73,87],[73,88,73,93],[73,94,73,99],[73,100,73,105],[73,106,73,111],[72,208,72,213],[73,24,73,27],[73,28,73,33],[73,34,73,39],[73,40,73,45],[73,46,73,51],[73,52,73,57],[73,58,73,63],[73,64,73,69],[73,70,73,75],[72,172,72,177],[72,178,72,183],[72,184,72,189],[72,190,72,195],[72,196,72,201],[72,202,72,207],[72,136,72,141],[72,142,72,147],[72,148,72,153],[72,154,72,159],[72,160,72,165],[72,166,72,171],[72,100,72,105],[72,106,72,111],[72,112,72,117],[71,70,71,75],[71,76,71,81],[72,124,72,129],[72,130,72,135],[72,64,72,69],[72,70,72,75],[72,76,72,81],[72,82,72,87],[72,88,72,93],[72,94,72,99],[72,28,72,33],[72,34,72,39],[72,40,72,45],[72,46,72,51],[72,52,72,57],[72,58,72,63],[71,154,71,159],[72,118,72,123],[70,190,70,195],[70,196,70,201],[70,202,70,207],[70,208,70,213],[70,214,72,220],[70,232,72,232],[71,190,71,195],[71,196,71,201],[71,202,71,207],[71,208,71,213],[70,154,70,159],[70,160,70,165],[70,166,70,171],[70,172,70,177],[70,178,70,183],[70,184,70,189],[70,118,70,123],[70,124,70,129],[70,130,70,135],[70,136,70,141],[70,142,70,147],[70,148,70,153],[71,172,71,177],[71,178,71,183],[71,184,71,189],[71,118,71,123],[71,124,71,129],[71,130,71,135],[71,136,71,141],[71,142,71,147],[71,148,71,153],[71,160,71,165],[70,82,70,87],[70,88,70,93],[70,94,70,99],[70,100,70,105],[70,106,70,111],[70,112,70,117],[70,46,70,51],[70,52,70,57],[70,58,70,63],[70,64,70,69],[70,70,70,75],[70,76,70,81],[70,1,75,4],[70,5,75,22],[70,24,71,27],[70,28,70,33],[70,34,70,39],[70,40,70,45],[71,28,71,33],[71,34,71,39],[71,40,71,45],[72,24,72,27],[71,82,71,87],[71,88,71,93],[71,94,71,99],[71,100,71,105],[71,106,71,111],[71,112,71,117],[71,46,71,51],[71,52,71,57],[71,58,71,63],[71,64,71,69],[69,58,69,62],[69,64,69,69],[69,70,69,75],[69,76,69,81],[69,82,69,87],[69,88,69,93],[69,24,69,27],[69,28,69,33],[69,34,69,39],[69,40,69,45],[69,46,69,51],[69,52,69,57],[68,184,68,189],[68,190,68,195],[68,196,68,201],[68,202,68,207],[68,208,68,213],[69,166,69,171],[69,172,69,177],[69,178,69,183],[69,184,69,189],[69,190,69,195],[69,196,69,201],[69,130,69,135],[69,136,69,141],[69,142,69,147],[69,148,69,153],[69,154,69,159],[69,160,69,165],[69,94,69,99],[69,100,69,105],[69,106,69,111],[68,214,69,218],[69,202,69,207],[69,208,69,213],[68,148,68,153],[68,154,68,159],[68,160,68,165],[68,166,68,171],[68,172,68,177],[68,178,68,183],[68,112,68,117],[68,118,68,123],[68,124,68,129],[68,130,68,135],[68,136,68,141],[68,142,68,147],[68,76,68,81],[68,82,68,87],[68,88,68,93],[68,94,68,99],[68,100,68,105],[68,106,68,111],[69,112,69,117],[69,118,69,123],[69,124,69,129],[67,214,67,218],[68,24,68,27],[68,28,68,33],[68,34,68,39],[68,40,68,45],[68,46,68,51],[68,52,68,57],[68,58,68,62],[68,64,68,69],[68,70,68,75],[67,178,67,183],[67,184,67,189],[67,190,67,195],[67,196,67,201],[67,202,67,207],[67,208,67,213],[67,142,67,147],[67,148,67,153],[67,154,67,159],[67,160,67,165],[67,166,67,171],[67,172,67,177],[67,106,67,111],[67,112,67,117],[67,118,67,123],[67,124,67,129],[67,130,67,135],[67,136,67,141],[67,70,67,75],[67,76,67,81],[67,82,67,87],[67,88,67,93],[67,94,67,99],[67,100,67,105],[66,208,66,213],[66,214,66,220],[67,24,67,27],[67,28,67,33],[67,34,67,39],[67,40,67,45],[67,46,67,51],[67,52,67,57],[67,58,67,63],[67,64,67,69],[66,172,66,177],[66,178,66,183],[66,184,66,189],[66,190,66,195],[66,196,66,201],[66,202,66,207],[66,136,66,141],[66,142,66,147],[66,148,66,153],[66,154,66,159]],"merged_total":2590,"flags":["merged_cut"]}
[null,null,null,null,null,null,null,null,null,null,null,null,null,null,null,null,null,null,null,null,null,null,null,null,null,null,null,null,null,null,null,null,null,null,null,null,null,null,null,null,null,null,null,null,null,null,null,null,null,null,null,null,null,null,null,null,null,null,null,null,null,null,null,null,null,null,null,null,null,null,null,null,null,null,null,null,null,null,null,null,null,null,null,null,null,null,null,null,null,null,null,null,null,null,null,null,null,null,null,null,null,null,null,null,null,null,null,null,null,null,null,null,null,null,null,null,null,null,null,null,null,null,null,null,null,null,null,null,null,null,null,null,null,null,null,null,null,null,null,null,null,null,null,null,null,null,null,null,null,null,null,null,null,null,null,null,null,null,null,null,null,null,null,null,null,null,null,null,null,null,null,null,null,null,null,null,null,null,null,null,null,null,null,null,null,null,null,null,null,null,null,null,null,null,null,null,null,null,null,null,null,null,null,null,null,null,null,null,null,null,null,null,null,null,null,null,null,null,null,null,null,null,null,null,null,null,null,null,null,null,null,null,null,null,null,null,null,null,null,null,null,"СЕГОДНЯ"]
[null,null,null,null,null,null,null,null,null,null,null,null,null,null,null,null,null,null,null,null,null,null,null,null,null,null,null,null,null,null,null,null,null,null,null,null,null,null,null,null,null,null,null,null,null,null,null,null,null,null,null,null,null,null,null,null,null,null,null,null,null,null,null,null,null,null,null,null,null,null,null,null,null,null,null,null,null,null,null,null,null,null,null,null,null,null,null,null,null,null,null,null,null,null,null,null,null,null,null,null,null,null,null,null,null,null,null,null,null,null,null,null,null,null,null,null,null,null,null,null,null,null,null,null,null,null,null,null,null,null,null,null,null,null,null,null,null,null,null,null,null,null,null,null,null,null,null,null,null,null,null,null,null,null,null,null,null,null,null,null,null,null,null,null,null,null,null,null,null,null,null,null,null,null,null,null,null,null,null,null,null,null,null,null,null,null,null,null,null,null,null,null,null,null,null,null,null,null,null,null,null,null,null,null,null,null,null,null,null,null,null,null,null,null,null,null,null,null,null,null,null,null,null,null,null,null,null,null,null,null,null,null,null,null,null,null,null,null,null,null,null,{"$f":"TODAY()","v":"2020-05-28"}]
[null,null,null,null,null,null,null,null,null,null,null,null,null,null,null,null,null,null,null,null,null,null,null,null,null,null,null,null,null,null,null,null,null,null,null,null,null,null,null,null,null,null,null,null,null,null,null,null,null,null,null,null,null,null,null,null,null,null,null,null,null,null,null,null,null,null,null,null,null,null,null,null,null,null,null,null,null,null,null,null,null,null,null,null,null,null,null,null,null,null,null,null,null,null,null,null,null,null,null,null,null,null,null,null,null,null,null,null,null,null,null,null,null,null,null,null,null,null,null,null,null,null,null,null,null,null,null,null,null,null,null,null,null,null,null,null,null,null,null,null,null,null,null,null,null,null,null,null,null,null,null,null,null,null,null,null,null,null,null,null,null,null,null,null,null,null,null,null,null,null,null,null,null,null,null,null,null,null,null,null,null,null,null,null,null,null,null,null,null,null,null,null,null,null,null,null,null,null,null,null,null,null,null,null,null,null,null,null,null,null,null,null,null,null,null,null,null,null,null,null,null,null,null,null,null,null,null,null,null,null,null,null,null,null,null,null,null,null,null,null,null,{"$f":"TEXT(HZ2,\"дддд\")","v":"суббота"}]
[null,null,null,null,null,null,null,null,null,null,null,null,null,null,null,null,null,null,null,null,null,null,null,null,null,null,null,null,null,null,null,null,null,null,null,null,null,null,null,null,null,null,null,null,null,null,null,null,null,null,null,null,null,null,null,null,null,null,null,null,null,null,null,null,null,null,null,null,null,null,null,null,null,null,null,null,null,null,null,null,null,null,null,null,null,null,null,null,null,null,null,null,null,null,null,null,null,null,null,null,null,null,null,null,null,null,null,null,null,null,null,null,null,null,null,null,null,null,null,null,null,null,null,null,null,null,null,null,null,null,null,null,null,null,null,null,null,null,null,null,null,null,null,null,null,null,null,null,null,null,null,null,null,null,null,null,null,null,null,null,null,null,null,null,null,null,null,null,null,null,null,null,null,null,null,null,null,null,null,null,null,null,null,null,null,null,null,null,null,null,null,null,null,null,null,null,null,null,null,null,null,null,null,null,null,null,null,null,null,null,null,null,null,null,null,null,null,null,null,null,null,null,null,null,null,null,null,null,null,null,null,null,null,null,null,null,null,null,null,null,null,{"$f":"WEEKNUM(IH2,2)&\"-ая неделя\"","v":"22-ая неделя"}]
[null,null,null,null,null,null,null,null,{"$f":"IF(OR(#REF!<D3,AND(#REF!<D2,#REF!=D3)),$CN$19,IF(OR(#REF!>D3,AND(#REF!>D2,#REF!=D3)),0,DAY(A2)))","v":{"$error":"#REF!"}},null,null,null,null,null,null,null,null,null,null,null,null,null,null,null,null,null,null,null,null,null,null,null,null,null,null,null,null,null,null,null,null,null,null,null,null,null,null,null,null,null,null,null,null,null,null,null,null,null,null,null,null,null,null,null,null,null,null,null,null,null,null,null,null,null,null,null,null,null,null,null,null,null,null,null,null,null,null,null,null,null,null,null,null,null,null,null,null,null,null,null,null,null,null,null,null,null,null,null,null,null,null,null,null,null,null,null,null,null,null,null,null,null,null,null,null,null,null,null,null,null,null,null,null,null,null,null,null,null,null,null,null,null,null,null,null,null,null,null,null,null,null,null,null,null,null,null,null,null,null,null,null,null,null,null,null,null,null,null,null,null,null,null,null,null,null,null,null,null,null,null,null,null,null,null,null,null,null,null,null,null,null,null,null,null,null,null,null,null,null,null,null,null,null,null,null,null,null,null,null,null,null,null,null,null,null,null,null,null,null,null,null,null,null,null,null,null,null,null,null,null,null,null,null,null,null,null,null,null,null,null,null,{"$f":"IF(OR(#REF!<IC3,AND(#REF!<IC2,#REF!=IC3)),$CN$19,IF(OR(#REF!>IC3,AND(#REF!>IC2,#REF!=IC3)),0,DAY(HZ2)))","v":{"$error":"#REF!"}}]
[null,null,null,null,null,null,null,null,null,null,null,null,null,null,null,null,null,null,null,null,null,null,null,null,null,null,null,null,null,null,null,null,null,null,null,null,null,null,null,null,null,null,null,null,null,null,null,null,null,null,null,null,null,null,null,null,null,null,null,null,null,null,null,null,null,null,null,null,null,null,null,null,null,null,null,null,null,null,null,null,null,null,null,null,null,null,null,null,null,null,null,null,null,null,null,null,null,null,null,null,null,null,null,null,null,null,null,null,null,null,null,null,null,null,null,null,null,null,null,null,null,null,null,null,null,null,null,null,null,null,null,null,null,null,null,null,null,null,null,null,null,null,null,null,null,null,null,null,null,null,null,null,null,null,null,null,null,null,null,null,null,null,null,null,null,null,null,null,null,null,null,null,null,null,null,null,null,null,null,null,null,null,null,null,null,null,null,null,null,null,null,null,null,null,null,null,null,null,null,null,null,null,null,null,null,null,null,null,null,null,null,null,null,null,null,null,null,null,null,null,null,null,null,null,null,null,null,null,null,null,null,null,null,null,null,null,null,null,null,null,"время"]
[null,null,null,null,null,null,null,null,null,null,null,null,null,null,null,null,null,null,null,null,null,null,null,null,null,null,null,null,null,null,null,null,null,null,null,null,null,null,null,null,null,null,null,null,null,null,null,null,null,null,null,null,null,null,null,null,null,null,null,null,null,null,null,null,null,null,null,null,null,null,null,null,null,null,null,null,null,null,null,null,null,null,null,null,null,null,null,null,null,null,null,null,null,null,null,null,null,null,null,null,null,null,null,null,null,null,null,null,null,null,null,null,null,null,null,null,null,null,null,null,null,null,null,null,null,null,null,null,null,null,null,null,null,null,null,null,null,null,null,null,null,null,null,null,null,null,null,null,null,null,null,null,null,null,null,null,null,null,null,null,null,null,null,null,null,null,null,null,null,null,null,null,null,null,null,null,null,null,null,null,null,null,null,null,null,null,null,null,null,null,null,null,null,null,null,null,null,null,null,null,null,null,null,null,null,null,null,null,1,null,null,null,null,null,null,null,null,null,null,null,null,null,null,null,null,null,null,null,null,null,null,null,null,null,null,"количество дней месяца",null,null,{"$f":"VLOOKUP(HY17,'[4]производственный календарь '!B2:F13,5,0)","v":31}]
[null,null,null,null,null,null,null,null,null,null,null,null,null,null,null,null,null,null,null,null,null,null,null,null,null,null,null,null,null,null,null,null,null,null,null,null,null,null,null,null,null,null,null,null,null,null,null,null,null,null,null,null,null,null,null,null,null,null,null,null,null,null,null,null,null,null,null,null,null,null,null,null,null,null,null,null,null,null,null,null,null,null,null,null,null,null,null,null,null,null,null,null,null,null,null,null,null,null,null,null,null,null,null,null,null,null,null,null,null,null,null,null,null,null,null,null,null,null,null,null,null,null,null,null,null,null,null,null,null,null,null,null,null,null,null,null,null,null,null,null,null,null,null,null,null,null,null,null,null,null,null,null,null,null,null,null,null,null,null,null,null,null,null,null,null,null,null,null,null,null,null,null,null,null,null,null,null,null,null,null,null,null,null,null,null,null,null,null,null,null,null,null,null,null,null,null,null,null,null,null,null,null,null,null,null,null,null,null,2,null,null,null,null,null,null,null,null,null,null,null,null,null,null,null,null,null,null,null,null,null,null,null,null,null,null,"месяц",null,null,{"$f":"VLOOKUP(HY17,'[4]производственный календарь '!B2:F13,4,0)","v":12},null,"Столбец1"]
[null,null,null,null,null,null,null,null,null,null,null,null,null,null,null,null,null,null,null,null,null,null,null,null,null,null,null,null,null,null,null,null,null,null,null,null,null,null,null,null,null,null,null,null,null,null,null,null,null,null,null,null,null,null,null,null,null,null,null,null,null,null,null,null,null,null,null,null,null,null,null,null,null,null,null,null,null,null,null,null,null,null,null,null,null,null,null,null,null,null,null,null,null,null,null,null,null,null,null,null,null,null,null,null,null,null,null,null,null,null,null,null,null,null,null,null,null,null,null,null,null,null,null,null,null,null,null,null,null,null,null,null,null,null,null,null,null,null,null,null,null,null,null,null,null,null,null,null,null,null,null,null,null,null,null,null,null,null,null,null,null,null,null,null,null,null,null,null,null,null,null,null,null,null,null,null,null,null,null,null,null,null,null,null,null,null,null,null,null,null,null,null,null,null,null,null,null,null,null,null,null,null,null,null,null,null,null,null,null,null,null,null,null,null,null,null,null,null,null,null,null,null,null,null,null,null,null,null,null,null,null,null,null,null,null,"год",null,null,{"$f":"YEAR(A17)","v":2020},null,0.3125]
[null,null,null,null,null,null,null,null,null,null,null,null,null,null,null,null,null,null,null,null,null,null,null,null,null,null,null,null,null,null,null,null,null,null,null,null,null,null,null,null,null,null,null,null,null,null,null,null,null,null,null,null,null,null,null,null,null,null,null,null,null,null,null,null,null,null,null,null,null,null,null,null,null,null,null,null,null,null,null,null,null,null,null,null,null,null,null,null,null,null,null,null,null,null,null,null,null,null,null,null,null,null,null,null,null,null,null,null,null,null,null,null,null,null,null,null,null,null,null,null,null,null,null,null,null,null,null,null,null,null,null,null,null,null,null,null,null,null,null,null,null,null,null,null,null,null,null,null,null,null,null,null,null,null,null,null,null,null,null,null,null,null,null,null,null,null,null,null,null,null,null,null,null,null,null,null,null,null,null,null,null,null,null,null,null,null,null,null,null,null,"УТВЕРЖДАЮ",null,null,null,null,null,null,null,null,null,null,null,null,null,null,null,null,null,null,null,null,null,null,null,null,null,null,null,null,null,null,null,null,null,null,null,null,null,null,null,null,null,null,null,null,null,null,null,null,null,0.33333333333333331]
[null,null,null,null,null,null,null,null,null,null,null,null,null,null,null,null,null,null,null,null,null,null,null,null,null,null,null,null,null,null,null,null,null,null,null,null,null,null,null,null,null,null,null,null,null,null,null,null,null,null,null,null,null,null,null,null,null,null,null,null,null,null,null,null,null,null,null,null,null,null,null,null,null,null,null,null,null,null,null,null,null,null,null,null,null,null,null,null,null,null,null,null,null,null,null,null,null,null,null,null,null,null,null,null,null,null,null,null,null,null,null,null,null,null,null,null,null,null,null,null,null,null,null,null,null,null,null,null,null,null,null,null,null,null,null,null,null,null,null,null,null,null,null,null,null,null,null,null,null,null,null,null,null,null,null,null,null,null,null,null,null,null,null,null,null,null,null,null,null,null,null,null,null,null,null,null,null,null,null,null,null,null,null,null,null,null,null,null,null,null," ",null,null,null,null,null,null,null,null,null,null,null,null,null,null,null,null,null,null,null,null,null,null,null,null,null,null,null,null,null,null,null,null,null,null,null,null,null,null,null,null,null,null,null,null,"0бед",null,null,4.1666666666666664E-2,null,0.375]
[null,null,null,null,null,null,null,null,null,null,null,null,null,null,null,null,null,null,null,null,null,null,null,null,null,null,null,null,null,null,null,null,null,null,null,null,null,null,null,null,null,null,null,null,null,null,null,null,null,null,null,null,null,null,null,null,null,null,null,null,null,null,null,null,null,null,null,null,null,null,null,null,null,null,null,null,null,null,null,null,null,null,null,null,null,null,null,null,null,null,null,null,null,null,null,null,null,null,null,null,null,null,null,null,null,null,null,null,null,null,null,null,null,null,null,null,null,null,null,null,null,null,null,null,null,null,null,null,null,null,null,null,null,null,null,null,null,null,null,null,null,null,null,null,null,null,null,null,null,null,null,null,null,null,null,null,null,null,null,null,null,null,null,null,null,null,null,null,null,null,null,null,null,null,null,null,null,null,null,null,null,null,null,null,null,null,null,null,null,null,"______________Л.А.Синченко",null,null,null,null,null,null,null,null,null,null,null,null,null,null,null,null,null,null,null,null,null,null,null,null,null,null,null,null,null,null,null,null,null,null,null,null,null,null,null,null,null,null,null,null,null,null,null,null,null,0.41666666666666669]
[null,null,null,null,null,null,null,null,null,null,null,null,null,null,null,null,null,null,null,null,null,null,null,null,null,null,null,null,null,null,null,null,null,null,null,null,null,null,null,null,null,null,null,null,null,null,null,null,null,null,null,null,null,null,null,null,null,null,null,null,null,null,null,null,null,null,null,null,null,null,null,null,null,null,null,null,null,null,null,null,null,null,null,null,null,null,null,null,null,null,null,null,null,null,null,null,null,null,null,null,null,null,null,null,null,null,null,null,null,null,null,null,null,null,null,null,null,null,null,null,null,null,null,null,null,null,null,null,null,null,null,null,null,null,null,null,null,null,null,null,null,null,null,null,null,null,null,null,null,null,null,null,null,null,null,null,null,null,null,null,null,null,null,null,null,null,null,null,null,null,null,null,null,null,null,null,null,null,null,null,null,null,null,null,null,null,null,null,null,null,"\"01\"",null,null,null,null,null,null,null,null,null," ",null,null,null,null,null,null,null,null,null,null,2020,null,null,null,null,null,null,null,null,null,null,null,null,null,null,null,null,null,null,null,null,null,null,null,null,null,null,null,null,0.45833333333333331]
[null,null,null,null,null,null,null,null,null,null,null,null,null,null,null,null,null,null,null,null,null,null,null,null,null,null,null,null,null,null,null,null,null,null,null,null,null,null,null,null,null,null,null,null,null,null,null,null,null,null,null,null,null,null,null,null,null,null,null,null,null,null,null,null,null,null,null,null,null,null,null,null,null,null,null,null,null,null,null,null,null,null,null,null,null,null,null,null,null,null,null,null,null,null,null,null,null,null,null,null,null,null,null,null,null,null,null,null,null,null,null,null,null,null,null,null,null,null,null,null,null,null,null,null,null,null,null,null,null,null,null,null,null,null,null,null,null,null,null,null,null,null,null,null,null,null,null,null,null,null,null,null,null,null,null,null,null,null,null,null,null,null,null,null,null,null,null,null,null,null,null,null,null,null,null,null,null,null,null,null,null,null,null,null,null,null,null,null,null,null,null,null,null,null,null,null,null,null,null,null,null,null,null,null,null,null,null,null,null,null,null,null,null,null,null,null,null,null,null,null,null,null,null,null,null,null,null,null,null,null,null,null,null,null,null,null,null,null,null,null,0.5,null,null,"Столбец1",null,null,null,null,null,1]
["ГРАФИК",null,null,null,null,null,null,null,null,null,null,null,null,null,null,null,null,null,null,null,null,null,null,null,null,null,null,null,null,null,null,null,null,null,null,null,null,null,null,null,null,null,null,null,null,null,null,null,null,null,null,null,null,null,null,null,null,null,null,null,null,null,null,null,null,null,null,null,null,null,null,null,null,null,null,null,null,null,null,null,null,null,null,null,null,null,null,null,null,null,null,null,null,null,null,null,null,null,null,null,null,null,null,null,null,null,null,null,null,null,null,null,null,null,null,null,null,null,null,null,null,null,null,null,null,null,null,null,null,null,null,null,null,null,null,null,null,null,null,null,null,null,null,null,null,null,null,null,null,null,null,null,null,null,null,null,null,null,null,null,null,null,null,null,null,null,null,null,null,null,null,null,null,null,null,null,null,null,null,null,null,null,null,null,null,null,null,null,null,null,null,null,null,null,null,null,null,null,null,null,null,null,null,null,null,null,null,null,null,null,null,null,null,null,null,null,null,null,null,null,null,null,null,null,null,null,null,null,null,null,null,null,null,null,null,null,null,null,null,null,0.54166666666666663,null,null,"Слезинский В.Е.,  управляющий участка",null,null,null,null,null,0.5]
["УЧЕТА ИСПОЛЬЗОВАНИЯ РАБОЧЕГО ВРЕМЕНИ ОБСЛУЖИВАЮЩЕГО ПЕРСОНАЛА",null,null,null,null,null,null,null,null,null,null,null,null,null,null,null,null,null,null,null,null,null,null,null,null,null,null,null,null,null,null,null,null,null,null,null,null,null,null,null,null,null,null,null,null,null,null,null,null,null,null,null,null,null,null,null,null,null,null,null,null,null,null,null,null,null,null,null,null,null,null,null,null,null,null,null,null,null,null,null,null,null,null,null,null,null,null,null,null,null,null,null,null,null,null,null,null,null,null,null,null,null,null,null,null,null,null,null,null,null,null,null,null,null,null,null,null,null,null,null,null,null,null,null,null,null,null,null,null,null,null,null,null,null,null,null,null,null,null,null,null,null,null,null,null,null,null,null,null,null,null,null,null,null,null,null,null,null,null,null,null,null,null,null,null,null,null,null,null,null,null,null,null,null,null,null,null,null,null,null,null,null,null,null,null,null,null,null,null,null,null,null,null,null,null,null,null,null,null,null,null,null,null,null,null,null,null,null,null,null,null,null,null,null,null,null,null,null,null,null,null,null,null,null,null,null,null,null,null,null,null,null,null,null,null,null,null,null,null,null,0.58333333333333337,null,null,"Медведев А.П., слесарь-ремонтник",null,null,null,null,null,0.25]
["2020-12-01",null,null,null,null,null,null,null,null,null,null,null,null,null,null,null,null,null,null,null,null,null,null,null,null,null,null,null,null,null,null,null,null,null,null,null,null,null,null,null,null,null,null,null,null,null,null,null,null,null,null,null,null,null,null,null,null,null,null,null,null,null,null,null,null,null,null,null,null,null,null,null,null,null,null,null,null,null,null,null,null,null,null,null,null,null,null,null,null,null,null,null,null,null,null,null,null,null,null,null,null,null,null,null,null,null,null,null,null,null,null,null,null,null,null,null,null,null,null,null,null,null,null,null,null,null,null,null,null,null,null,null,null,null,null,null,null,null,null,null,null,null,null,null,null,null,null,null,null,null,null,null,null,null,null,null,null,null,null,null,null,null,null,null,null,null,null,null,null,null,null,null,null,null,null,null,null,null,null,null,null,null,null,null,null,null,null,null,null,null,null,null,null,null,null,null,null,null,null,null,null,null,null,null,null,null,null,null,null,null,null,null,null,null,null,null,null,null,null,null,null,null,null,null,null,null,null,null,null,null,null,null,"ДЕКАБРЬ",null,null,null,null,null,null,null,0.625,null,null,"Береговой Г.П., электрик"]
[null,null,null,null,null,null,null,null,null,null,null,null,null,null,null,null,null,null,null,null,null,null,null,null,null,null,null,null,null,null,null,null,null,null,null,null,null,null,null,null,null,null,null,null,null,null,null,null,null,null,null,null,null,null,null,null,null,null,null,null,null,null,null,null,null,null,null,null,null,null,null,null,null,null,null,null,null,null,null,null,null,null,null,null,null,null,null,null,null,null,null,null,null,null,null,null,null,null,null,null,null,null,null,null,null,null,null,null,null,null,null,null,null,null,null,null,null,null,null,null,null,null,null,null,null,null,null,null,null,null,null,null,null,null,null,null,null,null,null,null,null,null,null,null,null,null,null,null,null,null,null,null,null,null,null,null,null,null,null,null,null,null,null,null,null,null,null,null,null,null,null,null,null,null,null,null,null,null,null,null,null,null,null,null,null,null,null,null,null,null,null,null,null,null,null,null,null,null,null,null,null,null,null,null,null,null,null,null,null,null,null,null,null,null,null,null,null,null,null,null,null,null,null,null,null,null,null,null,null,null,null,null,null,null,null,null,null,null,null,null,0.66666666666666663,null,null,"Воротынцева В.Н., кассир билетный        Ч"]
["№",null,null,null,null,"Фамилия Инициалы",null,null,null,null,null,null,null,null,null,null,null,null,null,null,null,null,null,"Ставка",null,null,null,null,1,null,null,null,null,null,2,null,null,null,null,null,3,null,null,null,null,null,4,null,null,null,null,null,5,null,null,null,null,null,6,null,null,null,null,null,7,null,null,null,null,null,8,null,null,null,null,null,9,null,null,null,null,null,10,null,null,null,null,null,11,null,null,null,null,null,12,null,null,null,null,null,13,null,null,null,null,null,14,null,null,null,null,null,15,null,null,null,null,null,16,null,null,null,null,null,17,null,null,null,null,null,18,null,null,null,null,null,19,null,null,null,null,null,20,null,null,null,null,null,21,null,null,null,null,null,22,null,null,null,null,null,23,null,null,null,null,null,24,null,null,null,null,null,25,null,null,null,null,null,26,null,null,null,null,null,27,null,null,null,null,null,28,null,null,null,null,null,{"$f":"IF(29<=$IE$7,29,\"-\")","v":29},null,null,null,null,null,{"$f":"IF(30<=$IE$7,30,\"-\")","v":30},null,null,null,null,null,{"$f":"IF(31<=$IE$7,31,\"-\")","v":31},null,null,null,null,null,"ВСЕГО",null,null,null,null,null,null,null,null,null,null,null,null,null,null,null,null,null,null,"по календарю",null,null,null,null,null,null,0.70833333333333337,null,null,"Окорочкова О.Т., кассир билетный            НЧ"]
[null,null,null,null,null,null,null,null,null,null,null,null,null,null,null,null,null,null,null,null,null,null,null,null,null,null,null,null,null,null,null,null,null,null,null,null,null,null,null,null,null,null,null,null,null,null,null,null,null,null,null,null,null,null,null,null,null,null,null,null,null,null,null,null,null,null,null,null,null,null,null,null,null,null,null,null,null,null,null,null,null,null,null,null,null,null,null,null,null,null,null,null,null,null,null,null,null,null,null,null,null,null,null,null,null,null,null,null,null,null,null,null,null,null,null,null,null,null,null,null,null,null,null,null,null,null,null,null,null,null,null,null,null,null,null,null,null,null,null,null,null,null,null,null,null,null,null,null,null,null,null,null,null,null,null,null,null,null,null,null,null,null,null,null,null,null,null,null,null,null,null,null,null,null,null,null,null,null,null,null,null,null,null,null,null,null,null,null,null,null,null,null,null,null,null,null,null,null,null,null,null,null,null,null,null,null,null,null,null,null,null,null,null,null,"дней",null,null,null,null,null,null,null,null,null,null,null,null,null,null,null,null,null,"часов","дней","часов",null,null,null,null,null,0.75,null,null,"Пермякова Т.М., контролёр-посадчик аттракциона    Ч"]
[null,null,null,null,null,null,null,null,null,null,null,null,null,null,null,null,null,null,null,null,null,null,null,null,null,null,null,null,{"$f":"IFERROR($A$17+AC19-1,\"-\")","v":"2020-12-01"},null,null,null,null,null,{"$f":"IFERROR($A$17+AI19-1,\"-\")","v":"2020-12-02"},null,null,null,null,null,{"$f":"IFERROR($A$17+AO19-1,\"-\")","v":"2020-12-03"},null,null,null,null,null,{"$f":"IFERROR($A$17+AU19-1,\"-\")","v":"2020-12-04"},null,null,null,null,null,{"$f":"IFERROR($A$17+BA19-1,\"-\")","v":"2020-12-05"},null,null,null,null,null,{"$f":"IFERROR($A$17+BG19-1,\"-\")","v":"2020-12-06"},null,null,null,null,null,{"$f":"IFERROR($A$17+BM19-1,\"-\")","v":"2020-12-07"},null,null,null,null,null,{"$f":"IFERROR($A$17+BS19-1,\"-\")","v":"2020-12-08"},null,null,null,null,null,{"$f":"IFERROR($A$17+BY19-1,\"-\")","v":"2020-12-09"},null,null,null,null,null,{"$f":"IFERROR($A$17+CE19-1,\"-\")","v":"2020-12-10"},null,null,null,null,null,{"$f":"IFERROR($A$17+CK19-1,\"-\")","v":"2020-12-11"},null,null,null,null,null,{"$f":"IFERROR($A$17+CQ19-1,\"-\")","v":"2020-12-12"},null,null,null,null,null,{"$f":"IFERROR($A$17+CW19-1,\"-\")","v":"2020-12-13"},null,null,null,null,null,{"$f":"IFERROR($A$17+DC19-1,\"-\")","v":"2020-12-14"},null,null,null,null,null,{"$f":"IFERROR($A$17+DI19-1,\"-\")","v":"2020-12-15"},null,null,null,null,null,{"$f":"IFERROR($A$17+DO19-1,\"-\")","v":"2020-12-16"},null,null,null,null,null,{"$f":"IFERROR($A$17+DU19-1,\"-\")","v":"2020-12-17"},null,null,null,null,null,{"$f":"IFERROR($A$17+EA19-1,\"-\")","v":"2020-12-18"},null,null,null,null,null,{"$f":"IFERROR($A$17+EG19-1,\"-\")","v":"2020-12-19"},null,null,null,null,null,{"$f":"IFERROR($A$17+EM19-1,\"-\")","v":"2020-12-20"},null,null,null,null,null,{"$f":"IFERROR($A$17+ES19-1,\"-\")","v":"2020-12-21"},null,null,null,null,null,{"$f":"IFERROR($A$17+EY19-1,\"-\")","v":"2020-12-22"},null,null,null,null,null,{"$f":"IFERROR($A$17+FE19-1,\"-\")","v":"2020-12-23"},null,null,null,null,null,{"$f":"IFERROR($A$17+FK19-1,\"-\")","v":"2020-12-24"},null,null,null,null,null,{"$f":"IFERROR($A$17+FQ19-1,\"-\")","v":"2020-12-25"},null,null,null,null,null,{"$f":"IFERROR($A$17+FW19-1,\"-\")","v":"2020-12-26"},null,null,null,null,null,{"$f":"IFERROR($A$17+GC19-1,\"-\")","v":"2020-12-27"},null,null,null,null,null,{"$f":"IFERROR($A$17+GI19-1,\"-\")","v":"2020-12-28"},null,null,null,null,null,{"$f":"IFERROR($A$17+GO19-1,\"-\")","v":"2020-12-29"},null,null,null,null,null,{"$f":"IFERROR($A$17+GU19-1,\"-\")","v":"2020-12-30"},null,null,null,null,null,{"$f":"IFERROR($A$17+HA19-1,\"-\")","v":"2020-12-31"},null,null,null,null,null,null,null,null,null,null,null,null,null,null,null,null,null,null,null,null,null,null,null,null,null,null,null,null,null,null,null,0.79166666666666663,null,null,"Алексеева Р.И., котролёр-посадчик аттракциона     Ч"]
[{"$f":"IF(ISBLANK(F29),\"\",COUNTA($F$29:F29))","v":""},1,null,null,null,null,null,null,null,null,null,null,null,null,null,null,null,null,null,null,null,null,null,null,null,null,null,null,0.41666666666666669,null,null,null,null,null,"В",null,null,null,null,null,0.41666666666666669,null,null,null,null,null,0.41666666666666669,null,null,null,null,null,"10:00:00",null,null,null,null,null,"10:00:00",null,null,null,null,null,0.41666666666666669,null,null,null,null,null,0.41666666666666669,null,null,null,null,null,"В",null,null,null,null,null,0.41666666666666669,null,null,null,null,null,0.41666666666666669,null,null,null,null,null,"10:00:00",null,null,null,null,null,"10:00:00",null,null,null,null,null,0.41666666666666669,null,null,null,null,null,0.41666666666666669,null,null,null,null,null,"В",null,null,null,null,null,0.41666666666666669,null,null,null,null,null,0.41666666666666669,null,null,null,null,null,"10:00:00",null,null,null,null,null,"10:00:00",null,null,null,null,null,0.41666666666666669,null,null,null,null,null,0.41666666666666669,null,null,null,null,null,"В",null,null,null,null,null,0.41666666666666669,null,null,null,null,null,0.41666666666666669,null,null,null,null,null,"10:00:00",null,null,null,null,null,"10:00:00",null,null,null,null,null,0.41666666666666669,null,null,null,null,null,0.41666666666666669,null,null,null,null,null,"В",null,null,null,null,null,0.41666666666666669,null,null,null,null,null,{"$f":"COUNT(AC22:HF22)","v":26},null,null,null,null,null,null,null,null,null,null,null,null,null,null,null,null,null,{"$f":"SUM(IFERROR(AC23:HF23-AC22:HF22-AC24:HF24,0))","v":7.6249999999999964},{"$f":"VLOOKUP($HY$17,'[4]производственный календарь '!$B$2:$D$13,3,0)","v":23},{"$f":"VLOOKUP($HY$17,'[4]производственный календарь '!$B$2:$D$13,2,0)","v":183},null,null,null,null,null,0.83333333333333337]
[null,null,null,null,null,null,null,null,null,null,null,null,null,null,null,null,null,null,null,null,null,null,null,null,null,null,null,null,0.66666666666666663,null,null,null,null,null,"В",null,null,null,null,null,0.75,null,null,null,null,null,0.75,null,null,null,null,null,"19:00:00",null,null,null,null,null,"19:00:00",null,null,null,null,null,0.75,null,null,null,null,null,0.66666666666666663,null,null,null,null,null,"В",null,null,null,null,null,0.75,null,null,null,null,null,0.75,null,null,null,null,null,"19:00:00",null,null,null,null,null,"19:00:00",null,null,null,null,null,0.75,null,null,null,null,null,0.66666666666666663,null,null,null,null,null,"В",null,null,null,null,null,0.75,null,null,null,null,null,0.75,null,null,null,null,null,"19:00:00",null,null,null,null,null,"19:00:00",null,null,null,null,null,0.75,null,null,null,null,null,0.66666666666666663,null,null,null,null,null,"В",null,null,null,null,null,0.75,null,null,null,null,null,0.79166666666666663,null,null,null,null,null,"19:00:00",null,null,null,null,null,"19:00:00",null,null,null,null,null,0.79166666666666663,null,null,null,null,null,0.66666666666666663,null,null,null,null,null,"В",null,null,null,null,null,0.79166666666666663,null,null,null,null,null,null,null,null,null,null,null,null,null,null,null,null,null,null,null,null,null,null,null,null,null,null,null,null,null,null,null,0.875,null,null,"Перминов К.И., дежурный зала"]
[null,null,null,null,null,null,null,null,null,null,null,null,null,null,null,null,null,null,null,null,null,null,null,null,null,null,null,null,"01:00:00",null,null,null,null,null,"В",null,null,null,null,null,"01:00:00",null,null,null,null,null,"01:00:00",null,null,null,null,null,"01:00:00",null,null,null,null,null,"01:00:00",null,null,null,null,null,"01:00:00",null,null,null,null,null,"01:00:00",null,null,null,null,null,"В",null,null,null,null,null,"01:00:00",null,null,null,null,null,"01:00:00",null,null,null,null,null,"01:00:00",null,null,null,null,null,"01:00:00",null,null,null,null,null,"01:00:00",null,null,null,null,null,"01:00:00",null,null,null,null,null,"В",null,null,null,null,null,"01:00:00",null,null,null,null,null,"01:00:00",null,null,null,null,null,"01:00:00",null,null,null,null,null,"01:00:00",null,null,null,null,null,"01:00:00",null,null,null,null,null,"01:00:00",null,null,null,null,null,"В",null,null,null,null,null,"01:00:00",null,null,null,null,null,"01:00:00",null,null,null,null,null,"01:00:00",null,null,null,null,null,"01:00:00",null,null,null,null,null,"01:00:00",null,null,null,null,null,"01:00:00",null,null,null,null,null,"В",null,null,null,null,null,"01:00:00",null,null,null,null,null,null,null,null,null,null,null,null,null,null,null,null,null,null,null,null,null,null,null,null,null,null,null,null,null,null,null,0.91666666666666663,null,null,"Перминов К.И., кассир"]
[null,null,null,null,null,null,null,null,null,null,null,null,null,null,null,null,null,null,null,null,null,null,null,null,null,null,null,null,{"$f":"IFERROR(AC23-AC22-AC24,0)","v":"05:00:00"},null,null,null,null,null,{"$f":"IFERROR(AI23-AI22-AI24,0)","v":"00:00:00"},null,null,null,null,null,{"$f":"IFERROR(AO23-AO22-AO24,0)","v":"07:00:00"},null,null,null,null,null,{"$f":"IFERROR(AU23-AU22-AU24,0)","v":"07:00:00"},null,null,null,null,null,{"$f":"IFERROR(BA23-BA22-BA24,0)","v":"08:00:00"},null,null,null,null,null,{"$f":"IFERROR(BG23-BG22-BG24,0)","v":"08:00:00"},null,null,null,null,null,{"$f":"IFERROR(BM23-BM22-BM24,0)","v":"07:00:00"},null,null,null,null,null,{"$f":"IFERROR(BS23-BS22-BS24,0)","v":"05:00:00"},null,null,null,null,null,{"$f":"IFERROR(BY23-BY22-BY24,0)","v":"00:00:00"},null,null,null,null,null,{"$f":"IFERROR(CE23-CE22-CE24,0)","v":"07:00:00"},null,null,null,null,null,{"$f":"IFERROR(CK23-CK22-CK24,0)","v":"07:00:00"},null,null,null,null,null,{"$f":"IFERROR(CQ23-CQ22-CQ24,0)","v":"08:00:00"},null,null,null,null,null,{"$f":"IFERROR(CW23-CW22-CW24,0)","v":"08:00:00"},null,null,null,null,null,{"$f":"IFERROR(DC23-DC22-DC24,0)","v":"07:00:00"},null,null,null,null,null,{"$f":"IFERROR(DI23-DI22-DI24,0)","v":"05:00:00"},null,null,null,null,null,{"$f":"IFERROR(DO23-DO22-DO24,0)","v":"00:00:00"},null,null,null,null,null,{"$f":"IFERROR(DU23-DU22-DU24,0)","v":"07:00:00"},null,null,null,null,null,{"$f":"IFERROR(EA23-EA22-EA24,0)","v":"07:00:00"},null,null,null,null,null,{"$f":"IFERROR(EG23-EG22-EG24,0)","v":"08:00:00"},null,null,null,null,null,{"$f":"IFERROR(EM23-EM22-EM24,0)","v":"08:00:00"},null,null,null,null,null,{"$f":"IFERROR(ES23-ES22-ES24,0)","v":"07:00:00"},null,null,null,null,null,{"$f":"IFERROR(EY23-EY22-EY24,0)","v":"05:00:00"},null,null,null,null,null,{"$f":"IFERROR(FE23-FE22-FE24,0)","v":"00:00:00"},null,null,null,null,null,{"$f":"IFERROR(FK23-FK22-FK24,0)","v":"07:00:00"},null,null,null,null,null,{"$f":"IFERROR(FQ23-FQ22-FQ24,0)","v":"08:00:00"},null,null,null,null,null,{"$f":"IFERROR(FW23-FW22-FW24,0)","v":"08:00:00"},null,null,null,null,null,{"$f":"IFERROR(GC23-GC22-GC24,0)","v":"08:00:00"},null,null,null,null,null,{"$f":"IFERROR(GI23-GI22-GI24,0)","v":"08:00:00"},null,null,null,null,null,{"$f":"IFERROR(GO23-GO22-GO24,0)","v":"05:00:00"},null,null,null,null,null,{"$f":"IFERROR(GU23-GU22-GU24,0)","v":"00:00:00"},null,null,null,null,null,{"$f":"IFERROR(HA23-HA22-HA24,0)","v":"08:00:00"},null,null,null,null,null,null,null,null,null,null,null,null,null,null,null,null,null,null,null,null,null,null,null,{"$f":"SUM(AC25:HF25)","v":7.6249999999999964},null,null,null,null,null,null,null,0.9375,null,null,"Бутелин Ю.Н., сторож"]
[null,null,null,null,null,null,null,null,null,null,null,null,null,null,null,null,null,null,null,null,null,null,null,null,null,null,null,null,{"$f":"CHOOSE(WEEKDAY(AC19,16),\"\",5,\"\",\"\",\"\",\"\",\"\")","v":5},null,null,null,null,null,{"$f":"CHOOSE(WEEKDAY(AI19,16),\"\",5,\"\",\"\",\"\",\"\",\"\")","v":""},null,null,null,null,null,{"$f":"CHOOSE(WEEKDAY(AO19,16),\"\",5,\"\",\"\",\"\",\"\",\"\")","v":""},null,null,null,null,null,{"$f":"CHOOSE(WEEKDAY(AU19,16),\"\",5,\"\",\"\",\"\",\"\",\"\")","v":""},null,null,null,null,null,{"$f":"CHOOSE(WEEKDAY(BA19,16),\"\",5,\"\",\"\",\"\",\"\",\"\")","v":""},null,null,null,null,null,{"$f":"CHOOSE(WEEKDAY(BG19,16),\"\",5,\"\",\"\",\"\",\"\",\"\")","v":""},null,null,null,null,null,{"$f":"CHOOSE(WEEKDAY(BM19,16),\"\",5,\"\",\"\",\"\",\"\",\"\")","v":""},null,null,null,null,null,{"$f":"CHOOSE(WEEKDAY(BS19,16),\"\",5,\"\",\"\",\"\",\"\",\"\")","v":5},null,null,null,null,null,{"$f":"CHOOSE(WEEKDAY(BY19,16),\"\",5,\"\",\"\",\"\",\"\",\"\")","v":""},null,null,null,null,null,{"$f":"CHOOSE(WEEKDAY(CE19,16),\"\",5,\"\",\"\",\"\",\"\",\"\")","v":""},null,null,null,null,null,{"$f":"CHOOSE(WEEKDAY(CK19,16),\"\",5,\"\",\"\",\"\",\"\",\"\")","v":""},null,null,null,null,null,{"$f":"CHOOSE(WEEKDAY(CQ19,16),\"\",5,\"\",\"\",\"\",\"\",\"\")","v":""},null,null,null,null,null,{"$f":"CHOOSE(WEEKDAY(CW19,16),\"\",5,\"\",\"\",\"\",\"\",\"\")","v":""},null,null,null,null,null,{"$f":"CHOOSE(WEEKDAY(DC19,16),\"\",5,\"\",\"\",\"\",\"\",\"\")","v":""},null,null,null,null,null,{"$f":"CHOOSE(WEEKDAY(DI19,16),\"\",5,\"\",\"\",\"\",\"\",\"\")","v":5},null,null,null,null,null,{"$f":"CHOOSE(WEEKDAY(DO19,16),\"\",5,\"\",\"\",\"\",\"\",\"\")","v":""},null,null,null,null,null,{"$f":"CHOOSE(WEEKDAY(DU19,16),\"\",5,\"\",\"\",\"\",\"\",\"\")","v":""},null,null,null,null,null,{"$f":"CHOOSE(WEEKDAY(EA19,16),\"\",5,\"\",\"\",\"\",\"\",\"\")","v":""},null,null,null,null,null,{"$f":"CHOOSE(WEEKDAY(EG19,16),\"\",5,\"\",\"\",\"\",\"\",\"\")","v":""},null,null,null,null,null,{"$f":"CHOOSE(WEEKDAY(EM19,16),\"\",5,\"\",\"\",\"\",\"\",\"\")","v":""},null,null,null,null,null,{"$f":"CHOOSE(WEEKDAY(ES19,16),\"\",5,\"\",\"\",\"\",\"\",\"\")","v":""},null,null,null,null,null,{"$f":"CHOOSE(WEEKDAY(EY19,16),\"\",5,\"\",\"\",\"\",\"\",\"\")","v":5},null,null,null,null,null,{"$f":"CHOOSE(WEEKDAY(FE19,16),\"\",5,\"\",\"\",\"\",\"\",\"\")","v":""},null,null,null,null,null,{"$f":"CHOOSE(WEEKDAY(FK19,16),\"\",5,\"\",\"\",\"\",\"\",\"\")","v":""},null,null,null,null,null,{"$f":"CHOOSE(WEEKDAY(FQ19,16),\"\",5,\"\",\"\",\"\",\"\",\"\")","v":""},null,null,null,null,null,{"$f":"CHOOSE(WEEKDAY(FW19,16),\"\",5,\"\",\"\",\"\",\"\",\"\")","v":""},null,null,null,null,null,{"$f":"CHOOSE(WEEKDAY(GC19,16),\"\",5,\"\",\"\",\"\",\"\",\"\")","v":""},null,null,null,null,null,{"$f":"CHOOSE(WEEKDAY(GI19,16),\"\",5,\"\",\"\",\"\",\"\",\"\")","v":""},null,null,null,null,null,{"$f":"CHOOSE(WEEKDAY(GO19,16),\"\",5,\"\",\"\",\"\",\"\",\"\")","v":5},null,null,null,null,null,{"$f":"CHOOSE(WEEKDAY(GU19,16),\"\",5,\"\",\"\",\"\",\"\",\"\")","v":""},null,null,null,null,null,{"$f":"CHOOSE(WEEKDAY(HA19,16),\"\",5,\"\",\"\",\"\",\"\",\"\")","v":""},null,null,null,null,null,null,null,null,null,null,null,null,null,null,null,null,null,null,null,null,null,null,null,null,null,null,null,null,null,null,null,0.97916666666666663,null,null,"Бутелин Ю.Н., контролёр-посадчик"]
[null,null,null,null,null,null,null,null,null,null,null,null,null,null,null,null,null,null,null,null,null,null,null,null,null,null,null,null,null,null,null,null,null,null,null,null,null,null,null,null,null,null,null,null,null,null,null,null,null,null,null,null,null,null,null,null,null,null,null,null,null,null,null,null,null,null,null,null,null,null,null,null,null,null,null,null,null,null,null,null,null,null,null,null,null,null,null,null,null,null,null,null,null,null,null,null,null,null,null,null,null,null,null,null,null,null,null,null,null,null,null,null,null,null,null,null,null,null,null,null,null,null,null,null,null,null,null,null,null,null,null,null,null,null,null,null,null,null,null,null,null,null,null,null,null,null,null,null,null,null,null,null,null,null,null,null,null,null,null,null,null,null,null,null,null,null,null,null,null,null,null,null,null,null,null,null,null,null,null,null,null,null,null,null,null,null,null,null,null,null,null,null,null,null,null,null,null,null,null,null,null,null,null,null,null,null,null,null,null,null,null,null,null,null,null,null,null,null,null,null,null,null,null,null,null,null,null,null,null,null,null,null,null,null,null,null,null," ",null,null,0.95833333333333337,null,null,"Медведев А.П., сторож"]
[null,null,null,null,null,null,null,null,null,null,null,null,null,null,null,null,null,null,null,null,null,null,null,null,null,null,null,null,"ОТ",null,null,null,null,null,"ОТ",null,null,null,null,null,"ОТ",null,null,null,null,null,"ОТ",null,null,null,null,null,"ОТ",null,null,null,null,null,"ОТ",null,null,null,null,null,"ОТ",null,null,null,null,null,"ОТ",null,null,null,null,null,"ОТ",null,null,null,null,null,"ОТ",null,null,null,null,null,"ОТ",null,null,null,null,null,"ОТ",null,null,null,null,null,"ОТ",null,null,null,null,null,null,null,null,null,null,null,null,null,null,null,null,null,null,null,null,null,null,null,null,null,null,null,null,null,null,null,null,null,null,null,null,null,null,null,null,null,null,null,null,null,null,null,null,null,null,null,null,null,null,null,null,null,null,null,null,null,null,null,null,null,null,null,null,null,null,null,null,null,null,null,null,null,null,null,null,null,null,null,null,null,null,null,null,null,null,null,null,null,null,null,null,null,null,null,null,null,null,null,null,null,null,null,null,null,null,null,null,null,null,null,null,null,null,null,null,null,null,null,null,null,null,null,null,null,null,null,null,{"$f":"VLOOKUP($HY$17,'[4]производственный календарь '!$B$2:$D$13,3,0)","v":23},{"$f":"VLOOKUP($HY$17,'[4]производственный календарь '!$B$2:$D$13,2,0)","v":183},null,null,null,null,null,1,null,null,"Пермякова Т.М., контролёр-посадчик аттракциона    НЧ"]
[null,2,null,null,null,null,null,null,null,null,null,null,null,null,null,null,null,null,null,null,null,null,null,null,null,null,null,null,"В",null,null,null,null,null,0.33333333333333331,null,null,null,null,null,0.33333333333333331,null,null,null,null,null,0.33333333333333331,null,null,null,null,null,"08:00:00",null,null,null,null,null,"08:00:00",null,null,null,null,null,"В",null,null,null,null,null,"В",null,null,null,null,null,0.33333333333333331,null,null,null,null,null,0.33333333333333331,null,null,null,null,null,0.33333333333333331,null,null,null,null,null,"08:00:00",null,null,null,null,null,"08:00:00",null,null,null,null,null,"В",null,null,null,null,null,"В",null,null,null,null,null,0.33333333333333331,null,null,null,null,null,0.33333333333333331,null,null,null,null,null,0.33333333333333331,null,null,null,null,null,"08:00:00",null,null,null,null,null,"08:00:00",null,null,null,null,null,"В",null,null,null,null,null,"В",null,null,null,null,null,0.33333333333333331,null,null,null,null,null,0.33333333333333331,null,null,null,null,null,0.33333333333333331,null,null,null,null,null,"08:00:00",null,null,null,null,null,"08:00:00",null,null,null,null,null,"В",null,null,null,null,null,"В",null,null,null,null,null,0.33333333333333331,null,null,null,null,null,0.33333333333333331,null,null,null,null,null,{"$f":"COUNT(AC29:HF29)","v":22},null,null,null,null,null,null,null,null,null,null,null,null,null,null,null,null,null,{"$f":"SUM(IFERROR(AC30:HF30-AC29:HF29-AC31:HF31,0))","v":7.6249999999999973},null,null,null,null,null,null,null,"В",null,null,"Воротынцева В.Н., кассир билетный        НЧ"]
[null,null,null,null,null,null,null,null,null,null,null,null,null,null,null,null,null,null,null,null,null,null,null,null,null,null,null,null,"В",null,null,null,null,null,0.75,null,null,null,null,null,0.75,null,null,null,null,null,0.75,null,null,null,null,null,"18:00:00",null,null,null,null,null,"18:00:00",null,null,null,null,null,"В",null,null,null,null,null,"В",null,null,null,null,null,0.75,null,null,null,null,null,0.75,null,null,null,null,null,0.70833333333333337,null,null,null,null,null,"17:00:00",null,null,null,null,null,"17:00:00",null,null,null,null,null,"В",null,null,null,null,null,"В",null,null,null,null,null,0.70833333333333337,null,null,null,null,null,0.70833333333333337,null,null,null,null,null,0.70833333333333337,null,null,null,null,null,"17:00:00",null,null,null,null,null,"17:00:00",null,null,null,null,null,"В",null,null,null,null,null,"В",null,null,null,null,null,0.70833333333333337,null,null,null,null,null,0.70833333333333337,null,null,null,null,null,0.70833333333333337,null,null,null,null,null,"17:00:00",null,null,null,null,null,"17:00:00",null,null,null,null,null,"В",null,null,null,null,null,"В",null,null,null,null,null,0.70833333333333337,null,null,null,null,null,0.70833333333333337,null,null,null,null,null,null,null,null,null,null,null,null,null,null,null,null,null,null,null,null,null,null,null,null,null,null,null,null,null,null,null,"ОТ",null,null,"Окорочкова О.Т., кассир билетный            Ч"]
[null,null,null,null,null,null,null,null,null,null,null,null,null,null,null,null,null,null,null,null,null,null,null,null,null,null,null,null,"В",null,null,null,null,null,"01:00:00",null,null,null,null,null,"01:00:00",null,null,null,null,null,"01:00:00",null,null,null,null,null,"01:00:00",null,null,null,null,null,"01:00:00",null,null,null,null,null,"В",null,null,null,null,null,"В",null,null,null,null,null,"01:00:00",null,null,null,null,null,"01:00:00",null,null,null,null,null,"01:00:00",null,null,null,null,null,"01:00:00",null,null,null,null,null,"01:00:00",null,null,null,null,null,"В",null,null,null,null,null,"В",null,null,null,null,null,"01:00:00",null,null,null,null,null,"01:00:00",null,null,null,null,null,"01:00:00",null,null,null,null,null,"01:00:00",null,null,null,null,null,"01:00:00",null,null,null,null,null,"В",null,null,null,null,null,"В",null,null,null,null,null,"01:00:00",null,null,null,null,null,"01:00:00",null,null,null,null,null,"01:00:00",null,null,null,null,null,"01:00:00",null,null,null,null,null,"01:00:00",null,null,null,null,null,"В",null,null,null,null,null,"В",null,null,null,null,null,"01:00:00",null,null,null,null,null,"01:00:00",null,null,null,null,null,null,null,null,null,null,null,null,null,null,null,null,null,null,null,null,null,null,null,null,null,null,null,null,null,null,null,"Р",null,null,"Алексеева Р.И., котролёр-посадчик аттракциона     НЧ"]
[null,null,null,null,null,null,null,null,null,null,null,null,null,null,null,null,null,null,null,null,null,null,null,null,null,null,null,null,{"$f":"IFERROR(AC30-AC29-AC31,0)","v":"00:00:00"},null,null,null,null,null,{"$f":"IFERROR(AI30-AI29-AI31,0)","v":"09:00:00"},null,null,null,null,null,{"$f":"IFERROR(AO30-AO29-AO31,0)","v":"09:00:00"},null,null,null,null,null,{"$f":"IFERROR(AU30-AU29-AU31,0)","v":"09:00:00"},null,null,null,null,null,{"$f":"IFERROR(BA30-BA29-BA31,0)","v":"09:00:00"},null,null,null,null,null,{"$f":"IFERROR(BG30-BG29-BG31,0)","v":"09:00:00"},null,null,null,null,null,{"$f":"IFERROR(BM30-BM29-BM31,0)","v":"00:00:00"},null,null,null,null,null,{"$f":"IFERROR(BS30-BS29-BS31,0)","v":"00:00:00"},null,null,null,null,null,{"$f":"IFERROR(BY30-BY29-BY31,0)","v":"09:00:00"},null,null,null,null,null,{"$f":"IFERROR(CE30-CE29-CE31,0)","v":"09:00:00"},null,null,null,null,null,{"$f":"IFERROR(CK30-CK29-CK31,0)","v":"08:00:00"},null,null,null,null,null,{"$f":"IFERROR(CQ30-CQ29-CQ31,0)","v":"08:00:00"},null,null,null,null,null,{"$f":"IFERROR(CW30-CW29-CW31,0)","v":"08:00:00"},null,null,null,null,null,{"$f":"IFERROR(DC30-DC29-DC31,0)","v":"00:00:00"},null,null,null,null,null,{"$f":"IFERROR(DI30-DI29-DI31,0)","v":"00:00:00"},null,null,null,null,null,{"$f":"IFERROR(DO30-DO29-DO31,0)","v":"08:00:00"},null,null,null,null,null,{"$f":"IFERROR(DU30-DU29-DU31,0)","v":"08:00:00"},null,null,null,null,null,{"$f":"IFERROR(EA30-EA29-EA31,0)","v":"08:00:00"},null,null,null,null,null,{"$f":"IFERROR(EG30-EG29-EG31,0)","v":"08:00:00"},null,null,null,null,null,{"$f":"IFERROR(EM30-EM29-EM31,0)","v":"08:00:00"},null,null,null,null,null,{"$f":"IFERROR(ES30-ES29-ES31,0)","v":"00:00:00"},null,null,null,null,null,{"$f":"IFERROR(EY30-EY29-EY31,0)","v":"00:00:00"},null,null,null,null,null,{"$f":"IFERROR(FE30-FE29-FE31,0)","v":"08:00:00"},null,null,null,null,null,{"$f":"IFERROR(FK30-FK29-FK31,0)","v":"08:00:00"},null,null,null,null,null,{"$f":"IFERROR(FQ30-FQ29-FQ31,0)","v":"08:00:00"},null,null,null,null,null,{"$f":"IFERROR(FW30-FW29-FW31,0)","v":"08:00:00"},null,null,null,null,null,{"$f":"IFERROR(GC30-GC29-GC31,0)","v":"08:00:00"},null,null,null,null,null,{"$f":"IFERROR(GI30-GI29-GI31,0)","v":"00:00:00"},null,null,null,null,null,{"$f":"IFERROR(GO30-GO29-GO31,0)","v":"00:00:00"},null,null,null,null,null,{"$f":"IFERROR(GU30-GU29-GU31,0)","v":"08:00:00"},null,null,null,null,null,{"$f":"IFERROR(HA30-HA29-HA31,0)","v":"08:00:00"},null,null,null,null,null,null,null,null,null,null,null,null,null,null,null,null,null,null,null,null,null,null,null,{"$f":"SUM(AC32:HE32)","v":7.6249999999999973}]
[]
[null,null,null,null,null,null,null,null,null,null,null,null,null,null,null,null,null,null,null,null,null,null,null,null,null,null,null,null,"ОТ",null,null,null,null,null,"ОТ",null,null,null,null,null,"ОТ",null,null,null,null,null,"ОТ",null,null,null,null,null,"ОТ",null,null,null,null,null,"ОТ",null,null,null,null,null,"ОТ",null,null,null,null,null,"ОТ",null,null,null,null,null,"ОТ",null,null,null,null,null,"ОТ",null,null,null,null,null,"ОТ",null,null,null,null,null,"ОТ",null,null,null,null,null,"ОТ",null,null,null,null,null,null,null,null,null,null,null,null,null,null,null,null,null,null,null,null,null,null,null,null,null,null,null,null,null,null,null,null,null,null,null,null,null,null,null,null,null,null,null,null,null,null,null,null,null,null,null,null,null,null,null,null,null,null,null,null,null,null,null,null,null,null,null,null,null,null,null,null,null,null,null,null,null,null,null,null,null,null,null,null,null,null,null,null,null,null,null,null,null,null,null,null,null,null,null,null,null,null,null,null,null,null,null,null,null,null,null,null,null,null,null,null,null,null,null,null,null,null,null,null,null,null,null,null,null,null,null,null,{"$f":"VLOOKUP($HY$17,'[4]производственный календарь '!$B$2:$D$13,3,0)","v":23},{"$f":"VLOOKUP($HY$17,'[4]производственный календарь '!$B$2:$D$13,2,0)","v":183}]
[null,3,null,null,null,null,null,null,null,null,null,null,null,null,null,null,null,null,null,null,null,null,null,null,null,null,null,null,0.33333333333333331,null,null,null,null,null,0.33333333333333331,null,null,null,null,null,0.33333333333333331,null,null,null,null,null,0.33333333333333331,null,null,null,null,null,"В",null,null,null,null,null,"В",null,null,null,null,null,0.33333333333333331,null,null,null,null,null,0.33333333333333331,null,null,null,null,null,0.33333333333333331,null,null,null,null,null,0.33333333333333331,null,null,null,null,null,0.33333333333333331,null,null,null,null,null,"В",null,null,null,null,null,"В",null,null,null,null,null,0.33333333333333331,null,null,null,null,null,0.33333333333333331,null,null,null,null,null,0.33333333333333331,null,null,null,null,null,0.33333333333333331,null,null,null,null,null,0.33333333333333331,null,null,null,null,null,"В",null,null,null,null,null,"В",null,null,null,null,null,0.33333333333333331,null,null,null,null,null,0.33333333333333331,null,null,null,null,null,0.33333333333333331,null,null,null,null,null,0.33333333333333331,null,null,null,null,null,0.33333333333333331,null,null,null,null,null,"В",null,null,null,null,null,"В",null,null,null,null,null,0.33333333333333331,null,null,null,null,null,0.33333333333333331,null,null,null,null,null,0.33333333333333331,null,null,null,null,null,0.33333333333333331,null,null,null,null,null,{"$f":"COUNT(AC35:HF35)","v":23},null,null,null,null,null,null,null,null,null,null,null,null,null,null,null,null,null,{"$f":"SUM(IFERROR(AC36:HF36-AC35:HF35-AC37:HF37,0))","v":7.6249999999999982}]
[null,null,null,null,null,null,null,null,null,null,null,null,null,null,null,null,null,null,null,null,null,null,null,null,null,null,null,null,0.70833333333333337,null,null,null,null,null,0.70833333333333337,null,null,null,null,null,0.70833333333333337,null,null,null,null,null,0.70833333333333337,null,null,null,null,null,"В",null,null,null,null,null,"В",null,null,null,null,null,0.70833333333333337,null,null,null,null,null,0.70833333333333337,null,null,null,null,null,0.70833333333333337,null,null,null,null,null,0.70833333333333337,null,null,null,null,null,0.70833333333333337,null,null,null,null,null,"В",null,null,null,null,null,"В",null,null,null,null,null,0.70833333333333337,null,null,null,null,null,0.70833333333333337,null,null,null,null,null,0.70833333333333337,null,null,null,null,null,0.70833333333333337,null,null,null,null,null,0.70833333333333337,null,null,null,null,null,"В",null,null,null,null,null,"В",null,null,null,null,null,0.70833333333333337,null,null,null,null,null,0.70833333333333337,null,null,null,null,null,0.70833333333333337,null,null,null,null,null,0.70833333333333337,null,null,null,null,null,0.70833333333333337,null,null,null,null,null,"В",null,null,null,null,null,"В",null,null,null,null,null,0.70833333333333337,null,null,null,null,null,0.70833333333333337,null,null,null,null,null,0.70833333333333337,null,null,null,null,null,0.66666666666666663]
[null,null,null,null,null,null,null,null,null,null,null,null,null,null,null,null,null,null,null,null,null,null,null,null,null,null,null,null,"01:00:00",null,null,null,null,null,"01:00:00",null,null,null,null,null,"01:00:00",null,null,null,null,null,"01:00:00",null,null,null,null,null,"В",null,null,null,null,null,"В",null,null,null,null,null,"01:00:00",null,null,null,null,null,"01:00:00",null,null,null,null,null,"01:00:00",null,null,null,null,null,"01:00:00",null,null,null,null,null,"01:00:00",null,null,null,null,null,"В",null,null,null,null,null,"В",null,null,null,null,null,"01:00:00",null,null,null,null,null,"01:00:00",null,null,null,null,null,"01:00:00",null,null,null,null,null,"01:00:00",null,null,null,null,null,"01:00:00",null,null,null,null,null,"В",null,null,null,null,null,"В",null,null,null,null,null,"01:00:00",null,null,null,null,null,"01:00:00",null,null,null,null,null,"01:00:00",null,null,null,null,null,"01:00:00",null,null,null,null,null,"01:00:00",null,null,null,null,null,"В",null,null,null,null,null,"В",null,null,null,null,null,"01:00:00",null,null,null,null,null,"01:00:00",null,null,null,null,null,"01:00:00",null,null,null,null,null,"01:00:00"]
[null,null,null,null,null,null,null,null,null,null,null,null,null,null,null,null,null,null,null,null,null,null,null,null,null,null,null,null,{"$f":"IFERROR(AC36-AC35-AC37,0)","v":"08:00:00"},null,null,null,null,null,{"$f":"IFERROR(AI36-AI35-AI37,0)","v":"08:00:00"},null,null,null,null,null,{"$f":"IFERROR(AO36-AO35-AO37,0)","v":"08:00:00"},null,null,null,null,null,{"$f":"IFERROR(AU36-AU35-AU37,0)","v":"08:00:00"},null,null,null,null,null,{"$f":"IFERROR(BA36-BA35-BA37,0)","v":"00:00:00"},null,null,null,null,null,{"$f":"IFERROR(BG36-BG35-BG37,0)","v":"00:00:00"},null,null,null,null,null,{"$f":"IFERROR(BM36-BM35-BM37,0)","v":"08:00:00"},null,null,null,null,null,{"$f":"IFERROR(BS36-BS35-BS37,0)","v":"08:00:00"},null,null,null,null,null,{"$f":"IFERROR(BY36-BY35-BY37,0)","v":"08:00:00"},null,null,null,null,null,{"$f":"IFERROR(CE36-CE35-CE37,0)","v":"08:00:00"},null,null,null,null,null,{"$f":"IFERROR(CK36-CK35-CK37,0)","v":"08:00:00"},null,null,null,null,null,{"$f":"IFERROR(CQ36-CQ35-CQ37,0)","v":"00:00:00"},null,null,null,null,null,{"$f":"IFERROR(CW36-CW35-CW37,0)","v":"00:00:00"},null,null,null,null,null,{"$f":"IFERROR(DC36-DC35-DC37,0)","v":"08:00:00"},null,null,null,null,null,{"$f":"IFERROR(DI36-DI35-DI37,0)","v":"08:00:00"},null,null,null,null,null,{"$f":"IFERROR(DO36-DO35-DO37,0)","v":"08:00:00"},null,null,null,null,null,{"$f":"IFERROR(DU36-DU35-DU37,0)","v":"08:00:00"},null,null,null,null,null,{"$f":"IFERROR(EA36-EA35-EA37,0)","v":"08:00:00"},null,null,null,null,null,{"$f":"IFERROR(EG36-EG35-EG37,0)","v":"00:00:00"},null,null,null,null,null,{"$f":"IFERROR(EM36-EM35-EM37,0)","v":"00:00:00"},null,null,null,null,null,{"$f":"IFERROR(ES36-ES35-ES37,0)","v":"08:00:00"},null,null,null,null,null,{"$f":"IFERROR(EY36-EY35-EY37,0)","v":"08:00:00"},null,null,null,null,null,{"$f":"IFERROR(FE36-FE35-FE37,0)","v":"08:00:00"},null,null,null,null,null,{"$f":"IFERROR(FK36-FK35-FK37,0)","v":"08:00:00"},null,null,null,null,null,{"$f":"IFERROR(FQ36-FQ35-FQ37,0)","v":"08:00:00"},null,null,null,null,null,{"$f":"IFERROR(FW36-FW35-FW37,0)","v":"00:00:00"},null,null,null,null,null,{"$f":"IFERROR(GC36-GC35-GC37,0)","v":"00:00:00"},null,null,null,null,null,{"$f":"IFERROR(GI36-GI35-GI37,0)","v":"08:00:00"},null,null,null,null,null,{"$f":"IFERROR(GO36-GO35-GO37,0)","v":"08:00:00"},null,null,null,null,null,{"$f":"IFERROR(GU36-GU35-GU37,0)","v":"08:00:00"},null,null,null,null,null,{"$f":"IFERROR(HA36-HA35-HA37,0)","v":"07:00:00"},null,null,null,null,null,null,null,null,null,null,null,null,null,null,null,null,null,null,null,null,null,null,null,{"$f":"SUM(AC38:HE38)","v":7.6249999999999982}]
[]
[null,null,null,null,null,null,null,null,null,null,null,null,null,null,null,null,null,null,null,null,null,null,null,null,null,null,null,null,null,null,null,null,null,null,null,null,null,null,null,null,null,null,null,null,null,null,null,null,null,null,null,null,null,null,null,null,null,null,null,null,null,null,null,null,null,null,null,null,null,null,null,null,null,null,null,null,null,null,null,null,null,null,null,null,null,null,null,null,null,null,null,null,null,null,null,null,null,null,null,null,null,null,null,null,null,null,null,null,null,null,null,null,null,null,null,null,null,null,null,null,null,null,null,null,null,null,null,null,null,null,null,null,null,null,null,null,null,null,null,null,null,null,null,null,null,null,null,null,null,null,null,null,null,null,null,null,null,null,null,null,null,null,null,null,null,null,null,null,null,null,null,null,null,null,null,null,null,null,null,null,null,null,null,null,null,null,null,null,null,null,null,null,null,null,null,null,null,null,null,null,null,null,null,null,null,null,null,null,null,null,null,null,null,null,null,null,null,null,null,null,null,null,null,null,null,null,null,null,null,null,null,null,null,{"$f":"VLOOKUP($HY$17,'[4]производственный календарь '!$B$2:$D$13,3,0)","v":23},{"$f":"VLOOKUP($HY$17,'[4]производственный календарь '!$B$2:$D$13,2,0)","v":183}]
[null,4,null,null,null,null,null,null,null,null,null,null,null,null,null,null,null,null,null,null,null,null,null,null,null,null,null,null,null,null,null,null,null,null,0.33333333333333331,null,null,null,null,null,null,null,null,null,null,null,0.33333333333333331,null,null,null,null,null,null,null,null,null,null,null,0.33333333333333331,null,null,null,null,null,null,null,null,null,null,null,0.33333333333333331,null,null,null,null,null,null,null,null,null,null,null,0.33333333333333331,null,null,null,null,null,null,null,null,null,null,null,0.33333333333333331,null,null,null,null,null,null,null,null,null,null,null,0.33333333333333331,null,null,null,null,null,null,null,null,null,null,null,0.33333333333333331,null,null,null,null,null,null,null,null,null,null,null,0.33333333333333331,null,null,null,null,null,null,null,null,null,null,null,0.33333333333333331,null,null,null,null,null,null,null,null,null,null,null,0.33333333333333331,null,null,null,null,null,null,null,null,null,null,null,0.33333333333333331,null,null,null,null,null,null,null,null,null,null,null,0.33333333333333331,null,null,null,null,null,null,null,null,null,null,null,0.33333333333333331,null,null,null,null,null,null,null,null,null,null,null,0.33333333333333331,null,null,null,null,null,null,null,null,null,null,null,{"$f":"COUNT(AC41:HF41)","v":15},null,null,null,null,null,null,null,null,null,null,null,null,null,null,null,null,null,{"$f":"SUM(IFERROR(AC42:HF42-AC41:HF41-AC43:HF43,0))","v":7.6250000000000009}]
[null,null,null,null,null,null,null,null,null,null,null,null,null,null,null,null,null,null,null,null,null,null,null,null,null,null,null,null,null,null,null,null,null,null,0.875,null,null,null,null,null,null,null,null,null,null,null,0.875,null,null,null,null,null,null,null,null,null,null,null,0.875,null,null,null,null,null,null,null,null,null,null,null,0.875,null,null,null,null,null,null,null,null,null,null,null,0.875,null,null,null,null,null,null,null,null,null,null,null,0.91666666666666663,null,null,null,null,null,null,null,null,null,null,null,0.875,null,null,null,null,null,null,null,null,null,null,null,0.875,null,null,null,null,null,null,null,null,null,null,null,0.875,null,null,null,null,null,null,null,null,null,null,null,0.91666666666666663,null,null,null,null,null,null,null,null,null,null,null,0.875,null,null,null,null,null,null,null,null,null,null,null,0.875,null,null,null,null,null,null,null,null,null,null,null,0.91666666666666663,null,null,null,null,null,null,null,null,null,null,null,0.875,null,null,null,null,null,null,null,null,null,null,null,0.875]
[null,null,null,null,null,null,null,null,null,null,null,null,null,null,null,null,null,null,null,null,null,null,null,null,null,null,null,null,null,null,null,null,null,null,"01:00:00",null,null,null,null,null,null,null,null,null,null,null,"01:00:00",null,null,null,null,null,null,null,null,null,null,null,"01:00:00",null,null,null,null,null,null,null,null,null,null,null,"01:00:00",null,null,null,null,null,null,null,null,null,null,null,"01:00:00",null,null,null,null,null,null,null,null,null,null,null,"01:00:00",null,null,null,null,null,null,null,null,null,null,null,"01:00:00",null,null,null,null,null,null,null,null,null,null,null,"01:00:00",null,null,null,null,null,null,null,null,null,null,null,"01:00:00",null,null,null,null,null,null,null,null,null,null,null,"01:00:00",null,null,null,null,null,null,null,null,null,null,null,"01:00:00",null,null,null,null,null,null,null,null,null,null,null,"01:00:00",null,null,null,null,null,null,null,null,null,null,null,"01:00:00",null,null,null,null,null,null,null,null,null,null,null,"01:00:00",null,null,null,null,null,null,null,null,null,null,null,"01:00:00"]
[null,null,null,null,null,null,null,null,null,null,null,null,null,null,null,null,null,null,null,null,null,null,null,null,null,null,null,null,{"$f":"IFERROR(AC42-AC41-AC43,0)","v":"00:00:00"},null,null,null,null,null,{"$f":"IFERROR(AI42-AI41-AI43,0)","v":"12:00:00"},null,null,null,null,null,{"$f":"IFERROR(AO42-AO41-AO43,0)","v":"00:00:00"},null,null,null,null,null,{"$f":"IFERROR(AU42-AU41-AU43,0)","v":"12:00:00"},null,null,null,null,null,{"$f":"IFERROR(BA42-BA41-BA43,0)","v":"00:00:00"},null,null,null,null,null,{"$f":"IFERROR(BG42-BG41-BG43,0)","v":"12:00:00"},null,null,null,null,null,{"$f":"IFERROR(BM42-BM41-BM43,0)","v":"00:00:00"},null,null,null,null,null,{"$f":"IFERROR(BS42-BS41-BS43,0)","v":"12:00:00"},null,null,null,null,null,{"$f":"IFERROR(BY42-BY41-BY43,0)","v":"00:00:00"},null,null,null,null,null,{"$f":"IFERROR(CE42-CE41-CE43,0)","v":"12:00:00"},null,null,null,null,null,{"$f":"IFERROR(CK42-CK41-CK43,0)","v":"00:00:00"},null,null,null,null,null,{"$f":"IFERROR(CQ42-CQ41-CQ43,0)","v":"13:00:00"},null,null,null,null,null,{"$f":"IFERROR(CW42-CW41-CW43,0)","v":"00:00:00"},null,null,null,null,null,{"$f":"IFERROR(DC42-DC41-DC43,0)","v":0.50000000000000011},null,null,null,null,null,{"$f":"IFERROR(DI42-DI41-DI43,0)","v":"00:00:00"},null,null,null,null,null,{"$f":"IFERROR(DO42-DO41-DO43,0)","v":"12:00:00"},null,null,null,null,null,{"$f":"IFERROR(DU42-DU41-DU43,0)","v":"00:00:00"},null,null,null,null,null,{"$f":"IFERROR(EA42-EA41-EA43,0)","v":"12:00:00"},null,null,null,null,null,{"$f":"IFERROR(EG42-EG41-EG43,0)","v":"00:00:00"},null,null,null,null,null,{"$f":"IFERROR(EM42-EM41-EM43,0)","v":"13:00:00"},null,null,null,null,null,{"$f":"IFERROR(ES42-ES41-ES43,0)","v":"00:00:00"},null,null,null,null,null,{"$f":"IFERROR(EY42-EY41-EY43,0)","v":"12:00:00"},null,null,null,null,null,{"$f":"IFERROR(FE42-FE41-FE43,0)","v":"00:00:00"},null,null,null,null,null,{"$f":"IFERROR(FK42-FK41-FK43,0)","v":0.50000000000000011},null,null,null,null,null,{"$f":"IFERROR(FQ42-FQ41-FQ43,0)","v":"00:00:00"},null,null,null,null,null,{"$f":"IFERROR(FW42-FW41-FW43,0)","v":"13:00:00"},null,null,null,null,null,{"$f":"IFERROR(GC42-GC41-GC43,0)","v":"00:00:00"},null,null,null,null,null,{"$f":"IFERROR(GI42-GI41-GI43,0)","v":"12:00:00"},null,null,null,null,null,{"$f":"IFERROR(GO42-GO41-GO43,0)","v":"00:00:00"},null,null,null,null,null,{"$f":"IFERROR(GU42-GU41-GU43,0)","v":"12:00:00"},null,null,null,null,null,{"$f":"IFERROR(HA42-HA41-HA43,0)","v":"00:00:00"},null,null,null,null,null,null,null,null,null,null,null,null,null,null,null,null,null,null,null,null,null,null,null,{"$f":"SUM(AC44:HE44)","v":7.6250000000000009}]
[]
[null,null,null,null,null,null,null,null,null,null,null,null,null,null,null,null,null,null,null,null,null,null,null,null,null,null,null,null,null,null,null,null,null,null,null,null,null,null,null,null,null,null,null,null,null,null,null,null,null,null,null,null,null,null,null,null,null,null,null,null,null,null,null,null,null,null,null,null,null,null,null,null,null,null,null,null,null,null,null,null,null,null,null,null,null,null,null,null,null,null,null,null,null,null,null,null,null,null,null,null,null,null,null,null,null,null,null,null,null,null,null,null,null,null,null,null,null,null,null,null,null,null,null,null,null,null,null,null,null,null,null,null,null,null,null,null,null,null,null,null,null,null,null,null,null,null,null,null,null,null,null,null,null,null,null,null,null,null,null,null,null,null,null,null,null,null,null,null,null,null,null,null,null,null,null,null,null,null,null,null,null,null,null,null,null,null,null,null,null,null,null,null,null,null,null,null,null,null,null,null,null,null,null,null,null,null,null,null,null,null,null,null,null,null,null,null,null,null,null,null,null,null,null,null,null,null,null,null,null,null,null,null,null,{"$f":"VLOOKUP($HY$17,'[4]производственный календарь '!$B$2:$D$13,3,0)","v":23},{"$f":"VLOOKUP($HY$17,'[4]производственный календарь '!$B$2:$D$13,2,0)","v":183}]
[null,5,null,null,null,null,null,null,null,null,null,null,null,null,null,null,null,null,null,null,null,null,null,null,null,null,null,null,0.33333333333333331,null,null,null,null,null,null,null,null,null,null,null,0.33333333333333331,null,null,null,null,null,null,null,null,null,null,null,0.33333333333333331,null,null,null,null,null,null,null,null,null,null,null,0.33333333333333331,null,null,null,null,null,null,null,null,null,null,null,0.33333333333333331,null,null,null,null,null,null,null,null,null,null,null,0.33333333333333331,null,null,null,null,null,null,null,null,null,null,null,0.33333333333333331,null,null,null,null,null,null,null,null,null,null,null,0.33333333333333331,null,null,null,null,null,null,null,null,null,null,null,0.33333333333333331,null,null,null,null,null,null,null,null,null,null,null,0.33333333333333331,null,null,null,null,null,null,null,null,null,null,null,0.33333333333333331,null,null,null,null,null,null,null,null,null,null,null,0.33333333333333331,null,null,null,null,null,null,null,null,null,null,null,0.33333333333333331,null,null,null,null,null,null,null,null,null,null,null,0.33333333333333331,null,null,null,null,null,null,null,null,null,null,null,0.33333333333333331,null,null,null,null,null,null,null,null,null,null,null,0.33333333333333331,null,null,null,null,null,{"$f":"COUNT(AC47:HF47)","v":16},null,null,null,null,null,null,null,null,null,null,null,null,null,null,null,null,null,{"$f":"SUM(IFERROR(AC48:HF48-AC47:HF47-AC49:HF49,0))","v":7.625}]
[null,null,null,null,null,null,null,null,null,null,null,null,null,null,null,null,null,null,null,null,null,null,null,null,null,null,null,null,0.83333333333333337,null,null,null,null,null,null,null,null,null,null,null,0.83333333333333337,null,null,null,null,null,null,null,null,null,null,null,0.875,null,null,null,null,null,null,null,null,null,null,null,0.83333333333333337,null,null,null,null,null,null,null,null,null,null,null,0.83333333333333337,null,null,null,null,null,null,null,null,null,null,null,0.83333333333333337,null,null,null,null,null,null,null,null,null,null,null,0.875,null,null,null,null,null,null,null,null,null,null,null,0.83333333333333337,null,null,null,null,null,null,null,null,null,null,null,0.83333333333333337,null,null,null,null,null,null,null,null,null,null,null,0.875,null,null,null,null,null,null,null,null,null,null,null,0.83333333333333337,null,null,null,null,null,null,null,null,null,null,null,0.83333333333333337,null,null,null,null,null,null,null,null,null,null,null,0.875,null,null,null,null,null,null,null,null,null,null,null,0.875,null,null,null,null,null,null,null,null,null,null,null,0.875,null,null,null,null,null,null,null,null,null,null,null,0.875]
[null,null,null,null,null,null,null,null,null,null,null,null,null,null,null,null,null,null,null,null,null,null,null,null,null,null,null,null,"01:00:00",null,null,null,null,null,null,null,null,null,null,null,"01:00:00",null,null,null,null,null,null,null,null,null,null,null,"01:00:00",null,null,null,null,null,null,null,null,null,null,null,"01:00:00",null,null,null,null,null,null,null,null,null,null,null,"01:00:00",null,null,null,null,null,null,null,null,null,null,null,"01:00:00",null,null,null,null,null,null,null,null,null,null,null,"01:00:00",null,null,null,null,null,null,null,null,null,null,null,"01:00:00",null,null,null,null,null,null,null,null,null,null,null,"01:00:00",null,null,null,null,null,null,null,null,null,null,null,"01:00:00",null,null,null,null,null,null,null,null,null,null,null,"01:00:00",null,null,null,null,null,null,null,null,null,null,null,"01:00:00",null,null,null,null,null,null,null,null,null,null,null,"01:00:00",null,null,null,null,null,null,null,null,null,null,null,"01:00:00",null,null,null,null,null,null,null,null,null,null,null,"01:00:00",null,null,null,null,null,null,null,null,null,null,null,"01:00:00",null,null,null,null,null,null,null,null,null,null,null,null,null,null,null,null,null,null,null,null,null,null,null,null,null,null,null,"модуль 5",3]
[null,null,null,null,null,null,null,null,null,null,null,null,null,null,null,null,null,null,null,null,null,null,null,null,null,null,null,null,{"$f":"IFERROR(AC48-AC47-AC49,0)","v":"11:00:00"},null,null,null,null,null,{"$f":"IFERROR(AI48-AI47-AI49,0)","v":"00:00:00"},null,null,null,null,null,{"$f":"IFERROR(AO48-AO47-AO49,0)","v":"11:00:00"},null,null,null,null,null,{"$f":"IFERROR(AU48-AU47-AU49,0)","v":"00:00:00"},null,null,null,null,null,{"$f":"IFERROR(BA48-BA47-BA49,0)","v":"12:00:00"},null,null,null,null,null,{"$f":"IFERROR(BG48-BG47-BG49,0)","v":"00:00:00"},null,null,null,null,null,{"$f":"IFERROR(BM48-BM47-BM49,0)","v":"11:00:00"},null,null,null,null,null,{"$f":"IFERROR(BS48-BS47-BS49,0)","v":"00:00:00"},null,null,null,null,null,{"$f":"IFERROR(BY48-BY47-BY49,0)","v":"11:00:00"},null,null,null,null,null,{"$f":"IFERROR(CE48-CE47-CE49,0)","v":"00:00:00"},null,null,null,null,null,{"$f":"IFERROR(CK48-CK47-CK49,0)","v":"11:00:00"},null,null,null,null,null,{"$f":"IFERROR(CQ48-CQ47-CQ49,0)","v":"00:00:00"},null,null,null,null,null,{"$f":"IFERROR(CW48-CW47-CW49,0)","v":"12:00:00"},null,null,null,null,null,{"$f":"IFERROR(DC48-DC47-DC49,0)","v":"00:00:00"},null,null,null,null,null,{"$f":"IFERROR(DI48-DI47-DI49,0)","v":"11:00:00"},null,null,null,null,null,{"$f":"IFERROR(DO48-DO47-DO49,0)","v":"00:00:00"},null,null,null,null,null,{"$f":"IFERROR(DU48-DU47-DU49,0)","v":"11:00:00"},null,null,null,null,null,{"$f":"IFERROR(EA48-EA47-EA49,0)","v":"00:00:00"},null,null,null,null,null,{"$f":"IFERROR(EG48-EG47-EG49,0)","v":"12:00:00"},null,null,null,null,null,{"$f":"IFERROR(EM48-EM47-EM49,0)","v":"00:00:00"},null,null,null,null,null,{"$f":"IFERROR(ES48-ES47-ES49,0)","v":"11:00:00"},null,null,null,null,null,{"$f":"IFERROR(EY48-EY47-EY49,0)","v":"00:00:00"},null,null,null,null,null,{"$f":"IFERROR(FE48-FE47-FE49,0)","v":"11:00:00"},null,null,null,null,null,{"$f":"IFERROR(FK48-FK47-FK49,0)","v":"00:00:00"},null,null,null,null,null,{"$f":"IFERROR(FQ48-FQ47-FQ49,0)","v":"12:00:00"},null,null,null,null,null,{"$f":"IFERROR(FW48-FW47-FW49,0)","v":"00:00:00"},null,null,null,null,null,{"$f":"IFERROR(GC48-GC47-GC49,0)","v":"12:00:00"},null,null,null,null,null,{"$f":"IFERROR(GI48-GI47-GI49,0)","v":"00:00:00"},null,null,null,null,null,{"$f":"IFERROR(GO48-GO47-GO49,0)","v":"12:00:00"},null,null,null,null,null,{"$f":"IFERROR(GU48-GU47-GU49,0)","v":"00:00:00"},null,null,null,null,null,{"$f":"IFERROR(HA48-HA47-HA49,0)","v":"12:00:00"},null,null,null,null,null,null,null,null,null,null,null,null,null,null,null,null,null,null,null,null,null,null,null,{"$f":"SUM(AC50:HE50)","v":7.625}]
[]
[null,null,null,null,null,null,null,null,null,null,null,null,null,null,null,null,null,null,null,null,null,null,null,null,null,null,null,null,null,null,null,null,null,null,null,null,null,null,null,null,null,null,null,null,null,null,null,null,null,null,null,null,null,null,null,null,null,null,null,null,null,null,null,null,null,null,null,null,null,null,null,null,null,null,null,null,null,null,null,null,null,null,null,null,null,null,null,null,null,null,null,null,null,null,null,null,null,null,null,null,null,null,null,null,null,null,null,null,null,null,null,null,null,null,null,null,null,null,null,null,null,null,null,null,null,null,null,null,null,null,null,null,null,null,null,null,null,null,null,null,null,null,null,null,null,null,null,null,null,null,null,null,null,null,null,null,null,null,null,null,null,null,null,null,null,null,null,null,null,null,null,null,null,null,null,null,null,null,null,null,null,null,null,null,null,null,null,null,null,null,null,null,null,null,null,null,null,null,null,null,null,null,null,null,null,null,null,null,null,null,null,null,null,null,null,null,null,null,null,null,null,null,null,null,null,null,null,null,null,null,null,null,null,{"$f":"VLOOKUP($HY$17,'[4]производственный календарь '!$B$2:$D$13,3,0)","v":23},{"$f":"VLOOKUP($HY$17,'[4]производственный календарь '!$B$2:$D$13,2,0)","v":183}]
[null,6,null,null,null,null,null,null,null,null,null,null,null,null,null,null,null,null,null,null,null,null,null,null,null,null,null,null,null,null,null,null,null,null,0.33333333333333331,null,null,null,null,null,null,null,null,null,null,null,0.33333333333333331,null,null,null,null,null,null,null,null,null,null,null,0.33333333333333331,null,null,null,null,null,null,null,null,null,null,null,0.33333333333333331,null,null,null,null,null,null,null,null,null,null,null,0.33333333333333331,null,null,null,null,null,null,null,null,null,null,null,0.33333333333333331,null,null,null,null,null,null,null,null,null,null,null,0.33333333333333331,null,null,null,null,null,null,null,null,null,null,null,0.33333333333333331,null,null,null,null,null,null,null,null,null,null,null,0.33333333333333331,null,null,null,null,null,null,null,null,null,null,null,0.33333333333333331,null,null,null,null,null,null,null,null,null,null,null,0.33333333333333331,null,null,null,null,null,null,null,null,null,null,null,0.33333333333333331,null,null,null,null,null,null,null,null,null,null,null,0.33333333333333331,null,null,null,null,null,null,null,null,null,null,null,0.33333333333333331,null,null,null,null,null,null,null,null,null,null,null,0.33333333333333331,null,null,null,null,null,null,null,null,null,null,null,{"$f":"COUNT(AC53:HF53)","v":15},null,null,null,null,null,null,null,null,null,null,null,null,null,null,null,null,null,{"$f":"SUM(IFERROR(AC54:HF54-AC53:HF53-AC55:HF55,0))","v":7.6250000000000009}]
[null,null,null,null,null,null,null,null,null,null,null,null,null,null,null,null,null,null,null,null,null,null,null,null,null,null,null,null,null,null,null,null,null,null,0.875,null,null,null,null,null,null,null,null,null,null,null,0.875,null,null,null,null,null,null,null,null,null,null,null,0.875,null,null,null,null,null,null,null,null,null,null,null,0.875,null,null,null,null,null,null,null,null,null,null,null,0.875,null,null,null,null,null,null,null,null,null,null,null,0.91666666666666663,null,null,null,null,null,null,null,null,null,null,null,0.875,null,null,null,null,null,null,null,null,null,null,null,0.875,null,null,null,null,null,null,null,null,null,null,null,0.875,null,null,null,null,null,null,null,null,null,null,null,0.91666666666666663,null,null,null,null,null,null,null,null,null,null,null,0.875,null,null,null,null,null,null,null,null,null,null,null,0.875,null,null,null,null,null,null,null,null,null,null,null,0.91666666666666663,null,null,null,null,null,null,null,null,null,null,null,0.875,null,null,null,null,null,null,null,null,null,null,null,0.875]
[null,null,null,null,null,null,null,null,null,null,null,null,null,null,null,null,null,null,null,null,null,null,null,null,null,null,null,null,null,null,null,null,null,null,"01:00:00",null,null,null,null,null,null,null,null,null,null,null,"01:00:00",null,null,null,null,null,null,null,null,null,null,null,"01:00:00",null,null,null,null,null,null,null,null,null,null,null,"01:00:00",null,null,null,null,null,null,null,null,null,null,null,"01:00:00",null,null,null,null,null,null,null,null,null,null,null,"01:00:00",null,null,null,null,null,null,null,null,null,null,null,"01:00:00",null,null,null,null,null,null,null,null,null,null,null,"01:00:00",null,null,null,null,null,null,null,null,null,null,null,"01:00:00",null,null,null,null,null,null,null,null,null,null,null,"01:00:00",null,null,null,null,null,null,null,null,null,null,null,"01:00:00",null,null,null,null,null,null,null,null,null,null,null,"01:00:00",null,null,null,null,null,null,null,null,null,null,null,"01:00:00",null,null,null,null,null,null,null,null,null,null,null,"01:00:00",null,null,null,null,null,null,null,null,null,null,null,"01:00:00"]
[null,null,null,null,null,null,null,null,null,null,null,null,null,null,null,null,null,null,null,null,null,null,null,null,null,null,null,null,{"$f":"IFERROR(AC54-AC53-AC55,0)","v":"00:00:00"},null,null,null,null,null,{"$f":"IFERROR(AI54-AI53-AI55,0)","v":"12:00:00"},null,null,null,null,null,{"$f":"IFERROR(AO54-AO53-AO55,0)","v":"00:00:00"},null,null,null,null,null,{"$f":"IFERROR(AU54-AU53-AU55,0)","v":"12:00:00"},null,null,null,null,null,{"$f":"IFERROR(BA54-BA53-BA55,0)","v":"00:00:00"},null,null,null,null,null,{"$f":"IFERROR(BG54-BG53-BG55,0)","v":"12:00:00"},null,null,null,null,null,{"$f":"IFERROR(BM54-BM53-BM55,0)","v":"00:00:00"},null,null,null,null,null,{"$f":"IFERROR(BS54-BS53-BS55,0)","v":"12:00:00"},null,null,null,null,null,{"$f":"IFERROR(BY54-BY53-BY55,0)","v":"00:00:00"},null,null,null,null,null,{"$f":"IFERROR(CE54-CE53-CE55,0)","v":"12:00:00"},null,null,null,null,null,{"$f":"IFERROR(CK54-CK53-CK55,0)","v":"00:00:00"},null,null,null,null,null,{"$f":"IFERROR(CQ54-CQ53-CQ55,0)","v":"13:00:00"},null,null,null,null,null,{"$f":"IFERROR(CW54-CW53-CW55,0)","v":"00:00:00"},null,null,null,null,null,{"$f":"IFERROR(DC54-DC53-DC55,0)","v":"12:00:00"},null,null,null,null,null,{"$f":"IFERROR(DI54-DI53-DI55,0)","v":"00:00:00"},null,null,null,null,null,{"$f":"IFERROR(DO54-DO53-DO55,0)","v":"12:00:00"},null,null,null,null,null,{"$f":"IFERROR(DU54-DU53-DU55,0)","v":"00:00:00"},null,null,null,null,null,{"$f":"IFERROR(EA54-EA53-EA55,0)","v":"12:00:00"},null,null,null,null,null,{"$f":"IFERROR(EG54-EG53-EG55,0)","v":"00:00:00"},null,null,null,null,null,{"$f":"IFERROR(EM54-EM53-EM55,0)","v":"13:00:00"},null,null,null,null,null,{"$f":"IFERROR(ES54-ES53-ES55,0)","v":"00:00:00"},null,null,null,null,null,{"$f":"IFERROR(EY54-EY53-EY55,0)","v":"12:00:00"},null,null,null,null,null,{"$f":"IFERROR(FE54-FE53-FE55,0)","v":"00:00:00"},null,null,null,null,null,{"$f":"IFERROR(FK54-FK53-FK55,0)","v":"12:00:00"},null,null,null,null,null,{"$f":"IFERROR(FQ54-FQ53-FQ55,0)","v":"00:00:00"},null,null,null,null,null,{"$f":"IFERROR(FW54-FW53-FW55,0)","v":"13:00:00"},null,null,null,null,null,{"$f":"IFERROR(GC54-GC53-GC55,0)","v":"00:00:00"},null,null,null,null,null,{"$f":"IFERROR(GI54-GI53-GI55,0)","v":"12:00:00"},null,null,null,null,null,{"$f":"IFERROR(GO54-GO53-GO55,0)","v":"00:00:00"},null,null,null,null,null,{"$f":"IFERROR(GU54-GU53-GU55,0)","v":"12:00:00"},null,null,null,null,null,{"$f":"IFERROR(HA54-HA53-HA55,0)","v":"00:00:00"},null,null,null,null,null,null,null,null,null,null,null,null,null,null,null,null,null,null,null,null,null,null,null,{"$f":"SUM(AC56:HE56)","v":7.6250000000000009}]
[null,null,null,null,null,null,null,null,null,null,null,null,null,null,null,null,null,null,null,null,null,null,null,null,null,null,null,null,null,null,null,null,null,null,null,null,null,null,null,null,null,null,null,null,null,null,null,null,null,null,null,null,null,null,null,null,null,null,null,null,null,null,null,null,null,null,null,null,null,null,null,null,null,null,null,null,null,null,null,null,null,null,null,null,null,null,null,null,null,null,null,null,null,null,null,null,null,null,null,null,null,null,null,null,null,null,null,null,null,null,null,null,null,null,null,null,null,null,null,null,null,null,null,null,null,null,null,null,null,null,null,null,null,null,null,null,null,null,null,null,null,null,null,null,null,null,null,null,null,null,null,null,null,null,null,null,null,null,null,null,null,null,null,null,null,null,null,null,null,null,null,null,null,null,null,null,null,null,null,null,null,null,null,null,null,null,null,null,null,null,null,null,null,null,null,null,null,null,null,null,null,null,null,null,null,null,null,null,null,null,null,null,null,null,null,null,null,null,null,null,null,null,null,null,null,null,null,null,null,null,null,null,{"$f":"SUM(AC57:HF57)","v":"00:00:00"}]
[null,null,null,null,null,null,null,null,null,null,null,null,null,null,null,null,null,null,null,null,null,null,null,null,null,null,null,null,null,null,null,null,null,null,null,null,null,null,null,null,null,null,null,null,null,null,null,null,null,null,null,null,null,null,null,null,null,null,null,null,null,null,null,null,null,null,null,null,null,null,null,null,null,null,null,null,null,null,null,null,null,null,null,null,null,null,null,null,null,null,null,null,null,null,null,null,null,null,null,null,null,null,null,null,null,null,null,null,null,null,null,null,null,null,null,null,null,null,null,null,null,null,null,null,null,null,null,null,null,null,null,null,null,null,null,null,null,null,null,null,null,null,null,null,null,null,null,null,null,null,null,null,null,null,null,null,null,null,null,null,null,null,null,null,null,null,null,null,null,null,null,null,null,null,null,null,null,null,null,null,null,null,null,null,null,null,null,null,null,null,null,null,null,null,null,null,null,null,null,null,null,null,null,null,null,null,null,null,null,null,null,null,null,null,null,null,null,null,null,null,null,null,null,null,null,null,null,null,null,null,null,null,null,{"$f":"VLOOKUP($HY$17,'[4]производственный календарь '!$B$2:$D$13,3,0)","v":23},{"$f":"VLOOKUP($HY$17,'[4]производственный календарь '!$B$2:$D$13,2,0)","v":183}]
[null,7,null,null,null,null,null,null,null,null,null,null,null,null,null,null,null,null,null,null,null,null,null,null,null,null,null,null,0.33333333333333331,null,null,null,null,null,null,null,null,null,null,null,0.33333333333333331,null,null,null,null,null,null,null,null,null,null,null,0.33333333333333331,null,null,null,null,null,null,null,null,null,null,null,0.33333333333333331,null,null,null,null,null,null,null,null,null,null,null,0.33333333333333331,null,null,null,null,null,null,null,null,null,null,null,0.33333333333333331,null,null,null,null,null,null,null,null,null,null,null,0.33333333333333331,null,null,null,null,null,null,null,null,null,null,null,0.33333333333333331,null,null,null,null,null,null,null,null,null,null,null,0.33333333333333331,null,null,null,null,null,null,null,null,null,null,null,0.33333333333333331,null,null,null,null,null,null,null,null,null,null,null,0.33333333333333331,null,null,null,null,null,null,null,null,null,null,null,0.33333333333333331,null,null,null,null,null,null,null,null,null,null,null,0.33333333333333331,null,null,null,null,null,null,null,null,null,null,null,0.33333333333333331,null,null,null,null,null,null,null,null,null,null,null,0.33333333333333331,null,null,null,null,null,null,null,null,null,null,null,0.33333333333333331,null,null,null,null,null,{"$f":"COUNT(AC59:HF59)","v":16},null,null,null,null,null,null,null,null,null,null,null,null,null,null,null,null,null,{"$f":"SUM(IFERROR(AC60:HF60-AC59:HF59-AC61:HF61,0))","v":7.625}]
[null,null,null,null,null,null,null,null,null,null,null,null,null,null,null,null,null,null,null,null,null,null,null,null,null,null,null,null,0.83333333333333337,null,null,null,null,null,null,null,null,null,null,null,0.83333333333333337,null,null,null,null,null,null,null,null,null,null,null,0.875,null,null,null,null,null,null,null,null,null,null,null,0.83333333333333337,null,null,null,null,null,null,null,null,null,null,null,0.83333333333333337,null,null,null,null,null,null,null,null,null,null,null,0.83333333333333337,null,null,null,null,null,null,null,null,null,null,null,0.875,null,null,null,null,null,null,null,null,null,null,null,0.83333333333333337,null,null,null,null,null,null,null,null,null,null,null,0.83333333333333337,null,null,null,null,null,null,null,null,null,null,null,0.875,null,null,null,null,null,null,null,null,null,null,null,0.83333333333333337,null,null,null,null,null,null,null,null,null,null,null,0.83333333333333337,null,null,null,null,null,null,null,null,null,null,null,0.875,null,null,null,null,null,null,null,null,null,null,null,0.875,null,null,null,null,null,null,null,null,null,null,null,0.875,null,null,null,null,null,null,null,null,null,null,null,0.875]
[null,null,null,null,null,null,null,null,null,null,null,null,null,null,null,null,null,null,null,null,null,null,null,null,null,null,null,null,"01:00:00",null,null,null,null,null,null,null,null,null,null,null,"01:00:00",null,null,null,null,null,null,null,null,null,null,null,"01:00:00",null,null,null,null,null,null,null,null,null,null,null,"01:00:00",null,null,null,null,null,null,null,null,null,null,null,"01:00:00",null,null,null,null,null,null,null,null,null,null,null,"01:00:00",null,null,null,null,null,null,null,null,null,null,null,"01:00:00",null,null,null,null,null,null,null,null,null,null,null,"01:00:00",null,null,null,null,null,null,null,null,null,null,null,"01:00:00",null,null,null,null,null,null,null,null,null,null,null,"01:00:00",null,null,null,null,null,null,null,null,null,null,null,"01:00:00",null,null,null,null,null,null,null,null,null,null,null,"01:00:00",null,null,null,null,null,null,null,null,null,null,null,"01:00:00",null,null,null,null,null,null,null,null,null,null,null,"01:00:00",null,null,null,null,null,null,null,null,null,null,null,"01:00:00",null,null,null,null,null,null,null,null,null,null,null,"01:00:00"]
[null,null,null,null,null,null,null,null,null,null,null,null,null,null,null,null,null,null,null,null,null,null,null,null,null,null,null,null,{"$f":"IFERROR(AC60-AC59-AC61,0)","v":"11:00:00"},null,null,null,null,null,{"$f":"IFERROR(AI60-AI59-AI61,0)","v":"00:00:00"},null,null,null,null,null,{"$f":"IFERROR(AO60-AO59-AO61,0)","v":"11:00:00"},null,null,null,null,null,{"$f":"IFERROR(AU60-AU59-AU61,0)","v":"00:00:00"},null,null,null,null,null,{"$f":"IFERROR(BA60-BA59-BA61,0)","v":"12:00:00"},null,null,null,null,null,{"$f":"IFERROR(BG60-BG59-BG61,0)","v":"00:00:00"},null,null,null,null,null,{"$f":"IFERROR(BM60-BM59-BM61,0)","v":"11:00:00"},null,null,null,null,null,{"$f":"IFERROR(BS60-BS59-BS61,0)","v":"00:00:00"},null,null,null,null,null,{"$f":"IFERROR(BY60-BY59-BY61,0)","v":"11:00:00"},null,null,null,null,null,{"$f":"IFERROR(CE60-CE59-CE61,0)","v":"00:00:00"},null,null,null,null,null,{"$f":"IFERROR(CK60-CK59-CK61,0)","v":"11:00:00"},null,null,null,null,null,{"$f":"IFERROR(CQ60-CQ59-CQ61,0)","v":"00:00:00"},null,null,null,null,null,{"$f":"IFERROR(CW60-CW59-CW61,0)","v":"12:00:00"},null,null,null,null,null,{"$f":"IFERROR(DC60-DC59-DC61,0)","v":"00:00:00"},null,null,null,null,null,{"$f":"IFERROR(DI60-DI59-DI61,0)","v":"11:00:00"},null,null,null,null,null,{"$f":"IFERROR(DO60-DO59-DO61,0)","v":"00:00:00"},null,null,null,null,null,{"$f":"IFERROR(DU60-DU59-DU61,0)","v":0.45833333333333331},null,null,null,null,null,{"$f":"IFERROR(EA60-EA59-EA61,0)","v":"00:00:00"},null,null,null,null,null,{"$f":"IFERROR(EG60-EG59-EG61,0)","v":"12:00:00"},null,null,null,null,null,{"$f":"IFERROR(EM60-EM59-EM61,0)","v":"00:00:00"},null,null,null,null,null,{"$f":"IFERROR(ES60-ES59-ES61,0)","v":"11:00:00"},null,null,null,null,null,{"$f":"IFERROR(EY60-EY59-EY61,0)","v":"00:00:00"},null,null,null,null,null,{"$f":"IFERROR(FE60-FE59-FE61,0)","v":"11:00:00"},null,null,null,null,null,{"$f":"IFERROR(FK60-FK59-FK61,0)","v":"00:00:00"},null,null,null,null,null,{"$f":"IFERROR(FQ60-FQ59-FQ61,0)","v":"12:00:00"},null,null,null,null,null,{"$f":"IFERROR(FW60-FW59-FW61,0)","v":"00:00:00"},null,null,null,null,null,{"$f":"IFERROR(GC60-GC59-GC61,0)","v":"12:00:00"},null,null,null,null,null,{"$f":"IFERROR(GI60-GI59-GI61,0)","v":"00:00:00"},null,null,null,null,null,{"$f":"IFERROR(GO60-GO59-GO61,0)","v":"12:00:00"},null,null,null,null,null,{"$f":"IFERROR(GU60-GU59-GU61,0)","v":"00:00:00"},null,null,null,null,null,{"$f":"IFERROR(HA60-HA59-HA61,0)","v":"12:00:00"},null,null,null,null,null,null,null,null,null,null,null,null,null,null,null,null,null,null,null,null,null,null,null,{"$f":"SUM(AC62:HE62)","v":7.625}]
[]
[null,null,null,null,null,null,null,null,null,null,null,null,null,null,null,null,null,null,null,null,null,null,null,null,null,null,null,null,null,null,null,null,null,null,null,null,null,null,null,null,null,null,null,null,null,null,null,null,null,null,null,null,null,null,null,null,null,null,null,null,null,null,null,null,null,null,null,null,null,null,null,null,null,null,null,null,null,null,null,null,null,null,null,null,null,null,null,null,null,null,null,null,null,null,null,null,null,null,null,null,null,null,null,null,null,null,null,null,null,null,null,null,null,null,null,null,null,null,null,null,null,null,null,null,null,null,null,null,null,null,null,null,null,null,null,null,null,null,null,null,null,null,null,null,null,null,null,null,null,null,null,null,null,null,null,null,null,null,null,null,null,null,null,null,null,null,null,null,null,null,null,null,null,null,null,null,null,null,null,null,null,null,null,null,null,null,null,null,null,null,null,null,null,null,null,null,null,null,null,null,null,null,null,null,null,null,null,null,null,null,null,null,null,null,null,null,null,null,null,null,null,null,null,null,null,null,null,null,null,null,null,null,null,{"$f":"VLOOKUP($HY$17,'[4]производственный календарь '!$B$2:$D$13,3,0)","v":23},{"$f":"VLOOKUP($HY$17,'[4]производственный календарь '!$B$2:$D$13,2,0)","v":183}]
[null,8,null,null,null,null,null,null,null,null,null,null,null,null,null,null,null,null,null,null,null,null,null,null,null,null,null,null,"В",null,null,null,null,null,0.41666666666666669,null,null,null,null,null,0.41666666666666669,null,null,null,null,null,0.41666666666666669,null,null,null,null,null,0.41666666666666669,null,null,null,null,null,0.41666666666666669,null,null,null,null,null,0.41666666666666669,null,null,null,null,null,"В",null,null,null,null,null,0.41666666666666669,null,null,null,null,null,0.41666666666666669,null,null,null,null,null,0.41666666666666669,null,null,null,null,null,0.41666666666666669,null,null,null,null,null,0.41666666666666669,null,null,null,null,null,0.41666666666666669,null,null,null,null,null,"В",null,null,null,null,null,0.41666666666666669,null,null,null,null,null,0.41666666666666669,null,null,null,null,null,0.41666666666666669,null,null,null,null,null,0.41666666666666669,null,null,null,null,null,0.41666666666666669,null,null,null,null,null,0.41666666666666669,null,null,null,null,null,"В",null,null,null,null,null,0.41666666666666669,null,null,null,null,null,0.41666666666666669,null,null,null,null,null,0.41666666666666669,null,null,null,null,null,0.41666666666666669,null,null,null,null,null,0.41666666666666669,null,null,null,null,null,0.41666666666666669,null,null,null,null,null,0.41666666666666669,null,null,null,null,null,"В",null,null,null,null,null,0.41666666666666669,null,null,null,null,null,{"$f":"COUNT(AC65:HF65)","v":26},null,null,null,null,null,null,null,null,null,null,null,null,null,null,null,null,null,{"$f":"SUM(IFERROR(AC66:HF66-AC65:HF65-AC67:HF67,0))","v":7.6249999999999973}]
[null,null,null,null,null,null,null,null,null,null,null,null,null,null,null,null,null,null,null,null,null,null,null,null,null,null,null,null,"В",null,null,null,null,null,0.75,null,null,null,null,null,0.75,null,null,null,null,null,0.75,null,null,null,null,null,0.75,null,null,null,null,null,0.75,null,null,null,null,null,0.66666666666666663,null,null,null,null,null,"В",null,null,null,null,null,0.75,null,null,null,null,null,0.75,null,null,null,null,null,0.75,null,null,null,null,null,0.75,null,null,null,null,null,0.75,null,null,null,null,null,0.66666666666666663,null,null,null,null,null,"В",null,null,null,null,null,0.75,null,null,null,null,null,0.75,null,null,null,null,null,0.75,null,null,null,null,null,0.75,null,null,null,null,null,0.75,null,null,null,null,null,0.66666666666666663,null,null,null,null,null,"В",null,null,null,null,null,0.75,null,null,null,null,null,0.79166666666666663,null,null,null,null,null,0.79166666666666663,null,null,null,null,null,0.79166666666666663,null,null,null,null,null,0.79166666666666663,null,null,null,null,null,0.79166666666666663,null,null,null,null,null,0.79166666666666663,null,null,null,null,null,"В",null,null,null,null,null,0.79166666666666663]
[null,null,null,null,null,null,null,null,null,null,null,null,null,null,null,null,null,null,null,null,null,null,null,null,null,null,null,null,"В",null,null,null,null,null,"01:00:00",null,null,null,null,null,"01:00:00",null,null,null,null,null,"01:00:00",null,null,null,null,null,"01:00:00",null,null,null,null,null,"01:00:00",null,null,null,null,null,"01:00:00",null,null,null,null,null,"В",null,null,null,null,null,"01:00:00",null,null,null,null,null,"01:00:00",null,null,null,null,null,"01:00:00",null,null,null,null,null,"01:00:00",null,null,null,null,null,"01:00:00",null,null,null,null,null,"01:00:00",null,null,null,null,null,"В",null,null,null,null,null,"01:00:00",null,null,null,null,null,"01:00:00",null,null,null,null,null,"01:00:00",null,null,null,null,null,"01:00:00",null,null,null,null,null,"01:00:00",null,null,null,null,null,"01:00:00",null,null,null,null,null,"В",null,null,null,null,null,"01:00:00",null,null,null,null,null,"01:00:00",null,null,null,null,null,"01:00:00",null,null,null,null,null,"01:00:00",null,null,null,null,null,"01:00:00",null,null,null,null,null,"01:00:00",null,null,null,null,null,"01:00:00",null,null,null,null,null,"В",null,null,null,null,null,"01:00:00"]
[null,null,null,null,null,null,null,null,null,null,null,null,null,null,null,null,null,null,null,null,null,null,null,null,null,null,null,null,{"$f":"IFERROR(AC66-AC65-AC67,0)","v":"00:00:00"},null,null,null,null,null,{"$f":"IFERROR(AI66-AI65-AI67,0)","v":"07:00:00"},null,null,null,null,null,{"$f":"IFERROR(AO66-AO65-AO67,0)","v":"07:00:00"},null,null,null,null,null,{"$f":"IFERROR(AU66-AU65-AU67,0)","v":"07:00:00"},null,null,null,null,null,{"$f":"IFERROR(BA66-BA65-BA67,0)","v":"07:00:00"},null,null,null,null,null,{"$f":"IFERROR(BG66-BG65-BG67,0)","v":"07:00:00"},null,null,null,null,null,{"$f":"IFERROR(BM66-BM65-BM67,0)","v":"05:00:00"},null,null,null,null,null,{"$f":"IFERROR(BS66-BS65-BS67,0)","v":"00:00:00"},null,null,null,null,null,{"$f":"IFERROR(BY66-BY65-BY67,0)","v":"07:00:00"},null,null,null,null,null,{"$f":"IFERROR(CE66-CE65-CE67,0)","v":"07:00:00"},null,null,null,null,null,{"$f":"IFERROR(CK66-CK65-CK67,0)","v":"07:00:00"},null,null,null,null,null,{"$f":"IFERROR(CQ66-CQ65-CQ67,0)","v":"07:00:00"},null,null,null,null,null,{"$f":"IFERROR(CW66-CW65-CW67,0)","v":"07:00:00"},null,null,null,null,null,{"$f":"IFERROR(DC66-DC65-DC67,0)","v":"05:00:00"},null,null,null,null,null,{"$f":"IFERROR(DI66-DI65-DI67,0)","v":"00:00:00"},null,null,null,null,null,{"$f":"IFERROR(DO66-DO65-DO67,0)","v":"07:00:00"},null,null,null,null,null,{"$f":"IFERROR(DU66-DU65-DU67,0)","v":"07:00:00"},null,null,null,null,null,{"$f":"IFERROR(EA66-EA65-EA67,0)","v":"07:00:00"},null,null,null,null,null,{"$f":"IFERROR(EG66-EG65-EG67,0)","v":"07:00:00"},null,null,null,null,null,{"$f":"IFERROR(EM66-EM65-EM67,0)","v":"07:00:00"},null,null,null,null,null,{"$f":"IFERROR(ES66-ES65-ES67,0)","v":"05:00:00"},null,null,null,null,null,{"$f":"IFERROR(EY66-EY65-EY67,0)","v":"00:00:00"},null,null,null,null,null,{"$f":"IFERROR(FE66-FE65-FE67,0)","v":"07:00:00"},null,null,null,null,null,{"$f":"IFERROR(FK66-FK65-FK67,0)","v":"08:00:00"},null,null,null,null,null,{"$f":"IFERROR(FQ66-FQ65-FQ67,0)","v":"08:00:00"},null,null,null,null,null,{"$f":"IFERROR(FW66-FW65-FW67,0)","v":"08:00:00"},null,null,null,null,null,{"$f":"IFERROR(GC66-GC65-GC67,0)","v":"08:00:00"},null,null,null,null,null,{"$f":"IFERROR(GI66-GI65-GI67,0)","v":"08:00:00"},null,null,null,null,null,{"$f":"IFERROR(GO66-GO65-GO67,0)","v":"08:00:00"},null,null,null,null,null,{"$f":"IFERROR(GU66-GU65-GU67,0)","v":"00:00:00"},null,null,null,null,null,{"$f":"IFERROR(HA66-HA65-HA67,0)","v":"08:00:00"},null,null,null,null,null,null,null,null,null,null,null,null,null,null,null,null,null,null,null,null,null,null,null,{"$f":"SUM(AC68:HE68)","v":7.6249999999999973}]
[]
[null,null,null,null,null,null,null,null,null,null,null,null,null,null,null,null,null,null,null,null,null,null,null,null,null,null,null,null,null,null,null,null,null,null,null,null,null,null,null,null,null,null,null,null,null,null,null,null,null,null,null,null,null,null,null,null,null,null,null,null,null,null,null,null,null,null,null,null,null,null,null,null,null,null,null,null,null,null,null,null,null,null,null,null,null,null,null,null,null,null,null,null,null,null,null,null,null,null,null,null,null,null,null,null,null,null,null,null,null,null,null,null,null,null,null,null,null,null,null,null,null,null,null,null,null,null,null,null,null,null,null,null,null,null,null,null,null,null,null,null,null,null,null,null,null,null,null,null,null,null,null,null,null,null,null,null,null,null,null,null,null,null,null,null,null,null,null,null,null,null,null,null,null,null,null,null,null,null,null,null,null,null,null,null,null,null,null,null,null,null,null,null,null,null,null,null,null,null,null,null,null,null,null,null,null,null,null,null,null,null,null,null,null,null,null,null,null,null,null,null,null,null,null,null,null,null,null,null,null,null,null,null,null,{"$f":"VLOOKUP($HY$17,'[4]производственный календарь '!$B$2:$D$13,3,0)","v":23},{"$f":"VLOOKUP($HY$17,'[4]производственный календарь '!$B$2:$D$13,2,0)","v":183}]
[null,9,null,null,null,null,null,null,null,null,null,null,null,null,null,null,null,null,null,null,null,null,null,null,null,null,null,null,null,null,null,null,null,null,"01:00:00",null,null,null,null,null,"01:00:00",null,null,null,null,null,"01:00:00",null,null,null,null,null,4.1666666666666664E-2,null,null,null,null,null,8.3333333333333329E-2,null,null,null,null,null,"02:00:00",null,null,null,null,null,null,null,null,null,null,null,"02:00:00",null,null,null,null,null,"02:00:00",null,null,null,null,null,"02:00:00",null,null,null,null,null,8.3333333333333329E-2,null,null,null,null,null,8.3333333333333329E-2,null,null,null,null,null,"02:00:00",null,null,null,null,null,null,null,null,null,null,null,"02:00:00",null,null,null,null,null,"02:00:00",null,null,null,null,null,"02:00:00",null,null,null,null,null,8.3333333333333329E-2,null,null,null,null,null,8.3333333333333329E-2,null,null,null,null,null,"02:00:00",null,null,null,null,null,null,null,null,null,null,null,"02:00:00",null,null,null,null,null,"02:00:00",null,null,null,null,null,"02:00:00",null,null,null,null,null,8.3333333333333329E-2,null,null,null,null,null,8.3333333333333329E-2,null,null,null,null,null,"01:00:00",null,null,null,null,null,"01:00:00",null,null,null,null,null,null,null,null,null,null,null,"01:45:00",null,null,null,null,null,{"$f":"COUNT(AC71:HF71)","v":26},null,null,null,null,null,null,null,null,null,null,null,null,null,null,null,null,null,{"$f":"SUM(AC71:HF71)","v":1.9062499999999996}]
[]
[null,null,null,null,null,null,null,null,null,null,null,null,null,null,null,null,null,null,null,null,null,null,null,null,null,null,null,null,null,null,null,null,null,null,null,null,null,null,null,null,null,null,null,null,null,null,null,null,null,null,null,null,null,null,null,null,null,null,null,null,null,null,null,null,null,null,null,null,null,null,null,null,null,null,null,null,null,null,null,null,null,null,null,null,null,null,null,null,null,null,null,null,null,null,null,null,null,null,null,null,null,null,null,null,null,null,null,null,null,null,null,null,null,null,null,null,null,null,null,null,null,null,null,null,null,null,null,null,null,null,null,null,null,null,null,null,null,null,null,null,null,null,null,null,null,null,null,null,null,null,null,null,null,null,null,null,null,null,null,null,null,null,null,null,null,null,null,null,null,null,null,null,null,null,null,null,null,null,null,null,null,null,null,null,null,null,null,null,null,null,null,null,null,null,null,null,null,null,null,null,null,null,null,null,null,null,null,null,null,null,null,null,null,null,null,null,null,null,null,null,null,null,null,null,null,null,null,null,null,null,null,null,null,{"$f":"VLOOKUP($HY$17,'[4]производственный календарь '!$B$2:$D$13,3,0)","v":23},{"$f":"VLOOKUP($HY$17,'[4]производственный календарь '!$B$2:$D$13,2,0)","v":183}]
[null,null,null,null,null,null,null,null,null,null,null,null,null,null,null,null,null,null,null,null,null,null,null,null,null,null,null,null,{"$f":"AC71","v":"00:00:00"},null,null,null,null,null,{"$f":"AI71","v":"01:00:00"},null,null,null,null,null,"01:00:00",null,null,null,null,null,"01:00:00",null,null,null,null,null,"01:00:00",null,null,null,null,null,"02:00:00",null,null,null,null,null,"02:00:00",null,null,null,null,null,"00:00:00",null,null,null,null,null,"02:00:00",null,null,null,null,null,"02:00:00",null,null,null,null,null,"02:00:00",null,null,null,null,null,"02:00:00",null,null,null,null,null,{"$f":"CW71","v":"02:00:00"},null,null,null,null,null,"02:00:00",null,null,null,null,null,"00:00:00",null,null,null,null,null,"02:00:00",null,null,null,null,null,"02:00:00",null,null,null,null,null,"02:00:00",null,null,null,null,null,"02:00:00",null,null,null,null,null,"02:00:00",null,null,null,null,null,"02:00:00",null,null,null,null,null,"00:00:00",null,null,null,null,null,"02:00:00",null,null,null,null,null,{"$f":"FK71","v":"02:00:00"},null,null,null,null,null,"02:00:00",null,null,null,null,null,"02:00:00",null,null,null,null,null,"02:00:00",null,null,null,null,null,"01:00:00",null,null,null,null,null,"01:00:00",null,null,null,null,null,"00:00:00",null,null,null,null,null,"01:45:00",null,null,null,null,null,null,null,null,null,null,null,null,null,null,null,null,null,null,null,null,null,null,null,{"$f":"SUM(AC74:HE74)","v":1.9062499999999996}]
[]
[null,null,null,null,null,null,null,null,null,null,null,null,null,null,null,null,null,null,null,null,null,null,null,null,null,null,null,null,null,null,null,null,null,null,null,null,null,null,null,null,null,null,null,null,null,null,null,null,null,null,null,null,null,null,null,null,null,null,null,null,null,null,null,null,null,null,null,null,null,null,null,null,null,null,null,null,null,null,null,null,null,null,null,null,null,null,null,null,null,null,null,null,null,null,null,null,null,null,null,null,null,null,null,null,null,null,null,null,null,null,null,null,null,null,null,null,null,null,null,null,null,null,null,null,null,null,null,null,null,null,null,null,null,null,null,null,null,null,null,null,null,null,null,null,null,null,null,null,null,null,null,null,null,null,null,null,null,null,null,null,null,null,null,null,null,null,null,null,null,null,null,null,null,null,null,null,null,null,null,null,null,null,null,null,null,null,null,null,null,null,null,null,null,null,null,null,null,null,null,null,null,null,null,null,null,null,null,null,null,null,null,null,null,null,null,null,null,null,null,null,null,null,null,null,null,null,null,null,null,null,null,null,null,{"$f":"VLOOKUP($HY$17,'[4]производственный календарь '!$B$2:$D$13,3,0)","v":23},{"$f":"VLOOKUP($HY$17,'[4]производственный календарь '!$B$2:$D$13,2,0)","v":183}]
[null,10,null,null,null,null,null,null,null,null,null,null,null,null,null,null,null,null,null,null,null,null,null,null,null,null,null,null,null,null,null,null,null,null,0.58333333333333337,null,null,null,null,null,0,null,null,null,null,null,null,null,null,null,null,null,0.58333333333333337,null,null,null,null,null,0,null,null,null,null,null,null,null,null,null,null,null,0.58333333333333337,null,null,null,null,null,0,null,null,null,null,null,null,null,null,null,null,null,0.625,null,null,null,null,null,0,null,null,null,null,null,null,null,null,null,null,null,0.625,null,null,null,null,null,0,null,null,null,null,null,null,null,null,null,null,null,0.625,null,null,null,null,null,0,null,null,null,null,null,null,null,null,null,null,null,0.625,null,null,null,null,null,0,null,null,null,null,null,null,null,null,null,null,null,0.625,null,null,null,null,null,0,null,null,null,null,null,null,null,null,null,null,null,0.625,null,null,null,null,null,0,null,null,null,null,null,null,null,null,null,null,null,0.625,null,null,null,null,null,0,null,null,null,null,null,null,null,null,null,null,null,null,null,null,null,null,null,null,null,null,null,null,null,null,null,null,null,null,null,{"$f":"SUM(IF(ISNUMBER(AC77:HF77),AC78:HF78-AC77:HF77+(AC78:HF78<AC77:HF77),))*24","v":183},null,{"$f":"IA76/4","v":45.75}]
[null,null,null,null,null,null,null,null,null,null,null,null,null,null,null,null,null,null,null,null,null,null,null,null,null,null,null,null,null,null,null,null,null,null,1,null,null,null,null,null,0.375,null,null,null,null,null,null,null,null,null,null,null,1,null,null,null,null,null,0.375,null,null,null,null,null,null,null,null,null,null,null,1,null,null,null,null,null,0.375,null,null,null,null,null,null,null,null,null,null,null,1,null,null,null,null,null,0.375,null,null,null,null,null,null,null,null,null,null,null,1,null,null,null,null,null,0.375,null,null,null,null,null,null,null,null,null,null,null,1,null,null,null,null,null,0.375,null,null,null,null,null,null,null,null,null,null,null,1,null,null,null,null,null,0.375,null,null,null,null,null,null,null,null,null,null,null,1,null,null,null,null,null,0.375,null,null,null,null,null,null,null,null,null,null,null,1,null,null,null,null,null,0.375,null,null,null,null,null,null,null,null,null,null,null,1,null,null,null,null,null,0.375,null,null,null,null,null,null,null,null,null,null,null,{"$f":"COUNT(AC78:HF78)","v":20}]
[null,null,null,null,null,null,null,null,null,null,null,null,null,null,null,null,null,null,null,null,null,null,null,null,null,null,null,null,{"$f":"IFERROR(AC78-AC77,0)","v":0},null,null,null,null,null,{"$f":"IFERROR(AI78-AI77,0)","v":"10:00:00"},null,null,null,null,null,{"$f":"IFERROR(AO78-AO77,0)","v":0.375},null,null,null,null,null,{"$f":"IFERROR(AU78-AU77,0)","v":0},null,null,null,null,null,{"$f":"IFERROR(BA78-BA77,0)","v":0.41666666666666663},null,null,null,null,null,{"$f":"IFERROR(BG78-BG77,0)","v":0.375},null,null,null,null,null,{"$f":"IFERROR(BM78-BM77,0)","v":0},null,null,null,null,null,{"$f":"IFERROR(BS78-BS77,0)","v":0.41666666666666663},null,null,null,null,null,{"$f":"IFERROR(BY78-BY77,0)","v":"09:00:00"},null,null,null,null,null,{"$f":"IFERROR(CE78-CE77,0)","v":0},null,null,null,null,null,{"$f":"IFERROR(CK78-CK77,0)","v":0.375},null,null,null,null,null,{"$f":"IFERROR(CQ78-CQ77,0)","v":0.375},null,null,null,null,null,{"$f":"IFERROR(CW78-CW77,0)","v":0},null,null,null,null,null,{"$f":"IFERROR(DC78-DC77,0)","v":0.375},null,null,null,null,null,{"$f":"IFERROR(DI78-DI77,0)","v":0.375},null,null,null,null,null,{"$f":"IFERROR(DO78-DO77,0)","v":"00:00:00"},null,null,null,null,null,{"$f":"IFERROR(DU78-DU77,0)","v":0.375},null,null,null,null,null,{"$f":"IFERROR(EA78-EA77,0)","v":0.375},null,null,null,null,null,{"$f":"IFERROR(EG78-EG77,0)","v":0},null,null,null,null,null,{"$f":"IFERROR(EM78-EM77,0)","v":0.375},null,null,null,null,null,{"$f":"IFERROR(ES78-ES77,0)","v":0.375},null,null,null,null,null,{"$f":"IFERROR(EY78-EY77,0)","v":0},null,null,null,null,null,{"$f":"IFERROR(FE78-FE77,0)","v":"09:00:00"},null,null,null,null,null,{"$f":"IFERROR(FK78-FK77,0)","v":0.375},null,null,null,null,null,{"$f":"IFERROR(FQ78-FQ77,0)","v":0},null,null,null,null,null,{"$f":"IFERROR(FW78-FW77,0)","v":0.375},null,null,null,null,null,{"$f":"IFERROR(GC78-GC77,0)","v":0.375},null,null,null,null,null,{"$f":"IFERROR(GI78-GI77,0)","v":0},null,null,null,null,null,{"$f":"IFERROR(GO78-GO77,0)","v":0.375},null,null,null,null,null,{"$f":"IFERROR(GU78-GU77,0)","v":"09:00:00"},null,null,null,null,null,{"$f":"IFERROR(HA78-HA77,0)","v":0},null,null,null,null,null,null,null,null,null,null,null,null,null,null,null,null,null,null,null,null,null,null,null,{"$f":"SUM(AC79:HE79)","v":7.625}]
[null,null,null,null,null,null,null,null,null,null,null,null,null,null,null,null,null,null,null,null,null,null,null,null,null,null,null,null,null,null,null,null,null,null,null,null,null,null,null,null,null,null,null,null,null,null,null,null,null,null,null,null,null,null,null,null,null,null,null,null,null,null,null,null,null,null,null,null,null,null,null,null,null,null,null,null,null,null,null,null,null,null,null,null,null,null,null,null,null,null,null,null,null,null,null,null,null,null,null,null,null,null,null,null,null,null,null,null,null,null,null,null,null,null,null,null,null,null,null,null,null,null,null,null,null,null,null,null,null,null,null,null,null,null,null,null,null,null,null,null,null,null,null,null,null,null,null,null,null,null,null,null,null,null,null,null,null,null,null,null,null,null,null,null,null,null,null,null,null,null,null,null,null,null,null,null,null,null,null,null,null,null,null,null,null,null,null,null,null,null,null,null,null,null,null,null,null,null,null,null,null,null,null,null,null,null,null,null,null,null,null,null,null,null,null,null,null,null,null,null,null,null,null,null,null,null,null,null,null,null,null,null,{"$f":"SUM(AC81:HF81)","v":0}]
[null,null,null,null,null,null,null,null,null,null,null,null,null,null,null,null,null,null,null,null,null,null,null,null,null,null,null,null,null,null,null,null,null,null,null,null,null,null,null,null,null,null,null,null,null,null,null,null,null,null,null,null,null,null,null,null,null,null,null,null,null,null,null,null,null,null,null,null,null,null,null,null,null,null,null,null,null,null,null,null,null,null,null,null,null,null,null,null,null,null,null,null,null,null,null,null,null,null,null,null,null,null,null,null,null,null,null,null,null,null,null,null,null,null,null,null,null,null,null,null,null,null,null,null,null,null,null,null,null,null,null,null,null,null,null,null,null,null,null,null,null,null,null,null,null,null,null,null,null,null,null,null,null,null,null,null,null,null,null,null,null,null,null,null,null,null,null,null,null,null,null,null,null,null,null,null,null,null,null,null,null,null,null,null,null,null,null,null,null,null,null,null,null,null,null,null,null,null,null,null,null,null,null,null,null,null,null,null,null,null,null,null,null,null,null,null,null,null,null,null,null,null,null,null,null,null,null,null,null,null,null,null,{"$f":"SUM(AC82:HF83)","v":80}]
[null,null,null,null,null,null,null,null,null,null,null,null,null,null,null,null,null,null,null,null,null,null,null,null,null,null,null,null,{"$f":"(MIN(AC78,6/24)-MIN(AC77,6/24)+MAX(AC78,22/24)-MAX(AC77,22/24))*24+(AC78<AC77)*8","v":0},null,null,null,null,null,{"$f":"(MIN(AI78,6/24)-MIN(AI77,6/24)+MAX(AI78,22/24)-MAX(AI77,22/24))*24+(AI78<AI77)*8","v":2.0000000000000009},null,null,null,null,null,{"$f":"(MIN(AO78,6/24)-MIN(AO77,6/24)+MAX(AO78,22/24)-MAX(AO77,22/24))*24+(AO78<AO77)*8","v":5.9999999999999973},null,null,null,null,null,{"$f":"(MIN(AU78,6/24)-MIN(AU77,6/24)+MAX(AU78,22/24)-MAX(AU77,22/24))*24+(AU78<AU77)*8","v":0},null,null,null,null,null,{"$f":"(MIN(BA78,6/24)-MIN(BA77,6/24)+MAX(BA78,22/24)-MAX(BA77,22/24))*24+(BA78<BA77)*8","v":2.0000000000000009},null,null,null,null,null,{"$f":"(MIN(BG78,6/24)-MIN(BG77,6/24)+MAX(BG78,22/24)-MAX(BG77,22/24))*24+(BG78<BG77)*8","v":5.9999999999999973},null,null,null,null,null,{"$f":"(MIN(BM78,6/24)-MIN(BM77,6/24)+MAX(BM78,22/24)-MAX(BM77,22/24))*24+(BM78<BM77)*8","v":0},null,null,null,null,null,{"$f":"(MIN(BS78,6/24)-MIN(BS77,6/24)+MAX(BS78,22/24)-MAX(BS77,22/24))*24+(BS78<BS77)*8","v":2.0000000000000009},null,null,null,null,null,{"$f":"(MIN(BY78,6/24)-MIN(BY77,6/24)+MAX(BY78,22/24)-MAX(BY77,22/24))*24+(BY78<BY77)*8","v":5.9999999999999973},null,null,null,null,null,{"$f":"(MIN(CE78,6/24)-MIN(CE77,6/24)+MAX(CE78,22/24)-MAX(CE77,22/24))*24+(CE78<CE77)*8","v":0},null,null,null,null,null,{"$f":"(MIN(CK78,6/24)-MIN(CK77,6/24)+MAX(CK78,22/24)-MAX(CK77,22/24))*24+(CK78<CK77)*8","v":2.0000000000000009},null,null,null,null,null,{"$f":"(MIN(CQ78,6/24)-MIN(CQ77,6/24)+MAX(CQ78,22/24)-MAX(CQ77,22/24))*24+(CQ78<CQ77)*8","v":5.9999999999999973},null,null,null,null,null,{"$f":"(MIN(CW78,6/24)-MIN(CW77,6/24)+MAX(CW78,22/24)-MAX(CW77,22/24))*24+(CW78<CW77)*8","v":0},null,null,null,null,null,{"$f":"(MIN(DC78,6/24)-MIN(DC77,6/24)+MAX(DC78,22/24)-MAX(DC77,22/24))*24+(DC78<DC77)*8","v":2.0000000000000009},null,null,null,null,null,{"$f":"(MIN(DI78,6/24)-MIN(DI77,6/24)+MAX(DI78,22/24)-MAX(DI77,22/24))*24+(DI78<DI77)*8","v":5.9999999999999973},null,null,null,null,null,{"$f":"(MIN(DO78,6/24)-MIN(DO77,6/24)+MAX(DO78,22/24)-MAX(DO77,22/24))*24+(DO78<DO77)*8","v":0},null,null,null,null,null,{"$f":"(MIN(DU78,6/24)-MIN(DU77,6/24)+MAX(DU78,22/24)-MAX(DU77,22/24))*24+(DU78<DU77)*8","v":2.0000000000000009},null,null,null,null,null,{"$f":"(MIN(EA78,6/24)-MIN(EA77,6/24)+MAX(EA78,22/24)-MAX(EA77,22/24))*24+(EA78<EA77)*8","v":5.9999999999999973},null,null,null,null,null,{"$f":"(MIN(EG78,6/24)-MIN(EG77,6/24)+MAX(EG78,22/24)-MAX(EG77,22/24))*24+(EG78<EG77)*8","v":0},null,null,null,null,null,{"$f":"(MIN(EM78,6/24)-MIN(EM77,6/24)+MAX(EM78,22/24)-MAX(EM77,22/24))*24+(EM78<EM77)*8","v":2.0000000000000009},null,null,null,null,null,{"$f":"(MIN(ES78,6/24)-MIN(ES77,6/24)+MAX(ES78,22/24)-MAX(ES77,22/24))*24+(ES78<ES77)*8","v":5.9999999999999973},null,null,null,null,null,{"$f":"(MIN(EY78,6/24)-MIN(EY77,6/24)+MAX(EY78,22/24)-MAX(EY77,22/24))*24+(EY78<EY77)*8","v":0},null,null,null,null,null,{"$f":"(MIN(FE78,6/24)-MIN(FE77,6/24)+MAX(FE78,22/24)-MAX(FE77,22/24))*24+(FE78<FE77)*8","v":2.0000000000000009},null,null,null,null,null,{"$f":"(MIN(FK78,6/24)-MIN(FK77,6/24)+MAX(FK78,22/24)-MAX(FK77,22/24))*24+(FK78<FK77)*8","v":5.9999999999999973},null,null,null,null,null,{"$f":"(MIN(FQ78,6/24)-MIN(FQ77,6/24)+MAX(FQ78,22/24)-MAX(FQ77,22/24))*24+(FQ78<FQ77)*8","v":0},null,null,null,null,null,{"$f":"(MIN(FW78,6/24)-MIN(FW77,6/24)+MAX(FW78,22/24)-MAX(FW77,22/24))*24+(FW78<FW77)*8","v":2.0000000000000009},null,null,null,null,null,{"$f":"(MIN(GC78,6/24)-MIN(GC77,6/24)+MAX(GC78,22/24)-MAX(GC77,22/24))*24+(GC78<GC77)*8","v":5.9999999999999973},null,null,null,null,null,{"$f":"(MIN(GI78,6/24)-MIN(GI77,6/24)+MAX(GI78,22/24)-MAX(GI77,22/24))*24+(GI78<GI77)*8","v":0},null,null,null,null,null,{"$f":"(MIN(GO78,6/24)-MIN(GO77,6/24)+MAX(GO78,22/24)-MAX(GO77,22/24))*24+(GO78<GO77)*8","v":2.0000000000000009},null,null,null,null,null,{"$f":"(MIN(GU78,6/24)-MIN(GU77,6/24)+MAX(GU78,22/24)-MAX(GU77,22/24))*24+(GU78<GU77)*8","v":5.9999999999999973},null,null,null,null,null,{"$f":"(MIN(HA78,6/24)-MIN(HA77,6/24)+MAX(HA78,22/24)-MAX(HA77,22/24))*24+(HA78<HA77)*8","v":0},null,null,null,null,null,null,null,null,null,null,null,null,null,null,null,null,null,null,null,null,null,null,null,null,{"$f":"VLOOKUP($HY$17,'[4]производственный календарь '!$B$2:$D$13,3,0)","v":23},{"$f":"VLOOKUP($HY$17,'[4]производственный календарь '!$B$2:$D$13,2,0)","v":183}]
[null,null,null,null,null,null,null,null,null,null,null,null,null,null,null,null,null,null,null,null,null,null,null,null,null,null,null,null,null,null,null,null,null,null,null,null,null,null,null,null,null,null,null,null,null,null,null,null,null,null,null,null,null,null,null,null,null,null,null,null,null,null,null,null,null,null,null,null,null,null,null,null,null,null,null,null,null,null,null,null,null,null,null,null,null,null,null,null,null,null,null,null,null,null,null,null,null,null,null,null,null,null,null,null,null,null,null,null,null,null,null,null,null,null,null,null,null,null,null,null,null,null,null,null,null,null,null,null,null,null,null,null,null,null,null,null,null,null,null,null,null,null,null,null,null,null,null,null,null,null,null,null,null,null,null,null,null,null,null,null,null,null,null,null,null,null,null,null,null,null,null,null,null,null,null,null,null,null,null,null,null,null,null,null,null,null,null,null,null,null,null,null,null,null,null,null,null,null,null,null,null,null,null,null,null,null,null,null,null,null,null,null,null,null,{"$f":"COUNT(AC84:HF84)","v":10},null,null,null,null,null,null,null,null,null,null,null,null,null,null,null,null,null,{"$f":"SUM(AC84:HE84)","v":44.45}]
[null,12,null,null,null,null,null,null,null,null,null,null,null,null,null,null,null,null,null,null,null,null,null,null,null,null,null,null,null,null,null,null,null,null,4,null,null,null,null,null,null,null,null,null,null,null,null,null,null,null,null,null,4,null,null,null,null,null,null,null,null,null,null,null,null,null,null,null,null,null,4,null,null,null,null,null,null,null,null,null,null,null,null,null,null,null,null,null,4,null,null,null,null,null,null,null,null,null,null,null,null,null,null,null,null,null,4,null,null,null,null,null,null,null,null,null,null,null,null,null,null,null,null,null,4.45,null,null,null,null,null,null,null,null,null,null,null,null,null,null,null,null,null,5,null,null,null,null,null,null,null,null,null,null,null,null,null,null,null,null,null,5,null,null,null,null,null,null,null,null,null,null,null,null,null,null,null,null,null,5,null,null,null,null,null,null,null,null,null,null,null,null,null,null,null,null,null,5]
[]
[]
[]
[11,null,null,null,null,null,null,null,null,null,null,null,null,null,null,null,null,null,null,null,null,null,null,null,null,null,null,null,null,null,null,null,null,null,null,null,null,null,null,null,null,null,null,null,null,null,null,null,null,null,null,null,null,null,null,null,null,null,null,null,null,null,null,null,null,null,null,null,null,null,null,null,null,null,null,null,null,null,null,null,null,null,null,null,null,null,null,null,null,null,null,null,null,null,null,null,null,null,null,null,null,null,null,null,null,null,null,null,null,null,null,null,null,null,null,null,null,null,null,null,null,null,null,null,null,null,null,null,null,null,null,null,null,null,null,null,null,null,null,null,null,null,null,null,null,null,null,null,null,null,null,null,null,null,null,null,null,null,null,null,null,null,null,null,null,null,null,null,null,null,null,null,null,null,null,null,null,null,null,null,null,null,null,null,null,null,null,null,null,null,null,null,null,null,null,null,null,null,null,null,null,null,null,null,null,null,null,null,null,null,null,null,null,null,null,null,null,null,null,null,null,null,null,null,null,null,null,null,null,null,null,null,null,{"$f":"VLOOKUP($HY$17,'[4]производственный календарь '!$B$2:$D$13,3,0)","v":23},{"$f":"VLOOKUP($HY$17,'[4]производственный календарь '!$B$2:$D$13,2,0)","v":183}]
[null,null,null,null,null,null,null,null,null,null,null,null,null,null,null,null,null,null,null,null,null,null,null,null,null,null,null,null,null,null,null,null,null,null,null,null,null,null,null,null,null,null,null,null,null,null,null,null,null,null,null,null,null,null,null,null,null,null,null,null,null,null,null,null,null,null,null,null,null,null,null,null,null,null,null,null,null,null,null,null,null,null,null,null,null,null,null,null,null,null,null,null,null,null,null,null,null,null,null,null,null,null,null,null,null,null,null,null,null,null,null,null,null,null,null,null,null,null,null,null,null,null,null,null,null,null,null,null,null,null,null,null,null,null,null,null,null,null,null,null,null,null,null,null,null,null,null,null,null,null,null,null,null,null,null,null,null,null,null,null,null,null,null,null,null,null,null,null,null,null,null,null,null,null,null,null,null,null,null,null,null,null,null,null,null,null,null,null,null,null,null,null,null,null,null,null,null,null,null,null,null,null,null,null,null,null,null,null,null,null,null,null,null,null,{"$f":"COUNT(AC90:HF90)","v":12},null,null,null,null,null,null,null,null,null,null,null,null,null,null,null,null,null,null,null,{"$f":"IA88/2","v":91.5}]
[null,13,null,null,null,null,null,null,null,null,null,null,null,null,null,null,null,null,null,null,null,null,null,null,null,null,null,null,"ОТ",null,null,null,null,null,"ОТ",null,null,null,null,null,"ОТ",null,null,null,null,null,"ОТ",null,null,null,null,null,"ОТ",null,null,null,null,null,"ОТ",null,null,null,null,null,"ОТ",null,null,null,null,null,"ОТ",null,null,null,null,null,"ОТ",null,null,null,null,null,"ОТ",null,null,null,null,null,"ОТ",null,null,null,null,null,"ОТ",null,null,null,null,null,"ОТ",null,null,null,null,null,0.91666666666666663,null,null,null,null,null,0,null,null,null,null,null,null,null,null,null,null,null,0.91666666666666663,null,null,null,null,null,0,null,null,null,null,null,null,null,null,null,null,null,0.95833333333333337,null,null,null,null,null,0,null,null,null,null,null,null,null,null,null,null,null,0.95833333333333337,null,null,null,null,null,0,null,null,null,null,null,null,null,null,null,null,null,0.95833333333333337,null,null,null,null,null,0,null,null,null,null,null,null,null,null,null,null,null,0.9375,null,null,null,null,null,0,null,null,null,null,null,null,null,null,null,null,null,{"$f":"COUNT(AC90:HF90)","v":12},null,null,null,null,null,null,null,null,null,null,null,null,null,null,null,null,null,{"$f":"SUM(IF(ISNUMBER(AC90:HF90),AC91:HF91-AC90:HF90+(AC91:HF91<AC90:HF90),))*24","v":53.5},null,null,null,null,null,null,null,"В"]
[null,null,null,null,null,null,null,null,null,null,null,null,null,null,null,null,null,null,null,null,null,null,null,null,null,null,null,null,"ОТ",null,null,null,null,null,"ОТ",null,null,null,null,null,"ОТ",null,null,null,null,null,"ОТ",null,null,null,null,null,"ОТ",null,null,null,null,null,"ОТ",null,null,null,null,null,"ОТ",null,null,null,null,null,"ОТ",null,null,null,null,null,"ОТ",null,null,null,null,null,"ОТ",null,null,null,null,null,"ОТ",null,null,null,null,null,"ОТ",null,null,null,null,null,"ОТ",null,null,null,null,null,1,null,null,null,null,null,0.3125,null,null,null,null,null,null,null,null,null,null,null,1,null,null,null,null,null,0.3125,null,null,null,null,null,null,null,null,null,null,null,1,null,null,null,null,null,0.3125,null,null,null,null,null,null,null,null,null,null,null,1,null,null,null,null,null,0.3125,null,null,null,null,null,null,null,null,null,null,null,1,null,null,null,null,null,0.3125,null,null,null,null,null,null,null,null,null,null,null,1,null,null,null,null,null,0.3125,null,null,null,null,null,null,null,null,null,null,null,null,null,null,null,null,null,null,null,null,null,null,null,null,null,null,null,null,null,53.5]
[null,null,null,null,null,null,null,null,null,null,null,null,null,null,null,null,null,null,null,null,null,null,null,null,null,null,null,null,{"$f":"IFERROR(AC91-AC90,0)","v":0},null,null,null,null,null,{"$f":"IFERROR(AI91-AI90,0)","v":"00:00:00"},null,null,null,null,null,{"$f":"IFERROR(AO91-AO90,0)","v":0},null,null,null,null,null,{"$f":"IFERROR(AU91-AU90,0)","v":0},null,null,null,null,null,{"$f":"IFERROR(BA91-BA90,0)","v":0},null,null,null,null,null,{"$f":"IFERROR(BG91-BG90,0)","v":0},null,null,null,null,null,{"$f":"IFERROR(BM91-BM90,0)","v":0},null,null,null,null,null,{"$f":"IFERROR(BS91-BS90,0)","v":0},null,null,null,null,null,{"$f":"IFERROR(BY91-BY90,0)","v":"00:00:00"},null,null,null,null,null,{"$f":"IFERROR(CE91-CE90,0)","v":0},null,null,null,null,null,{"$f":"IFERROR(CK91-CK90,0)","v":0},null,null,null,null,null,{"$f":"IFERROR(CQ91-CQ90,0)","v":0},null,null,null,null,null,{"$f":"IFERROR(CW91-CW90,0)","v":0},null,null,null,null,null,{"$f":"IFERROR(DC91-DC90,0)","v":8.333333333333337E-2},null,null,null,null,null,{"$f":"IFERROR(DI91-DI90,0)","v":0.3125},null,null,null,null,null,{"$f":"IFERROR(DO91-DO90,0)","v":"00:00:00"},null,null,null,null,null,{"$f":"IFERROR(DU91-DU90,0)","v":8.333333333333337E-2},null,null,null,null,null,{"$f":"IFERROR(EA91-EA90,0)","v":0.3125},null,null,null,null,null,{"$f":"IFERROR(EG91-EG90,0)","v":0},null,null,null,null,null,{"$f":"IFERROR(EM91-EM90,0)","v":4.166666666666663E-2},null,null,null,null,null,{"$f":"IFERROR(ES91-ES90,0)","v":0.3125},null,null,null,null,null,{"$f":"IFERROR(EY91-EY90,0)","v":0},null,null,null,null,null,{"$f":"IFERROR(FE91-FE90,0)","v":"01:00:00"},null,null,null,null,null,{"$f":"IFERROR(FK91-FK90,0)","v":0.3125},null,null,null,null,null,{"$f":"IFERROR(FQ91-FQ90,0)","v":0},null,null,null,null,null,{"$f":"IFERROR(FW91-FW90,0)","v":4.166666666666663E-2},null,null,null,null,null,{"$f":"IFERROR(GC91-GC90,0)","v":0.3125},null,null,null,null,null,{"$f":"IFERROR(GI91-GI90,0)","v":0},null,null,null,null,null,{"$f":"IFERROR(GO91-GO90,0)","v":6.25E-2},null,null,null,null,null,{"$f":"IFERROR(GU91-GU90,0)","v":"07:30:00"},null,null,null,null,null,{"$f":"IFERROR(HA91-HA90,0)","v":0},null,null,null,null,null,null,null,null,null,null,null,null,null,null,null,null,null,null,null,null,null,null,null,{"$f":"SUM(AC92:HF92)","v":2.2291666666666665}]
[]
[null,null,null,null,null,null,null,null,null,null,null,null,null,null,null,null,null,null,null,null,null,null,null,null,null,null,null,null,{"$f":"(MIN(AC91,6/24)-MIN(AC90,6/24)+MAX(AC91,22/24)-MAX(AC90,22/24))*24+(AC91<AC90)*8","v":0},null,null,null,null,null,{"$f":"(MIN(AI91,6/24)-MIN(AI90,6/24)+MAX(AI91,22/24)-MAX(AI90,22/24))*24+(AI91<AI90)*8","v":0},null,null,null,null,null,{"$f":"(MIN(AO91,6/24)-MIN(AO90,6/24)+MAX(AO91,22/24)-MAX(AO90,22/24))*24+(AO91<AO90)*8","v":0},null,null,null,null,null,{"$f":"(MIN(AU91,6/24)-MIN(AU90,6/24)+MAX(AU91,22/24)-MAX(AU90,22/24))*24+(AU91<AU90)*8","v":0},null,null,null,null,null,{"$f":"(MIN(BA91,6/24)-MIN(BA90,6/24)+MAX(BA91,22/24)-MAX(BA90,22/24))*24+(BA91<BA90)*8","v":0},null,null,null,null,null,{"$f":"(MIN(BG91,6/24)-MIN(BG90,6/24)+MAX(BG91,22/24)-MAX(BG90,22/24))*24+(BG91<BG90)*8","v":0},null,null,null,null,null,{"$f":"(MIN(BM91,6/24)-MIN(BM90,6/24)+MAX(BM91,22/24)-MAX(BM90,22/24))*24+(BM91<BM90)*8","v":0},null,null,null,null,null,{"$f":"(MIN(BS91,6/24)-MIN(BS90,6/24)+MAX(BS91,22/24)-MAX(BS90,22/24))*24+(BS91<BS90)*8","v":0},null,null,null,null,null,{"$f":"(MIN(BY91,6/24)-MIN(BY90,6/24)+MAX(BY91,22/24)-MAX(BY90,22/24))*24+(BY91<BY90)*8","v":0},null,null,null,null,null,{"$f":"(MIN(CE91,6/24)-MIN(CE90,6/24)+MAX(CE91,22/24)-MAX(CE90,22/24))*24+(CE91<CE90)*8","v":0},null,null,null,null,null,{"$f":"(MIN(CK91,6/24)-MIN(CK90,6/24)+MAX(CK91,22/24)-MAX(CK90,22/24))*24+(CK91<CK90)*8","v":0},null,null,null,null,null,{"$f":"(MIN(CQ91,6/24)-MIN(CQ90,6/24)+MAX(CQ91,22/24)-MAX(CQ90,22/24))*24+(CQ91<CQ90)*8","v":0},null,null,null,null,null,{"$f":"(MIN(CW91,6/24)-MIN(CW90,6/24)+MAX(CW91,22/24)-MAX(CW90,22/24))*24+(CW91<CW90)*8","v":0},null,null,null,null,null,{"$f":"(MIN(DC91,6/24)-MIN(DC90,6/24)+MAX(DC91,22/24)-MAX(DC90,22/24))*24+(DC91<DC90)*8","v":2.0000000000000009},null,null,null,null,null,{"$f":"(MIN(DI91,6/24)-MIN(DI90,6/24)+MAX(DI91,22/24)-MAX(DI90,22/24))*24+(DI91<DI90)*8","v":5.9999999999999973},null,null,null,null,null,{"$f":"(MIN(DO91,6/24)-MIN(DO90,6/24)+MAX(DO91,22/24)-MAX(DO90,22/24))*24+(DO91<DO90)*8","v":0},null,null,null,null,null,{"$f":"(MIN(DU91,6/24)-MIN(DU90,6/24)+MAX(DU91,22/24)-MAX(DU90,22/24))*24+(DU91<DU90)*8","v":2.0000000000000009},null,null,null,null,null,{"$f":"(MIN(EA91,6/24)-MIN(EA90,6/24)+MAX(EA91,22/24)-MAX(EA90,22/24))*24+(EA91<EA90)*8","v":5.9999999999999973},null,null,null,null,null,{"$f":"(MIN(EG91,6/24)-MIN(EG90,6/24)+MAX(EG91,22/24)-MAX(EG90,22/24))*24+(EG91<EG90)*8","v":0},null,null,null,null,null,{"$f":"(MIN(EM91,6/24)-MIN(EM90,6/24)+MAX(EM91,22/24)-MAX(EM90,22/24))*24+(EM91<EM90)*8","v":0.99999999999999911},null,null,null,null,null,{"$f":"(MIN(ES91,6/24)-MIN(ES90,6/24)+MAX(ES91,22/24)-MAX(ES90,22/24))*24+(ES91<ES90)*8","v":5.9999999999999973},null,null,null,null,null,{"$f":"(MIN(EY91,6/24)-MIN(EY90,6/24)+MAX(EY91,22/24)-MAX(EY90,22/24))*24+(EY91<EY90)*8","v":0},null,null,null,null,null,{"$f":"(MIN(FE91,6/24)-MIN(FE90,6/24)+MAX(FE91,22/24)-MAX(FE90,22/24))*24+(FE91<FE90)*8","v":0.99999999999999911},null,null,null,null,null,{"$f":"(MIN(FK91,6/24)-MIN(FK90,6/24)+MAX(FK91,22/24)-MAX(FK90,22/24))*24+(FK91<FK90)*8","v":5.9999999999999973},null,null,null,null,null,{"$f":"(MIN(FQ91,6/24)-MIN(FQ90,6/24)+MAX(FQ91,22/24)-MAX(FQ90,22/24))*24+(FQ91<FQ90)*8","v":0},null,null,null,null,null,{"$f":"(MIN(FW91,6/24)-MIN(FW90,6/24)+MAX(FW91,22/24)-MAX(FW90,22/24))*24+(FW91<FW90)*8","v":0.99999999999999911},null,null,null,null,null,{"$f":"(MIN(GC91,6/24)-MIN(GC90,6/24)+MAX(GC91,22/24)-MAX(GC90,22/24))*24+(GC91<GC90)*8","v":5.9999999999999973},null,null,null,null,null,{"$f":"(MIN(GI91,6/24)-MIN(GI90,6/24)+MAX(GI91,22/24)-MAX(GI90,22/24))*24+(GI91<GI90)*8","v":0},null,null,null,null,null,{"$f":"(MIN(GO91,6/24)-MIN(GO90,6/24)+MAX(GO91,22/24)-MAX(GO90,22/24))*24+(GO91<GO90)*8","v":1.5},null,null,null,null,null,{"$f":"(MIN(GU91,6/24)-MIN(GU90,6/24)+MAX(GU91,22/24)-MAX(GU90,22/24))*24+(GU91<GU90)*8","v":5.9999999999999973},null,null,null,null,null,{"$f":"(MIN(HA91,6/24)-MIN(HA90,6/24)+MAX(HA91,22/24)-MAX(HA90,22/24))*24+(HA91<HA90)*8","v":0},null,null,null,null,null,null,null,null,null,null,null,null,null,null,null,null,null,null,null,null,null,null,null,{"$f":"SUM(AC94:HF94)","v":44.499999999999986}]
[null,null,null,null,null,null,null,null,null,null,null,null,null,null,null,null,null,null,null,null,null,null,null,null,null,null,null,null,null,null,null,null,null,null,null,null,null,null,null,null,null,null,null,null,null,null,null,null,null,null,null,null,null,null,null,null,null,null,null,null,null,null,null,null,null,null,null,null,null,null,null,null,null,null,null,null,null,null,null,null,null,null,null,null,null,null,null,null,null,null,null,null,null,null,null,null,null,null,null,null,null,null,null,null,null,null,null,null,null,null,null,null,null,null,null,null,null,null,null,null,null,null,null,null,null,null,null,null,null,null,null,null,null,null,null,null,null,null,null,null,null,null,null,null,null,null,null,null,null,null,null,null,null,null,null,null,null,null,null,null,null,null,null,null,null,null,null,null,null,null,null,null,null,null,null,null,null,null,null,null,null,null,null,null,null,null,null,null,null,null,null,null,null,null,null,null,null,null,null,null,null,null,null,null,null,null,null,null,null,null,null,null,null,null,null,null,null,null,null,null,null,null,null,null,null,null,null,null,null,null,null,null,{"$f":"SUM(AC96:HF96)","v":0}]
[null,null,null,null,null,null,null,null,null,null,null,null,null,null,null,null,null,null,null,null,null,null,null,null,null,null,null,null,"ОТ",null,null,null,null,null,"ОТ",null,null,null,null,null,"ОТ",null,null,null,null,null,"ОТ",null,null,null,null,null,"ОТ",null,null,null,null,null,"ОТ",null,null,null,null,null,"ОТ",null,null,null,null,null,"ОТ",null,null,null,null,null,"ОТ",null,null,null,null,null,"ОТ",null,null,null,null,null,"ОТ",null,null,null,null,null,"ОТ",null,null,null,null,null,"ОТ"]
[]
[]
[]
[null,null,null,null,null,null,null,null,null,null,null,null,null,null,null,null,null,"С графиком ознакомлен(а):"]
[]
[null,null,null,null,null,null,null,null,null,null,null,null,null,null,null,null,null,null,null,null,null,null,null,null,null,null,null,null,null,null,null,null,null,null,null,null,null,null,null,null,null,null,null,null,null,null,null,null,null,null,null,null,null,null,null,null,null,null,null,null,null,null,null,null,null,null,null,null,null,null,null,null,null,null,"\"___\"______________2020"]
[null,null,null,null,null,null,null,null,null,null,null,null,null,null,null,null,null,null,null,null,null,null,null,null,null,null,null,null,null,null,null,null,null,null,null,null,null,null,null,null,null,null,null,null,null,null,null,null,null,null,null,null,null,null,null,null,null,null,null,null,null,null,null,null,null,null,null,null,null,null,null,null,null,null,"\"___\"______________2020"]
[null,null,null,null,null,null,null,null,null,null,null,null,null,null,null,null,null,null,null,null,null,null,null,null,null,null,null,null,null,null,null,null,null,null,null,null,null,null,null,null,null,null,null,null,null,null,null,null,null,null,null,null,null,null,null,null,null,null,null,null,null,null,null,null,null,null,null,null,null,null,null,null,null,null,"\"___\"______________2020"]
[null,null,null,null,null,null,null,null,null,null,null,null,null,null,null,null,null,null,null,null,null,null,null,null,null,null,null,null,null,null,null,null,null,null,null,null,null,null,null,null,null,null,null,null,null,null,null,null,null,null,null,null,null,null,null,null,null,null,null,null,null,null,null,null,null,null,null,null,null,null,null,null,null,null,"\"___\"______________2020"]
[null,null,null,null,null,null,null,null,null,null,null,null,null,null,null,null,null,null,null,null,null,null,null,null,null,null,null,null,null,null,null,null,null,null,null,null,null,null,null,null,null,null,null,null,null,null,null,null,null,null,null,null,null,null,null,null,null,null,null,null,null,null,null,null,null,null,null,null,null,null,null,null,null,null,"\"___\"______________2020"]
[null,null,null,null,null,null,null,null,null,null,null,null,null,null,null,null,null,null,null,null,null,null,null,null,null,null,null,null,null,null,null,null,null,null,null,null,null,null,null,null,null,null,null,null,null,null,null,null,null,null,null,null,null,null,null,null,null,null,null,null,null,null,null,null,null,null,null,null,null,null,null,null,null,null,"\"___\"______________2020"]
[null,null,null,null,null,null,null,null,null,null,null,null,null,null,null,null,null,null,null,null,null,null,null,null,null,null,null,null,null,null,null,null,null,null,null,null,null,null,null,null,null,null,null,null,null,null,null,null,null,null,null,null,null,null,null,null,null,null,null,null,null,null,null,null,null,null,null,null,null,null,null,null,null,null,"\"___\"______________2020"]
[null,null,null,null,null,null,null,null,null,null,null,null,null,null,null,null,null,null,null,null,null,null,null,null,null,null,null,null,null,null,null,null,null,null,null,null,null,null,null,null,null,null,null,null,null,null,null,null,null,null,null,null,null,null,null,null,null,null,null,null,null,null,null,null,null,null,null,null,null,null,null,null,null,null,"\"___\"______________2020"]
[null,null,null,null,null,null,null,null,null,null,null,null,null,null,null,null,null,null,null,null,null,null,null,null,null,null,null,null,null,null,null,null,null,null,null,null,null,null,null,null,null,null,null,null,null,null,null,null,null,null,null,null,null,null,null,null,null,null,null,null,null,null,null,null,null,null,null,null,null,null,null,null,null,null,"\"___\"______________2020"]
[null,null,null,null,null,null,null,null,null,null,null,null,null,null,null,null,null,null,null,null,null,null,null,null,null,null,null,null,null,null,null,null,null,null,null,null,null,null,null,null,null,null,null,null,null,null,null,null,null,null,null,null,null,null,null,null,null,null,null,null,null,null,null,null,null,null,null,null,null,null,null,null,null,null,"\"___\"______________2020"]
[null,null,null,null,null,null,null,null,null,null,null,null,null,null,null,null,12,null,null,null,null,null,null,null,null,null,null,null,null,null,null,null,null,null,null,null,null,null,null,null,null,null,null,null,null,null,null,null,null,null,null,null,null,null,null,null,null,null,null,null,null,null,null,null,null,null,null,null,null,null,null,null,null,null,"\"___\"______________2020"]
[null,null,null,null,null,null,null,null,null,null,null,null,null,null,null,null,null,null,null,null,null,null,null,null,null,null,null,null,null,null,null,null,null,null,null,null,null,null,null,null,null,null,null,null,null,null,null,null,null,null,null,null,null,null,null,null,null,null,null,null,null,null,null,null,null,null,null,null,null,null,null,null,null,null,"\"___\"______________2020"]

{"sheet":"ТАБЕЛЬ К.П. ДЕКАБРЬ ","index":1,"n_rows":63,"n_cols":60,"rows_kept":63,"cut":false,"hidden":false,"merged":[[37,56,38,56],[49,8,52,28],[37,50,38,50],[37,51,38,51],[37,52,38,52],[37,53,38,53],[37,54,38,54],[37,55,38,55],[37,44,38,44],[37,45,38,45],[37,46,38,46],[37,47,38,47],[37,48,38,48],[37,49,38,49],[37,38,38,38],[37,39,38,39],[37,40,38,40],[37,41,38,41],[37,42,38,42],[37,43,38,43],[37,0,38,0],[37,1,38,1],[37,2,38,2],[37,3,38,3],[37,4,38,4],[37,37,38,37],[33,53,34,53],[33,54,34,54],[33,55,34,55],[33,56,34,56],[35,2,36,2],[35,3,36,3],[35,37,36,37],[35,38,36,38],[33,47,34,47],[33,48,34,48],[33,49,34,49],[33,50,34,50],[33,51,34,51],[33,52,34,52],[33,41,34,41],[33,42,34,42],[33,43,34,43],[33,44,34,44],[33,45,34,45],[33,46,34,46],[33,2,34,2],[33,3,34,3],[33,37,34,37],[33,38,34,38],[33,39,34,39],[33,40,34,40],[29,2,30,2],[29,3,30,3],[29,37,30,37],[29,38,30,38],[29,47,30,47],[31,2,32,2],[31,3,32,3],[31,37,32,37],[31,38,32,38],[31,47,32,47],[25,2,26,2],[25,3,26,3],[25,37,26,37],[25,38,26,38],[25,47,26,47],[27,2,28,2],[27,3,28,3],[27,37,28,37],[27,38,28,38],[27,47,28,47],[21,2,22,2],[21,3,22,3],[21,37,22,37],[21,38,22,38],[21,47,22,47],[23,2,24,2],[23,3,24,3],[23,37,24,37],[23,38,24,38],[23,47,24,47],[17,2,18,2],[17,3,18,3],[17,37,18,37],[17,38,18,38],[17,47,18,47],[19,2,20,2],[19,3,20,3],[19,37,20,37],[19,38,20,38],[19,47,20,47],[9,25,11,25],[13,46,13,55],[15,2,16,2],[15,3,16,3],[15,37,16,37],[15,38,16,38],[15,39,16,39],[15,47,16,47],[9,51,11,51],[9,52,11,52],[9,53,11,53],[9,54,11,54],[9,55,11,55],[10,39,11,39],[10,40,10,45],[9,38,11,38],[9,39,9,45],[9,47,11,47],[9,48,11,48],[9,49,11,49],[9,50,11,50],[9,32,11,32],[9,33,11,33],[9,34,11,34],[8,38,8,45],[8,46,11,46],[8,47,8,55],[9,36,11,36],[9,37,11,37],[9,26,11,26],[9,27,11,27],[9,28,11,28],[9,29,11,29],[9,30,11,30],[9,31,11,31],[9,35,11,35],[9,8,11,8],[9,9,11,9],[9,10,11,10],[7,17,7,22],[8,0,11,0],[8,1,11,1],[8,2,11,2],[8,3,11,3],[8,4,11,4],[8,5,8,36],[9,11,11,11],[9,12,11,12],[9,13,11,13],[9,14,11,14],[9,15,11,15],[9,16,11,16],[9,17,11,17],[9,18,11,18],[9,19,11,19],[9,20,11,20],[9,21,11,21],[9,22,11,22],[9,23,11,23],[9,24,11,24],[1,0,1,6],[1,44,1,48],[2,2,2,12],[2,24,2,26],[2,27,2,29],[3,0,3,2],[3,38,3,42],[54,8,55,28],[6,4,6,16],[6,17,6,22],[6,23,6,25],[6,38,6,42],[6,43,6,46],[6,48,6,56],[3,51,3,56],[4,0,4,6],[5,8,5,20],[5,38,5,41],[5,44,5,46],[5,48,5,53],[8,56,11,56],[9,5,11,5],[9,6,11,6],[9,7,11,7]]}
[]
[]
[]
[]
["название структурного подразделения"]
[null,null,null,null,null,null,null,null,"ГРАФИК РАБОТЫ",null,null,null,null,null,null,null,null,null,null,null,null,null,null,null,null,null,null,null,null,null,null,null,null,null,null,null,null,null,null,null,null,null,"с",null,null,null,null,"по","2020-05-31"]
[null,null,null,null,"обслуживающего персонала на",null,null,null,null,null,null,null,null,null,null,null,null,{"$f":"IF(DAY(D42)>=28,EDATE(D42,1),D42)","v":"2020-12-01"},null,null,null,null,null,"года",null,null,null,null,null,null,null,null,null,null,null,null,null,null,null,null,null,null,null,"Рабочих дней",null,null,null,{"$f":"VLOOKUP(AM8,'[4]производственный календарь '!$B$2:$D$13,3,0)","v":23},"Рабочих часов",null,null,null,null,null,null,null,null,{"$f":"VLOOKUP(AM8,'[4]производственный календарь '!$B$2:D13,2,0)","v":183}]
[null,null,null,null,null,null,null,null,null,null,null,null,null,null,null,null,null,"МАРТ",null,null,null,null,null,null,null,null,null,null,null,null,null,null,null,null,null,null,null,null,"декабрь"]
["№ п/п","Табельний номер","Фамилия, и., о.","Профессия,\nдолжность","номер","Отметки о явках и неявках на работу по числам месяца (часов)",null,null,null,null,null,null,null,null,null,null,null,null,null,null,null,null,null,null,null,null,null,null,null,null,null,null,null,null,null,null,null," ","отработано за месяц",null,null,null,null,null,null,null,"Всего неявок","Дни неявок",null,null,null,null,null,null,null,null,"Выходные дни"]
[null,null,null,null,null,1,2,3,4,5,6,7,8,9,10,11,12,13,14,15,"X",16,17,18,19,20,21,22,23,24,25,26,27,28,29,30,31,"дни явок","всего отработано","часов",null,null,null,null,null,null,null,"Очередной отпуск","Больничные","Бесплатный отпуск (А)","Отпуск родовой","Учеьный отпуск","Отпуск ЧАЭС","Прогул","Отпуск женский","Командировка"]
[null,null,null,null,null,null,null,null,null,null,null,null,null,null,null,null,null,null,null,null,null,null,null,null,null,null,null,null,null,null,null,null,null,null,null,null,null,null,null,"всего отработано","из них"]
[null,null,null,null,null,null," "," ",null,null,null,null,null," ",null,null,null,null,null,null,null,null,null,null,null,null,null,null,null,null,null,null,null,null,null,null,null,null,null,null,"Ночные","Вечерние","Праздничные","Сверхурочные","Работы в выходной","Переработка"]
[null,null,null,null,null,null,null,null,null,null,null,null,null,null,null,null,null,null,null,null,"Х",null,null,null,null,null,null,null,null,null,null,null,null,null,null,null,null,null,null,null,null,null,null,null,null,null,null,null,null,null,null,null,null,null,null,null,null,null,null,"Столбец1"]
[1,"2","3","4","5",null,null,null,null,null,null,null,null,null,null,null,null,null,null,null,null,null,null,null,null,null,null,null,null,null,null,null,null,null,null,null,null,"7",null,"9",null,null,null,null,null,null,"10",null,null,null,null,null,null,null,null,null,"11"]
[null,null,null,null,null,null,null,null,null,null,null,null,null,null,null,null,null,null,null,null,6,null,null,null,null,null,null,null,null,null,null,null,null,null,null,null,null,null,null,null,null,null,null,null,null,null,null,null,null,null,null,null,null,null,null,null,null,null,null,"упраляющий участка"]
[1,null,null,null,null,{"$f":"INDEX('[4]ГРАФИК К.П  ДЕКАБРЬ '!$AC$25:$HF$25,1,MATCH(F$10,'[4]ГРАФИК К.П  ДЕКАБРЬ '!$AC$19:$HF$19,0))","v":"05:00:00"},{"$f":"INDEX('[4]ГРАФИК К.П  ДЕКАБРЬ '!$AC$25:$HF$25,1,MATCH(G$10,'[4]ГРАФИК К.П  ДЕКАБРЬ '!$AC$19:$HF$19,0))","v":"00:00:00"},{"$f":"INDEX('[4]ГРАФИК К.П  ДЕКАБРЬ '!$AC$25:$HF$25,1,MATCH(H$10,'[4]ГРАФИК К.П  ДЕКАБРЬ '!$AC$19:$HF$19,0))","v":"07:00:00"},{"$f":"INDEX('[4]ГРАФИК К.П  ДЕКАБРЬ '!$AC$25:$HF$25,1,MATCH(I$10,'[4]ГРАФИК К.П  ДЕКАБРЬ '!$AC$19:$HF$19,0))","v":"07:00:00"},{"$f":"INDEX('[4]ГРАФИК К.П  ДЕКАБРЬ '!$AC$25:$HF$25,1,MATCH(J$10,'[4]ГРАФИК К.П  ДЕКАБРЬ '!$AC$19:$HF$19,0))","v":"08:00:00"},{"$f":"INDEX('[4]ГРАФИК К.П  ДЕКАБРЬ '!$AC$25:$HF$25,1,MATCH(K$10,'[4]ГРАФИК К.П  ДЕКАБРЬ '!$AC$19:$HF$19,0))","v":"08:00:00"},{"$f":"INDEX('[4]ГРАФИК К.П  ДЕКАБРЬ '!$AC$25:$HF$25,1,MATCH(L$10,'[4]ГРАФИК К.П  ДЕКАБРЬ '!$AC$19:$HF$19,0))","v":"07:00:00"},{"$f":"INDEX('[4]ГРАФИК К.П  ДЕКАБРЬ '!$AC$25:$HF$25,1,MATCH(M$10,'[4]ГРАФИК К.П  ДЕКАБРЬ '!$AC$19:$HF$19,0))","v":"05:00:00"},{"$f":"INDEX('[4]ГРАФИК К.П  ДЕКАБРЬ '!$AC$25:$HF$25,1,MATCH(N$10,'[4]ГРАФИК К.П  ДЕКАБРЬ '!$AC$19:$HF$19,0))","v":"00:00:00"},{"$f":"INDEX('[4]ГРАФИК К.П  ДЕКАБРЬ '!$AC$25:$HF$25,1,MATCH(O$10,'[4]ГРАФИК К.П  ДЕКАБРЬ '!$AC$19:$HF$19,0))","v":"07:00:00"},{"$f":"INDEX('[4]ГРАФИК К.П  ДЕКАБРЬ '!$AC$25:$HF$25,1,MATCH(P$10,'[4]ГРАФИК К.П  ДЕКАБРЬ '!$AC$19:$HF$19,0))","v":"07:00:00"},{"$f":"INDEX('[4]ГРАФИК К.П  ДЕКАБРЬ '!$AC$25:$HF$25,1,MATCH(Q$10,'[4]ГРАФИК К.П  ДЕКАБРЬ '!$AC$19:$HF$19,0))","v":"08:00:00"},{"$f":"INDEX('[4]ГРАФИК К.П  ДЕКАБРЬ '!$AC$25:$HF$25,1,MATCH(R$10,'[4]ГРАФИК К.П  ДЕКАБРЬ '!$AC$19:$HF$19,0))","v":"08:00:00"},{"$f":"INDEX('[4]ГРАФИК К.П  ДЕКАБРЬ '!$AC$25:$HF$25,1,MATCH(S$10,'[4]ГРАФИК К.П  ДЕКАБРЬ '!$AC$19:$HF$19,0))","v":"07:00:00"},{"$f":"INDEX('[4]ГРАФИК К.П  ДЕКАБРЬ '!$AC$25:$HF$25,1,MATCH(T$10,'[4]ГРАФИК К.П  ДЕКАБРЬ '!$AC$19:$HF$19,0))","v":"05:00:00"},{"$f":"INDEX('[4]ГРАФИК К.П  ДЕКАБРЬ '!$AC$56:$HF$56,1,MATCH(U$10,'[4]ГРАФИК К.П  ДЕКАБРЬ '!$AC$19:$HF$19,0))","v":{"$error":"#N/A"}},{"$f":"INDEX('[4]ГРАФИК К.П  ДЕКАБРЬ '!$AC$25:$HF$25,1,MATCH(V$10,'[4]ГРАФИК К.П  ДЕКАБРЬ '!$AC$19:$HF$19,0))","v":"00:00:00"},{"$f":"INDEX('[4]ГРАФИК К.П  ДЕКАБРЬ '!$AC$25:$HF$25,1,MATCH(W$10,'[4]ГРАФИК К.П  ДЕКАБРЬ '!$AC$19:$HF$19,0))","v":"07:00:00"},{"$f":"INDEX('[4]ГРАФИК К.П  ДЕКАБРЬ '!$AC$25:$HF$25,1,MATCH(X$10,'[4]ГРАФИК К.П  ДЕКАБРЬ '!$AC$19:$HF$19,0))","v":"07:00:00"},{"$f":"INDEX('[4]ГРАФИК К.П  ДЕКАБРЬ '!$AC$25:$HF$25,1,MATCH(Y$10,'[4]ГРАФИК К.П  ДЕКАБРЬ '!$AC$19:$HF$19,0))","v":"08:00:00"},{"$f":"INDEX('[4]ГРАФИК К.П  ДЕКАБРЬ '!$AC$25:$HF$25,1,MATCH(Z$10,'[4]ГРАФИК К.П  ДЕКАБРЬ '!$AC$19:$HF$19,0))","v":"08:00:00"},{"$f":"INDEX('[4]ГРАФИК К.П  ДЕКАБРЬ '!$AC$25:$HF$25,1,MATCH(AA$10,'[4]ГРАФИК К.П  ДЕКАБРЬ '!$AC$19:$HF$19,0))","v":"07:00:00"},{"$f":"INDEX('[4]ГРАФИК К.П  ДЕКАБРЬ '!$AC$25:$HF$25,1,MATCH(AB$10,'[4]ГРАФИК К.П  ДЕКАБРЬ '!$AC$19:$HF$19,0))","v":"05:00:00"},{"$f":"INDEX('[4]ГРАФИК К.П  ДЕКАБРЬ '!$AC$25:$HF$25,1,MATCH(AC$10,'[4]ГРАФИК К.П  ДЕКАБРЬ '!$AC$19:$HF$19,0))","v":"00:00:00"},{"$f":"INDEX('[4]ГРАФИК К.П  ДЕКАБРЬ '!$AC$25:$HF$25,1,MATCH(AD$10,'[4]ГРАФИК К.П  ДЕКАБРЬ '!$AC$19:$HF$19,0))","v":"07:00:00"},{"$f":"INDEX('[4]ГРАФИК К.П  ДЕКАБРЬ '!$AC$25:$HF$25,1,MATCH(AE$10,'[4]ГРАФИК К.П  ДЕКАБРЬ '!$AC$19:$HF$19,0))","v":"08:00:00"},{"$f":"INDEX('[4]ГРАФИК К.П  ДЕКАБРЬ '!$AC$25:$HF$25,1,MATCH(AF$10,'[4]ГРАФИК К.П  ДЕКАБРЬ '!$AC$19:$HF$19,0))","v":"08:00:00"},{"$f":"INDEX('[4]ГРАФИК К.П  ДЕКАБРЬ '!$AC$25:$HF$25,1,MATCH(AG$10,'[4]ГРАФИК К.П  ДЕКАБРЬ '!$AC$19:$HF$19,0))","v":"08:00:00"},{"$f":"INDEX('[4]ГРАФИК К.П  ДЕКАБРЬ '!$AC$25:$HF$25,1,MATCH(AH$10,'[4]ГРАФИК К.П  ДЕКАБРЬ '!$AC$19:$HF$19,0))","v":"08:00:00"},{"$f":"INDEX('[4]ГРАФИК К.П  ДЕКАБРЬ '!$AC$25:$HF$25,1,MATCH(AI$10,'[4]ГРАФИК К.П  ДЕКАБРЬ '!$AC$19:$HF$19,0))","v":"05:00:00"},{"$f":"INDEX('[4]ГРАФИК К.П  ДЕКАБРЬ '!$AC$25:$HF$25,1,MATCH(AJ$10,'[4]ГРАФИК К.П  ДЕКАБРЬ '!$AC$19:$HF$19,0))","v":"00:00:00"},{"$f":"INDEX('[4]ГРАФИК К.П  ДЕКАБРЬ '!$AC$25:$HF$25,1,MATCH(AK$10,'[4]ГРАФИК К.П  ДЕКАБРЬ '!$AC$19:$HF$19,0))","v":"08:00:00"},{"$f":"COUNTIF($F16:$AK16,\">0\")","v":26},{"$f":"SUM($F$16:$AK$16)","v":{"$error":"#N/A"}},null,null,null,null,null,null,null,null,{"$f":"COUNTIF($F17:$AK17,\"=От\")","v":0},null,null,null,null,null,null,null,null,{"$f":"COUNTIF(F17:AK17,\"В\")","v":5},null,null,"слесарь-ремонтник"]
[null,null,null,null,null,{"$f":"IF('[4]ГРАФИК К.П  ДЕКАБРЬ '!AC22=\"ОТ\",\"ОТ\",IF(F16=0,\"В\",\"Я\"))","v":"Я"},{"$f":"IF('[4]ГРАФИК К.П  ДЕКАБРЬ '!AD22=\"ОТ\",\"ОТ\",IF(G16=0,\"В\",\"Я\"))","v":"В"},{"$f":"IF('[4]ГРАФИК К.П  ДЕКАБРЬ '!AE22=\"ОТ\",\"ОТ\",IF(H16=0,\"В\",\"Я\"))","v":"Я"},{"$f":"IF('[4]ГРАФИК К.П  ДЕКАБРЬ '!AF22=\"ОТ\",\"ОТ\",IF(I16=0,\"В\",\"Я\"))","v":"Я"},{"$f":"IF('[4]ГРАФИК К.П  ДЕКАБРЬ '!AG22=\"ОТ\",\"ОТ\",IF(J16=0,\"В\",\"Я\"))","v":"Я"},{"$f":"IF('[4]ГРАФИК К.П  ДЕКАБРЬ '!AH22=\"ОТ\",\"ОТ\",IF(K16=0,\"В\",\"Я\"))","v":"Я"},{"$f":"IF('[4]ГРАФИК К.П  ДЕКАБРЬ '!AI22=\"ОТ\",\"ОТ\",IF(L16=0,\"В\",\"Я\"))","v":"Я"},{"$f":"IF('[4]ГРАФИК К.П  ДЕКАБРЬ '!AJ22=\"ОТ\",\"ОТ\",IF(M16=0,\"В\",\"Я\"))","v":"Я"},{"$f":"IF('[4]ГРАФИК К.П  ДЕКАБРЬ '!AK22=\"ОТ\",\"ОТ\",IF(N16=0,\"В\",\"Я\"))","v":"В"},{"$f":"IF('[4]ГРАФИК К.П  ДЕКАБРЬ '!AL22=\"ОТ\",\"ОТ\",IF(O16=0,\"В\",\"Я\"))","v":"Я"},{"$f":"IF('[4]ГРАФИК К.П  ДЕКАБРЬ '!AM22=\"ОТ\",\"ОТ\",IF(P16=0,\"В\",\"Я\"))","v":"Я"},{"$f":"IF('[4]ГРАФИК К.П  ДЕКАБРЬ '!AN22=\"ОТ\",\"ОТ\",IF(Q16=0,\"В\",\"Я\"))","v":"Я"},{"$f":"IF('[4]ГРАФИК К.П  ДЕКАБРЬ '!AO22=\"ОТ\",\"ОТ\",IF(R16=0,\"В\",\"Я\"))","v":"Я"},{"$f":"IF('[4]ГРАФИК К.П  ДЕКАБРЬ '!AP22=\"ОТ\",\"ОТ\",IF(S16=0,\"В\",\"Я\"))","v":"Я"},{"$f":"IF('[4]ГРАФИК К.П  ДЕКАБРЬ '!AQ22=\"ОТ\",\"ОТ\",IF(T16=0,\"В\",\"Я\"))","v":"Я"},{"$f":"IF('[4]ГРАФИК К.П  ДЕКАБРЬ '!AR22=\"ОТ\",\"ОТ\",IF(U16=0,\"В\",\"Я\"))","v":{"$error":"#N/A"}},{"$f":"IF('[4]ГРАФИК К.П  ДЕКАБРЬ '!AS22=\"ОТ\",\"ОТ\",IF(V16=0,\"В\",\"Я\"))","v":"В"},{"$f":"IF('[4]ГРАФИК К.П  ДЕКАБРЬ '!AT22=\"ОТ\",\"ОТ\",IF(W16=0,\"В\",\"Я\"))","v":"Я"},{"$f":"IF('[4]ГРАФИК К.П  ДЕКАБРЬ '!AU22=\"ОТ\",\"ОТ\",IF(X16=0,\"В\",\"Я\"))","v":"Я"},{"$f":"IF('[4]ГРАФИК К.П  ДЕКАБРЬ '!AV22=\"ОТ\",\"ОТ\",IF(Y16=0,\"В\",\"Я\"))","v":"Я"},{"$f":"IF('[4]ГРАФИК К.П  ДЕКАБРЬ '!AW22=\"ОТ\",\"ОТ\",IF(Z16=0,\"В\",\"Я\"))","v":"Я"},{"$f":"IF('[4]ГРАФИК К.П  ДЕКАБРЬ '!AX22=\"ОТ\",\"ОТ\",IF(AA16=0,\"В\",\"Я\"))","v":"Я"},{"$f":"IF('[4]ГРАФИК К.П  ДЕКАБРЬ '!AY22=\"ОТ\",\"ОТ\",IF(AB16=0,\"В\",\"Я\"))","v":"Я"},{"$f":"IF('[4]ГРАФИК К.П  ДЕКАБРЬ '!AZ22=\"ОТ\",\"ОТ\",IF(AC16=0,\"В\",\"Я\"))","v":"В"},{"$f":"IF('[4]ГРАФИК К.П  ДЕКАБРЬ '!BA22=\"ОТ\",\"ОТ\",IF(AD16=0,\"В\",\"Я\"))","v":"Я"},{"$f":"IF('[4]ГРАФИК К.П  ДЕКАБРЬ '!BB22=\"ОТ\",\"ОТ\",IF(AE16=0,\"В\",\"Я\"))","v":"Я"},{"$f":"IF('[4]ГРАФИК К.П  ДЕКАБРЬ '!BC22=\"ОТ\",\"ОТ\",IF(AF16=0,\"В\",\"Я\"))","v":"Я"},{"$f":"IF('[4]ГРАФИК К.П  ДЕКАБРЬ '!BD22=\"ОТ\",\"ОТ\",IF(AG16=0,\"В\",\"Я\"))","v":"Я"},{"$f":"IF('[4]ГРАФИК К.П  ДЕКАБРЬ '!BE22=\"ОТ\",\"ОТ\",IF(AH16=0,\"В\",\"Я\"))","v":"Я"},{"$f":"IF('[4]ГРАФИК К.П  ДЕКАБРЬ '!BF22=\"ОТ\",\"ОТ\",IF(AI16=0,\"В\",\"Я\"))","v":"Я"},{"$f":"IF('[4]ГРАФИК К.П  ДЕКАБРЬ '!BG22=\"ОТ\",\"ОТ\",IF(AJ16=0,\"В\",\"Я\"))","v":"В"},{"$f":"IF('[4]ГРАФИК К.П  ДЕКАБРЬ '!BH22=\"ОТ\",\"ОТ\",IF(AK16=0,\"В\",\"Я\"))","v":"Я"},null,null,null,null,null,null,null,null,null,null,null,null,null,null,null,null,null,null,null,null,null,null,"электрик"]
[2,null,null,null,null,{"$f":"INDEX('[4]ГРАФИК К.П  ДЕКАБРЬ '!$AC$32:$HF$32,1,MATCH(F$10,'[4]ГРАФИК К.П  ДЕКАБРЬ '!$AC$19:$HF$19,0))","v":"00:00:00"},{"$f":"INDEX('[4]ГРАФИК К.П  ДЕКАБРЬ '!$AC$32:$HF$32,1,MATCH(G$10,'[4]ГРАФИК К.П  ДЕКАБРЬ '!$AC$19:$HF$19,0))","v":"09:00:00"},{"$f":"INDEX('[4]ГРАФИК К.П  ДЕКАБРЬ '!$AC$32:$HF$32,1,MATCH(H$10,'[4]ГРАФИК К.П  ДЕКАБРЬ '!$AC$19:$HF$19,0))","v":"09:00:00"},{"$f":"INDEX('[4]ГРАФИК К.П  ДЕКАБРЬ '!$AC$32:$HF$32,1,MATCH(I$10,'[4]ГРАФИК К.П  ДЕКАБРЬ '!$AC$19:$HF$19,0))","v":"09:00:00"},{"$f":"INDEX('[4]ГРАФИК К.П  ДЕКАБРЬ '!$AC$32:$HF$32,1,MATCH(J$10,'[4]ГРАФИК К.П  ДЕКАБРЬ '!$AC$19:$HF$19,0))","v":"09:00:00"},{"$f":"INDEX('[4]ГРАФИК К.П  ДЕКАБРЬ '!$AC$32:$HF$32,1,MATCH(K$10,'[4]ГРАФИК К.П  ДЕКАБРЬ '!$AC$19:$HF$19,0))","v":"09:00:00"},{"$f":"INDEX('[4]ГРАФИК К.П  ДЕКАБРЬ '!$AC$32:$HF$32,1,MATCH(L$10,'[4]ГРАФИК К.П  ДЕКАБРЬ '!$AC$19:$HF$19,0))","v":"00:00:00"},{"$f":"INDEX('[4]ГРАФИК К.П  ДЕКАБРЬ '!$AC$32:$HF$32,1,MATCH(M$10,'[4]ГРАФИК К.П  ДЕКАБРЬ '!$AC$19:$HF$19,0))","v":"00:00:00"},{"$f":"INDEX('[4]ГРАФИК К.П  ДЕКАБРЬ '!$AC$32:$HF$32,1,MATCH(N$10,'[4]ГРАФИК К.П  ДЕКАБРЬ '!$AC$19:$HF$19,0))","v":"09:00:00"},{"$f":"INDEX('[4]ГРАФИК К.П  ДЕКАБРЬ '!$AC$32:$HF$32,1,MATCH(O$10,'[4]ГРАФИК К.П  ДЕКАБРЬ '!$AC$19:$HF$19,0))","v":"09:00:00"},{"$f":"INDEX('[4]ГРАФИК К.П  ДЕКАБРЬ '!$AC$32:$HF$32,1,MATCH(P$10,'[4]ГРАФИК К.П  ДЕКАБРЬ '!$AC$19:$HF$19,0))","v":"08:00:00"},{"$f":"INDEX('[4]ГРАФИК К.П  ДЕКАБРЬ '!$AC$32:$HF$32,1,MATCH(Q$10,'[4]ГРАФИК К.П  ДЕКАБРЬ '!$AC$19:$HF$19,0))","v":"08:00:00"},{"$f":"INDEX('[4]ГРАФИК К.П  ДЕКАБРЬ '!$AC$32:$HF$32,1,MATCH(R$10,'[4]ГРАФИК К.П  ДЕКАБРЬ '!$AC$19:$HF$19,0))","v":"08:00:00"},{"$f":"INDEX('[4]ГРАФИК К.П  ДЕКАБРЬ '!$AC$32:$HF$32,1,MATCH(S$10,'[4]ГРАФИК К.П  ДЕКАБРЬ '!$AC$19:$HF$19,0))","v":"00:00:00"},{"$f":"INDEX('[4]ГРАФИК К.П  ДЕКАБРЬ '!$AC$32:$HF$32,1,MATCH(T$10,'[4]ГРАФИК К.П  ДЕКАБРЬ '!$AC$19:$HF$19,0))","v":"00:00:00"},null,{"$f":"INDEX('[4]ГРАФИК К.П  ДЕКАБРЬ '!$AC$32:$HF$32,1,MATCH(V$10,'[4]ГРАФИК К.П  ДЕКАБРЬ '!$AC$19:$HF$19,0))","v":"08:00:00"},{"$f":"INDEX('[4]ГРАФИК К.П  ДЕКАБРЬ '!$AC$32:$HF$32,1,MATCH(W$10,'[4]ГРАФИК К.П  ДЕКАБРЬ '!$AC$19:$HF$19,0))","v":"08:00:00"},{"$f":"INDEX('[4]ГРАФИК К.П  ДЕКАБРЬ '!$AC$32:$HF$32,1,MATCH(X$10,'[4]ГРАФИК К.П  ДЕКАБРЬ '!$AC$19:$HF$19,0))","v":"08:00:00"},{"$f":"INDEX('[4]ГРАФИК К.П  ДЕКАБРЬ '!$AC$32:$HF$32,1,MATCH(Y$10,'[4]ГРАФИК К.П  ДЕКАБРЬ '!$AC$19:$HF$19,0))","v":"08:00:00"},{"$f":"INDEX('[4]ГРАФИК К.П  ДЕКАБРЬ '!$AC$32:$HF$32,1,MATCH(Z$10,'[4]ГРАФИК К.П  ДЕКАБРЬ '!$AC$19:$HF$19,0))","v":"08:00:00"},{"$f":"INDEX('[4]ГРАФИК К.П  ДЕКАБРЬ '!$AC$32:$HF$32,1,MATCH(AA$10,'[4]ГРАФИК К.П  ДЕКАБРЬ '!$AC$19:$HF$19,0))","v":"00:00:00"},{"$f":"INDEX('[4]ГРАФИК К.П  ДЕКАБРЬ '!$AC$32:$HF$32,1,MATCH(AB$10,'[4]ГРАФИК К.П  ДЕКАБРЬ '!$AC$19:$HF$19,0))","v":"00:00:00"},{"$f":"INDEX('[4]ГРАФИК К.П  ДЕКАБРЬ '!$AC$32:$HF$32,1,MATCH(AC$10,'[4]ГРАФИК К.П  ДЕКАБРЬ '!$AC$19:$HF$19,0))","v":"08:00:00"},{"$f":"INDEX('[4]ГРАФИК К.П  ДЕКАБРЬ '!$AC$32:$HF$32,1,MATCH(AD$10,'[4]ГРАФИК К.П  ДЕКАБРЬ '!$AC$19:$HF$19,0))","v":"08:00:00"},{"$f":"INDEX('[4]ГРАФИК К.П  ДЕКАБРЬ '!$AC$32:$HF$32,1,MATCH(AE$10,'[4]ГРАФИК К.П  ДЕКАБРЬ '!$AC$19:$HF$19,0))","v":"08:00:00"},{"$f":"INDEX('[4]ГРАФИК К.П  ДЕКАБРЬ '!$AC$32:$HF$32,1,MATCH(AF$10,'[4]ГРАФИК К.П  ДЕКАБРЬ '!$AC$19:$HF$19,0))","v":"08:00:00"},{"$f":"INDEX('[4]ГРАФИК К.П  ДЕКАБРЬ '!$AC$32:$HF$32,1,MATCH(AG$10,'[4]ГРАФИК К.П  ДЕКАБРЬ '!$AC$19:$HF$19,0))","v":"08:00:00"},{"$f":"INDEX('[4]ГРАФИК К.П  ДЕКАБРЬ '!$AC$32:$HF$32,1,MATCH(AH$10,'[4]ГРАФИК К.П  ДЕКАБРЬ '!$AC$19:$HF$19,0))","v":"00:00:00"},{"$f":"INDEX('[4]ГРАФИК К.П  ДЕКАБРЬ '!$AC$32:$HF$32,1,MATCH(AI$10,'[4]ГРАФИК К.П  ДЕКАБРЬ '!$AC$19:$HF$19,0))","v":"00:00:00"},{"$f":"INDEX('[4]ГРАФИК К.П  ДЕКАБРЬ '!$AC$32:$HF$32,1,MATCH(AJ$10,'[4]ГРАФИК К.П  ДЕКАБРЬ '!$AC$19:$HF$19,0))","v":"08:00:00"},{"$f":"INDEX('[4]ГРАФИК К.П  ДЕКАБРЬ '!$AC$32:$HF$32,1,MATCH(AK$10,'[4]ГРАФИК К.П  ДЕКАБРЬ '!$AC$19:$HF$19,0))","v":"08:00:00"},{"$f":"COUNTIF($F18:$AK18,\">0\")","v":22},{"$f":"SUM($F$18:$AK$18)","v":7.6249999999999973},null,null,null,null,null,null,null,null,{"$f":"COUNTIF($F19:$AK19,\"=От\")","v":0},null,null,null,null,null,null,null,null,{"$f":"COUNTIF(F19:AK19,\"В\")","v":9},null,null,"контролёр-посадчик аттракциона"]
[null,null,null,null,null,{"$f":"IF('[4]ГРАФИК К.П  ДЕКАБРЬ '!AC29=\"ОТ\",\"ОТ\",IF(F18=0,\"В\",\"Я\"))","v":"В"},{"$f":"IF('[4]ГРАФИК К.П  ДЕКАБРЬ '!AD29=\"ОТ\",\"ОТ\",IF(G18=0,\"В\",\"Я\"))","v":"Я"},{"$f":"IF('[4]ГРАФИК К.П  ДЕКАБРЬ '!AE29=\"ОТ\",\"ОТ\",IF(H18=0,\"В\",\"Я\"))","v":"Я"},{"$f":"IF('[4]ГРАФИК К.П  ДЕКАБРЬ '!AF29=\"ОТ\",\"ОТ\",IF(I18=0,\"В\",\"Я\"))","v":"Я"},{"$f":"IF('[4]ГРАФИК К.П  ДЕКАБРЬ '!AG29=\"ОТ\",\"ОТ\",IF(J18=0,\"В\",\"Я\"))","v":"Я"},{"$f":"IF('[4]ГРАФИК К.П  ДЕКАБРЬ '!AH29=\"ОТ\",\"ОТ\",IF(K18=0,\"В\",\"Я\"))","v":"Я"},{"$f":"IF('[4]ГРАФИК К.П  ДЕКАБРЬ '!AI29=\"ОТ\",\"ОТ\",IF(L18=0,\"В\",\"Я\"))","v":"В"},{"$f":"IF('[4]ГРАФИК К.П  ДЕКАБРЬ '!AJ29=\"ОТ\",\"ОТ\",IF(M18=0,\"В\",\"Я\"))","v":"В"},{"$f":"IF('[4]ГРАФИК К.П  ДЕКАБРЬ '!AK29=\"ОТ\",\"ОТ\",IF(N18=0,\"В\",\"Я\"))","v":"Я"},{"$f":"IF('[4]ГРАФИК К.П  ДЕКАБРЬ '!AL29=\"ОТ\",\"ОТ\",IF(O18=0,\"В\",\"Я\"))","v":"Я"},{"$f":"IF('[4]ГРАФИК К.П  ДЕКАБРЬ '!AM29=\"ОТ\",\"ОТ\",IF(P18=0,\"В\",\"Я\"))","v":"Я"},{"$f":"IF('[4]ГРАФИК К.П  ДЕКАБРЬ '!AN29=\"ОТ\",\"ОТ\",IF(Q18=0,\"В\",\"Я\"))","v":"Я"},{"$f":"IF('[4]ГРАФИК К.П  ДЕКАБРЬ '!AO29=\"ОТ\",\"ОТ\",IF(R18=0,\"В\",\"Я\"))","v":"Я"},{"$f":"IF('[4]ГРАФИК К.П  ДЕКАБРЬ '!AP29=\"ОТ\",\"ОТ\",IF(S18=0,\"В\",\"Я\"))","v":"В"},{"$f":"IF('[4]ГРАФИК К.П  ДЕКАБРЬ '!AQ29=\"ОТ\",\"ОТ\",IF(T18=0,\"В\",\"Я\"))","v":"В"},null,{"$f":"IF('[4]ГРАФИК К.П  ДЕКАБРЬ '!AS29=\"ОТ\",\"ОТ\",IF(V18=0,\"В\",\"Я\"))","v":"Я"},{"$f":"IF('[4]ГРАФИК К.П  ДЕКАБРЬ '!AT29=\"ОТ\",\"ОТ\",IF(W18=0,\"В\",\"Я\"))","v":"Я"},{"$f":"IF('[4]ГРАФИК К.П  ДЕКАБРЬ '!AU29=\"ОТ\",\"ОТ\",IF(X18=0,\"В\",\"Я\"))","v":"Я"},{"$f":"IF('[4]ГРАФИК К.П  ДЕКАБРЬ '!AV29=\"ОТ\",\"ОТ\",IF(Y18=0,\"В\",\"Я\"))","v":"Я"},{"$f":"IF('[4]ГРАФИК К.П  ДЕКАБРЬ '!AW29=\"ОТ\",\"ОТ\",IF(Z18=0,\"В\",\"Я\"))","v":"Я"},{"$f":"IF('[4]ГРАФИК К.П  ДЕКАБРЬ '!AX29=\"ОТ\",\"ОТ\",IF(AA18=0,\"В\",\"Я\"))","v":"В"},{"$f":"IF('[4]ГРАФИК К.П  ДЕКАБРЬ '!AY29=\"ОТ\",\"ОТ\",IF(AB18=0,\"В\",\"Я\"))","v":"В"},{"$f":"IF('[4]ГРАФИК К.П  ДЕКАБРЬ '!AZ29=\"ОТ\",\"ОТ\",IF(AC18=0,\"В\",\"Я\"))","v":"Я"},{"$f":"IF('[4]ГРАФИК К.П  ДЕКАБРЬ '!BA29=\"ОТ\",\"ОТ\",IF(AD18=0,\"В\",\"Я\"))","v":"Я"},{"$f":"IF('[4]ГРАФИК К.П  ДЕКАБРЬ '!BB29=\"ОТ\",\"ОТ\",IF(AE18=0,\"В\",\"Я\"))","v":"Я"},{"$f":"IF('[4]ГРАФИК К.П  ДЕКАБРЬ '!BC29=\"ОТ\",\"ОТ\",IF(AF18=0,\"В\",\"Я\"))","v":"Я"},{"$f":"IF('[4]ГРАФИК К.П  ДЕКАБРЬ '!BD29=\"ОТ\",\"ОТ\",IF(AG18=0,\"В\",\"Я\"))","v":"Я"},{"$f":"IF('[4]ГРАФИК К.П  ДЕКАБРЬ '!BE29=\"ОТ\",\"ОТ\",IF(AH18=0,\"В\",\"Я\"))","v":"В"},{"$f":"IF('[4]ГРАФИК К.П  ДЕКАБРЬ '!BF29=\"ОТ\",\"ОТ\",IF(AI18=0,\"В\",\"Я\"))","v":"В"},{"$f":"IF('[4]ГРАФИК К.П  ДЕКАБРЬ '!BG29=\"ОТ\",\"ОТ\",IF(AJ18=0,\"В\",\"Я\"))","v":"Я"},{"$f":"IF('[4]ГРАФИК К.П  ДЕКАБРЬ '!BH29=\"ОТ\",\"ОТ\",IF(AK18=0,\"В\",\"Я\"))","v":"Я"},null,null,null,null,null,null,null,null,null,null,null,null,null,null,null,null,null,null,null,null,null,null,"сторож"]
[3,null,null,null,null,{"$f":"INDEX('[4]ГРАФИК К.П  ДЕКАБРЬ '!$AC$39:$HF$39,1,MATCH(F$10,'[4]ГРАФИК К.П  ДЕКАБРЬ '!$AC$19:$HF$19,0))","v":"00:00:00"},{"$f":"INDEX('[4]ГРАФИК К.П  ДЕКАБРЬ '!$AC$39:$HF$39,1,MATCH(G$10,'[4]ГРАФИК К.П  ДЕКАБРЬ '!$AC$19:$HF$19,0))","v":"00:00:00"},{"$f":"INDEX('[4]ГРАФИК К.П  ДЕКАБРЬ '!$AC$39:$HF$39,1,MATCH(H$10,'[4]ГРАФИК К.П  ДЕКАБРЬ '!$AC$19:$HF$19,0))","v":"00:00:00"},{"$f":"INDEX('[4]ГРАФИК К.П  ДЕКАБРЬ '!$AC$39:$HF$39,1,MATCH(I$10,'[4]ГРАФИК К.П  ДЕКАБРЬ '!$AC$19:$HF$19,0))","v":"00:00:00"},{"$f":"INDEX('[4]ГРАФИК К.П  ДЕКАБРЬ '!$AC$39:$HF$39,1,MATCH(J$10,'[4]ГРАФИК К.П  ДЕКАБРЬ '!$AC$19:$HF$19,0))","v":"00:00:00"},{"$f":"INDEX('[4]ГРАФИК К.П  ДЕКАБРЬ '!$AC$39:$HF$39,1,MATCH(K$10,'[4]ГРАФИК К.П  ДЕКАБРЬ '!$AC$19:$HF$19,0))","v":"00:00:00"},{"$f":"INDEX('[4]ГРАФИК К.П  ДЕКАБРЬ '!$AC$39:$HF$39,1,MATCH(L$10,'[4]ГРАФИК К.П  ДЕКАБРЬ '!$AC$19:$HF$19,0))","v":"00:00:00"},{"$f":"INDEX('[4]ГРАФИК К.П  ДЕКАБРЬ '!$AC$39:$HF$39,1,MATCH(M$10,'[4]ГРАФИК К.П  ДЕКАБРЬ '!$AC$19:$HF$19,0))","v":"00:00:00"},{"$f":"INDEX('[4]ГРАФИК К.П  ДЕКАБРЬ '!$AC$39:$HF$39,1,MATCH(N$10,'[4]ГРАФИК К.П  ДЕКАБРЬ '!$AC$19:$HF$19,0))","v":"00:00:00"},{"$f":"INDEX('[4]ГРАФИК К.П  ДЕКАБРЬ '!$AC$39:$HF$39,1,MATCH(O$10,'[4]ГРАФИК К.П  ДЕКАБРЬ '!$AC$19:$HF$19,0))","v":"00:00:00"},{"$f":"INDEX('[4]ГРАФИК К.П  ДЕКАБРЬ '!$AC$39:$HF$39,1,MATCH(P$10,'[4]ГРАФИК К.П  ДЕКАБРЬ '!$AC$19:$HF$19,0))","v":"00:00:00"},{"$f":"INDEX('[4]ГРАФИК К.П  ДЕКАБРЬ '!$AC$39:$HF$39,1,MATCH(Q$10,'[4]ГРАФИК К.П  ДЕКАБРЬ '!$AC$19:$HF$19,0))","v":"00:00:00"},{"$f":"INDEX('[4]ГРАФИК К.П  ДЕКАБРЬ '!$AC$39:$HF$39,1,MATCH(R$10,'[4]ГРАФИК К.П  ДЕКАБРЬ '!$AC$19:$HF$19,0))","v":"00:00:00"},{"$f":"INDEX('[4]ГРАФИК К.П  ДЕКАБРЬ '!$AC$39:$HF$39,1,MATCH(S$10,'[4]ГРАФИК К.П  ДЕКАБРЬ '!$AC$19:$HF$19,0))","v":"00:00:00"},{"$f":"INDEX('[4]ГРАФИК К.П  ДЕКАБРЬ '!$AC$39:$HF$39,1,MATCH(T$10,'[4]ГРАФИК К.П  ДЕКАБРЬ '!$AC$19:$HF$19,0))","v":"00:00:00"},null,{"$f":"INDEX('[4]ГРАФИК К.П  ДЕКАБРЬ '!$AC$39:$HF$39,1,MATCH(V$10,'[4]ГРАФИК К.П  ДЕКАБРЬ '!$AC$19:$HF$19,0))","v":"00:00:00"},{"$f":"INDEX('[4]ГРАФИК К.П  ДЕКАБРЬ '!$AC$39:$HF$39,1,MATCH(W$10,'[4]ГРАФИК К.П  ДЕКАБРЬ '!$AC$19:$HF$19,0))","v":"00:00:00"},{"$f":"INDEX('[4]ГРАФИК К.П  ДЕКАБРЬ '!$AC$39:$HF$39,1,MATCH(X$10,'[4]ГРАФИК К.П  ДЕКАБРЬ '!$AC$19:$HF$19,0))","v":"00:00:00"},{"$f":"INDEX('[4]ГРАФИК К.П  ДЕКАБРЬ '!$AC$39:$HF$39,1,MATCH(Y$10,'[4]ГРАФИК К.П  ДЕКАБРЬ '!$AC$19:$HF$19,0))","v":"00:00:00"},{"$f":"INDEX('[4]ГРАФИК К.П  ДЕКАБРЬ '!$AC$39:$HF$39,1,MATCH(Z$10,'[4]ГРАФИК К.П  ДЕКАБРЬ '!$AC$19:$HF$19,0))","v":"00:00:00"},{"$f":"INDEX('[4]ГРАФИК К.П  ДЕКАБРЬ '!$AC$39:$HF$39,1,MATCH(AA$10,'[4]ГРАФИК К.П  ДЕКАБРЬ '!$AC$19:$HF$19,0))","v":"00:00:00"},{"$f":"INDEX('[4]ГРАФИК К.П  ДЕКАБРЬ '!$AC$39:$HF$39,1,MATCH(AB$10,'[4]ГРАФИК К.П  ДЕКАБРЬ '!$AC$19:$HF$19,0))","v":"00:00:00"},{"$f":"INDEX('[4]ГРАФИК К.П  ДЕКАБРЬ '!$AC$39:$HF$39,1,MATCH(AC$10,'[4]ГРАФИК К.П  ДЕКАБРЬ '!$AC$19:$HF$19,0))","v":"00:00:00"},{"$f":"INDEX('[4]ГРАФИК К.П  ДЕКАБРЬ '!$AC$39:$HF$39,1,MATCH(AD$10,'[4]ГРАФИК К.П  ДЕКАБРЬ '!$AC$19:$HF$19,0))","v":"00:00:00"},{"$f":"INDEX('[4]ГРАФИК К.П  ДЕКАБРЬ '!$AC$39:$HF$39,1,MATCH(AE$10,'[4]ГРАФИК К.П  ДЕКАБРЬ '!$AC$19:$HF$19,0))","v":"00:00:00"},{"$f":"INDEX('[4]ГРАФИК К.П  ДЕКАБРЬ '!$AC$39:$HF$39,1,MATCH(AF$10,'[4]ГРАФИК К.П  ДЕКАБРЬ '!$AC$19:$HF$19,0))","v":"00:00:00"},{"$f":"INDEX('[4]ГРАФИК К.П  ДЕКАБРЬ '!$AC$39:$HF$39,1,MATCH(AG$10,'[4]ГРАФИК К.П  ДЕКАБРЬ '!$AC$19:$HF$19,0))","v":"00:00:00"},{"$f":"INDEX('[4]ГРАФИК К.П  ДЕКАБРЬ '!$AC$39:$HF$39,1,MATCH(AH$10,'[4]ГРАФИК К.П  ДЕКАБРЬ '!$AC$19:$HF$19,0))","v":"00:00:00"},{"$f":"INDEX('[4]ГРАФИК К.П  ДЕКАБРЬ '!$AC$39:$HF$39,1,MATCH(AI$10,'[4]ГРАФИК К.П  ДЕКАБРЬ '!$AC$19:$HF$19,0))","v":"00:00:00"},{"$f":"INDEX('[4]ГРАФИК К.П  ДЕКАБРЬ '!$AC$39:$HF$39,1,MATCH(AJ$10,'[4]ГРАФИК К.П  ДЕКАБРЬ '!$AC$19:$HF$19,0))","v":"00:00:00"},{"$f":"INDEX('[4]ГРАФИК К.П  ДЕКАБРЬ '!$AC$39:$HF$39,1,MATCH(AK$10,'[4]ГРАФИК К.П  ДЕКАБРЬ '!$AC$19:$HF$19,0))","v":"00:00:00"},{"$f":"COUNTIF($F20:$AK20,\">0\")","v":0},{"$f":"SUM($F$20:$AK$20)","v":0},null,null,null,null,null,null,null,null,{"$f":"COUNTIF($F21:$AK21,\"=От\")","v":0},null,null,null,null,null,null,null,null,{"$f":"COUNTIF(F21:AK21,\"В\")","v":31},null,null,"кассир билетный"]
[null,null,null,null,null,{"$f":"IF('[4]ГРАФИК К.П  ДЕКАБРЬ '!AC35=\"ОТ\",\"ОТ\",IF(F20=0,\"В\",\"Я\"))","v":"В"},{"$f":"IF('[4]ГРАФИК К.П  ДЕКАБРЬ '!AD35=\"ОТ\",\"ОТ\",IF(G20=0,\"В\",\"Я\"))","v":"В"},{"$f":"IF('[4]ГРАФИК К.П  ДЕКАБРЬ '!AE35=\"ОТ\",\"ОТ\",IF(H20=0,\"В\",\"Я\"))","v":"В"},{"$f":"IF('[4]ГРАФИК К.П  ДЕКАБРЬ '!AF35=\"ОТ\",\"ОТ\",IF(I20=0,\"В\",\"Я\"))","v":"В"},{"$f":"IF('[4]ГРАФИК К.П  ДЕКАБРЬ '!AG35=\"ОТ\",\"ОТ\",IF(J20=0,\"В\",\"Я\"))","v":"В"},{"$f":"IF('[4]ГРАФИК К.П  ДЕКАБРЬ '!AH35=\"ОТ\",\"ОТ\",IF(K20=0,\"В\",\"Я\"))","v":"В"},{"$f":"IF('[4]ГРАФИК К.П  ДЕКАБРЬ '!AI35=\"ОТ\",\"ОТ\",IF(L20=0,\"В\",\"Я\"))","v":"В"},{"$f":"IF('[4]ГРАФИК К.П  ДЕКАБРЬ '!AJ35=\"ОТ\",\"ОТ\",IF(M20=0,\"В\",\"Я\"))","v":"В"},{"$f":"IF('[4]ГРАФИК К.П  ДЕКАБРЬ '!AK35=\"ОТ\",\"ОТ\",IF(N20=0,\"В\",\"Я\"))","v":"В"},{"$f":"IF('[4]ГРАФИК К.П  ДЕКАБРЬ '!AL35=\"ОТ\",\"ОТ\",IF(O20=0,\"В\",\"Я\"))","v":"В"},{"$f":"IF('[4]ГРАФИК К.П  ДЕКАБРЬ '!AM35=\"ОТ\",\"ОТ\",IF(P20=0,\"В\",\"Я\"))","v":"В"},{"$f":"IF('[4]ГРАФИК К.П  ДЕКАБРЬ '!AN35=\"ОТ\",\"ОТ\",IF(Q20=0,\"В\",\"Я\"))","v":"В"},{"$f":"IF('[4]ГРАФИК К.П  ДЕКАБРЬ '!AO35=\"ОТ\",\"ОТ\",IF(R20=0,\"В\",\"Я\"))","v":"В"},{"$f":"IF('[4]ГРАФИК К.П  ДЕКАБРЬ '!AP35=\"ОТ\",\"ОТ\",IF(S20=0,\"В\",\"Я\"))","v":"В"},{"$f":"IF('[4]ГРАФИК К.П  ДЕКАБРЬ '!AQ35=\"ОТ\",\"ОТ\",IF(T20=0,\"В\",\"Я\"))","v":"В"},null,{"$f":"IF('[4]ГРАФИК К.П  ДЕКАБРЬ '!AS35=\"ОТ\",\"ОТ\",IF(V20=0,\"В\",\"Я\"))","v":"В"},{"$f":"IF('[4]ГРАФИК К.П  ДЕКАБРЬ '!AT35=\"ОТ\",\"ОТ\",IF(W20=0,\"В\",\"Я\"))","v":"В"},{"$f":"IF('[4]ГРАФИК К.П  ДЕКАБРЬ '!AU35=\"ОТ\",\"ОТ\",IF(X20=0,\"В\",\"Я\"))","v":"В"},{"$f":"IF('[4]ГРАФИК К.П  ДЕКАБРЬ '!AV35=\"ОТ\",\"ОТ\",IF(Y20=0,\"В\",\"Я\"))","v":"В"},{"$f":"IF('[4]ГРАФИК К.П  ДЕКАБРЬ '!AW35=\"ОТ\",\"ОТ\",IF(Z20=0,\"В\",\"Я\"))","v":"В"},{"$f":"IF('[4]ГРАФИК К.П  ДЕКАБРЬ '!AX35=\"ОТ\",\"ОТ\",IF(AA20=0,\"В\",\"Я\"))","v":"В"},{"$f":"IF('[4]ГРАФИК К.П  ДЕКАБРЬ '!AY35=\"ОТ\",\"ОТ\",IF(AB20=0,\"В\",\"Я\"))","v":"В"},{"$f":"IF('[4]ГРАФИК К.П  ДЕКАБРЬ '!AZ35=\"ОТ\",\"ОТ\",IF(AC20=0,\"В\",\"Я\"))","v":"В"},{"$f":"IF('[4]ГРАФИК К.П  ДЕКАБРЬ '!BA35=\"ОТ\",\"ОТ\",IF(AD20=0,\"В\",\"Я\"))","v":"В"},{"$f":"IF('[4]ГРАФИК К.П  ДЕКАБРЬ '!BB35=\"ОТ\",\"ОТ\",IF(AE20=0,\"В\",\"Я\"))","v":"В"},{"$f":"IF('[4]ГРАФИК К.П  ДЕКАБРЬ '!BC35=\"ОТ\",\"ОТ\",IF(AF20=0,\"В\",\"Я\"))","v":"В"},{"$f":"IF('[4]ГРАФИК К.П  ДЕКАБРЬ '!BD35=\"ОТ\",\"ОТ\",IF(AG20=0,\"В\",\"Я\"))","v":"В"},{"$f":"IF('[4]ГРАФИК К.П  ДЕКАБРЬ '!BE35=\"ОТ\",\"ОТ\",IF(AH20=0,\"В\",\"Я\"))","v":"В"},{"$f":"IF('[4]ГРАФИК К.П  ДЕКАБРЬ '!BF35=\"ОТ\",\"ОТ\",IF(AI20=0,\"В\",\"Я\"))","v":"В"},{"$f":"IF('[4]ГРАФИК К.П  ДЕКАБРЬ '!BG35=\"ОТ\",\"ОТ\",IF(AJ20=0,\"В\",\"Я\"))","v":"В"},{"$f":"IF('[4]ГРАФИК К.П  ДЕКАБРЬ '!BH35=\"ОТ\",\"ОТ\",IF(AK20=0,\"В\",\"Я\"))","v":"В"},null,null,null,null,null,null,null,null,null,null,null,null,null,null,null,null,null,null,null,null,null,null,"дежурный зала"]
[4,null,null,null,null,{"$f":"INDEX('[4]ГРАФИК К.П  ДЕКАБРЬ '!$AC$44:$HF$44,1,MATCH(F$10,'[4]ГРАФИК К.П  ДЕКАБРЬ '!$AC$19:$HF$19,0))","v":"00:00:00"},{"$f":"INDEX('[4]ГРАФИК К.П  ДЕКАБРЬ '!$AC$44:$HF$44,1,MATCH(G$10,'[4]ГРАФИК К.П  ДЕКАБРЬ '!$AC$19:$HF$19,0))","v":"12:00:00"},{"$f":"INDEX('[4]ГРАФИК К.П  ДЕКАБРЬ '!$AC$44:$HF$44,1,MATCH(H$10,'[4]ГРАФИК К.П  ДЕКАБРЬ '!$AC$19:$HF$19,0))","v":"00:00:00"},{"$f":"INDEX('[4]ГРАФИК К.П  ДЕКАБРЬ '!$AC$44:$HF$44,1,MATCH(I$10,'[4]ГРАФИК К.П  ДЕКАБРЬ '!$AC$19:$HF$19,0))","v":"12:00:00"},{"$f":"INDEX('[4]ГРАФИК К.П  ДЕКАБРЬ '!$AC$44:$HF$44,1,MATCH(J$10,'[4]ГРАФИК К.П  ДЕКАБРЬ '!$AC$19:$HF$19,0))","v":"00:00:00"},{"$f":"INDEX('[4]ГРАФИК К.П  ДЕКАБРЬ '!$AC$44:$HF$44,1,MATCH(K$10,'[4]ГРАФИК К.П  ДЕКАБРЬ '!$AC$19:$HF$19,0))","v":"12:00:00"},{"$f":"INDEX('[4]ГРАФИК К.П  ДЕКАБРЬ '!$AC$44:$HF$44,1,MATCH(L$10,'[4]ГРАФИК К.П  ДЕКАБРЬ '!$AC$19:$HF$19,0))","v":"00:00:00"},{"$f":"INDEX('[4]ГРАФИК К.П  ДЕКАБРЬ '!$AC$44:$HF$44,1,MATCH(M$10,'[4]ГРАФИК К.П  ДЕКАБРЬ '!$AC$19:$HF$19,0))","v":"12:00:00"},{"$f":"INDEX('[4]ГРАФИК К.П  ДЕКАБРЬ '!$AC$44:$HF$44,1,MATCH(N$10,'[4]ГРАФИК К.П  ДЕКАБРЬ '!$AC$19:$HF$19,0))","v":"00:00:00"},{"$f":"INDEX('[4]ГРАФИК К.П  ДЕКАБРЬ '!$AC$44:$HF$44,1,MATCH(O$10,'[4]ГРАФИК К.П  ДЕКАБРЬ '!$AC$19:$HF$19,0))","v":"12:00:00"},{"$f":"INDEX('[4]ГРАФИК К.П  ДЕКАБРЬ '!$AC$44:$HF$44,1,MATCH(P$10,'[4]ГРАФИК К.П  ДЕКАБРЬ '!$AC$19:$HF$19,0))","v":"00:00:00"},{"$f":"INDEX('[4]ГРАФИК К.П  ДЕКАБРЬ '!$AC$44:$HF$44,1,MATCH(Q$10,'[4]ГРАФИК К.П  ДЕКАБРЬ '!$AC$19:$HF$19,0))","v":"13:00:00"},{"$f":"INDEX('[4]ГРАФИК К.П  ДЕКАБРЬ '!$AC$44:$HF$44,1,MATCH(R$10,'[4]ГРАФИК К.П  ДЕКАБРЬ '!$AC$19:$HF$19,0))","v":"00:00:00"},{"$f":"INDEX('[4]ГРАФИК К.П  ДЕКАБРЬ '!$AC$44:$HF$44,1,MATCH(S$10,'[4]ГРАФИК К.П  ДЕКАБРЬ '!$AC$19:$HF$19,0))","v":"12:00:00"},{"$f":"INDEX('[4]ГРАФИК К.П  ДЕКАБРЬ '!$AC$44:$HF$44,1,MATCH(T$10,'[4]ГРАФИК К.П  ДЕКАБРЬ '!$AC$19:$HF$19,0))","v":"00:00:00"},null,{"$f":"INDEX('[4]ГРАФИК К.П  ДЕКАБРЬ '!$AC$44:$HF$44,1,MATCH(V$10,'[4]ГРАФИК К.П  ДЕКАБРЬ '!$AC$19:$HF$19,0))","v":"12:00:00"},{"$f":"INDEX('[4]ГРАФИК К.П  ДЕКАБРЬ '!$AC$44:$HF$44,1,MATCH(W$10,'[4]ГРАФИК К.П  ДЕКАБРЬ '!$AC$19:$HF$19,0))","v":"00:00:00"},{"$f":"INDEX('[4]ГРАФИК К.П  ДЕКАБРЬ '!$AC$44:$HF$44,1,MATCH(X$10,'[4]ГРАФИК К.П  ДЕКАБРЬ '!$AC$19:$HF$19,0))","v":"12:00:00"},{"$f":"INDEX('[4]ГРАФИК К.П  ДЕКАБРЬ '!$AC$44:$HF$44,1,MATCH(Y$10,'[4]ГРАФИК К.П  ДЕКАБРЬ '!$AC$19:$HF$19,0))","v":"00:00:00"},{"$f":"INDEX('[4]ГРАФИК К.П  ДЕКАБРЬ '!$AC$44:$HF$44,1,MATCH(Z$10,'[4]ГРАФИК К.П  ДЕКАБРЬ '!$AC$19:$HF$19,0))","v":"13:00:00"},{"$f":"INDEX('[4]ГРАФИК К.П  ДЕКАБРЬ '!$AC$44:$HF$44,1,MATCH(AA$10,'[4]ГРАФИК К.П  ДЕКАБРЬ '!$AC$19:$HF$19,0))","v":"00:00:00"},{"$f":"INDEX('[4]ГРАФИК К.П  ДЕКАБРЬ '!$AC$44:$HF$44,1,MATCH(AB$10,'[4]ГРАФИК К.П  ДЕКАБРЬ '!$AC$19:$HF$19,0))","v":"12:00:00"},{"$f":"INDEX('[4]ГРАФИК К.П  ДЕКАБРЬ '!$AC$44:$HF$44,1,MATCH(AC$10,'[4]ГРАФИК К.П  ДЕКАБРЬ '!$AC$19:$HF$19,0))","v":"00:00:00"},{"$f":"INDEX('[4]ГРАФИК К.П  ДЕКАБРЬ '!$AC$44:$HF$44,1,MATCH(AD$10,'[4]ГРАФИК К.П  ДЕКАБРЬ '!$AC$19:$HF$19,0))","v":"12:00:00"},{"$f":"INDEX('[4]ГРАФИК К.П  ДЕКАБРЬ '!$AC$44:$HF$44,1,MATCH(AE$10,'[4]ГРАФИК К.П  ДЕКАБРЬ '!$AC$19:$HF$19,0))","v":"00:00:00"},{"$f":"INDEX('[4]ГРАФИК К.П  ДЕКАБРЬ '!$AC$44:$HF$44,1,MATCH(AF$10,'[4]ГРАФИК К.П  ДЕКАБРЬ '!$AC$19:$HF$19,0))","v":"13:00:00"},{"$f":"INDEX('[4]ГРАФИК К.П  ДЕКАБРЬ '!$AC$44:$HF$44,1,MATCH(AG$10,'[4]ГРАФИК К.П  ДЕКАБРЬ '!$AC$19:$HF$19,0))","v":"00:00:00"},{"$f":"INDEX('[4]ГРАФИК К.П  ДЕКАБРЬ '!$AC$44:$HF$44,1,MATCH(AH$10,'[4]ГРАФИК К.П  ДЕКАБРЬ '!$AC$19:$HF$19,0))","v":"12:00:00"},{"$f":"INDEX('[4]ГРАФИК К.П  ДЕКАБРЬ '!$AC$44:$HF$44,1,MATCH(AI$10,'[4]ГРАФИК К.П  ДЕКАБРЬ '!$AC$19:$HF$19,0))","v":"00:00:00"},{"$f":"INDEX('[4]ГРАФИК К.П  ДЕКАБРЬ '!$AC$44:$HF$44,1,MATCH(AJ$10,'[4]ГРАФИК К.П  ДЕКАБРЬ '!$AC$19:$HF$19,0))","v":"12:00:00"},{"$f":"INDEX('[4]ГРАФИК К.П  ДЕКАБРЬ '!$AC$44:$HF$44,1,MATCH(AK$10,'[4]ГРАФИК К.П  ДЕКАБРЬ '!$AC$19:$HF$19,0))","v":"00:00:00"},{"$f":"COUNTIF($F22:$AK22,\">0\")","v":15},{"$f":"SUM($F$22:$AK$22)","v":7.6250000000000009},null,null,null,null,null,null,null,null,{"$f":"COUNTIF($F23:$AK23,\"=От\")","v":0},null,null,null,null,null,null,null,null,{"$f":"COUNTIF(F23:AK23,\"В\")","v":16}]
[null,null,null,null,null,{"$f":"IF('[4]ГРАФИК К.П  ДЕКАБРЬ '!AC41=\"ОТ\",\"ОТ\",IF(F22=0,\"В\",\"Я\"))","v":"В"},{"$f":"IF('[4]ГРАФИК К.П  ДЕКАБРЬ '!AD41=\"ОТ\",\"ОТ\",IF(G22=0,\"В\",\"Я\"))","v":"Я"},{"$f":"IF('[4]ГРАФИК К.П  ДЕКАБРЬ '!AE41=\"ОТ\",\"ОТ\",IF(H22=0,\"В\",\"Я\"))","v":"В"},{"$f":"IF('[4]ГРАФИК К.П  ДЕКАБРЬ '!AF41=\"ОТ\",\"ОТ\",IF(I22=0,\"В\",\"Я\"))","v":"Я"},{"$f":"IF('[4]ГРАФИК К.П  ДЕКАБРЬ '!AG41=\"ОТ\",\"ОТ\",IF(J22=0,\"В\",\"Я\"))","v":"В"},{"$f":"IF('[4]ГРАФИК К.П  ДЕКАБРЬ '!AH41=\"ОТ\",\"ОТ\",IF(K22=0,\"В\",\"Я\"))","v":"Я"},{"$f":"IF('[4]ГРАФИК К.П  ДЕКАБРЬ '!AI41=\"ОТ\",\"ОТ\",IF(L22=0,\"В\",\"Я\"))","v":"В"},{"$f":"IF('[4]ГРАФИК К.П  ДЕКАБРЬ '!AJ41=\"ОТ\",\"ОТ\",IF(M22=0,\"В\",\"Я\"))","v":"Я"},{"$f":"IF('[4]ГРАФИК К.П  ДЕКАБРЬ '!AK41=\"ОТ\",\"ОТ\",IF(N22=0,\"В\",\"Я\"))","v":"В"},{"$f":"IF('[4]ГРАФИК К.П  ДЕКАБРЬ '!AL41=\"ОТ\",\"ОТ\",IF(O22=0,\"В\",\"Я\"))","v":"Я"},{"$f":"IF('[4]ГРАФИК К.П  ДЕКАБРЬ '!AM41=\"ОТ\",\"ОТ\",IF(P22=0,\"В\",\"Я\"))","v":"В"},{"$f":"IF('[4]ГРАФИК К.П  ДЕКАБРЬ '!AN41=\"ОТ\",\"ОТ\",IF(Q22=0,\"В\",\"Я\"))","v":"Я"},{"$f":"IF('[4]ГРАФИК К.П  ДЕКАБРЬ '!AO41=\"ОТ\",\"ОТ\",IF(R22=0,\"В\",\"Я\"))","v":"В"},{"$f":"IF('[4]ГРАФИК К.П  ДЕКАБРЬ '!AP41=\"ОТ\",\"ОТ\",IF(S22=0,\"В\",\"Я\"))","v":"Я"},{"$f":"IF('[4]ГРАФИК К.П  ДЕКАБРЬ '!AQ41=\"ОТ\",\"ОТ\",IF(T22=0,\"В\",\"Я\"))","v":"В"},null,{"$f":"IF('[4]ГРАФИК К.П  ДЕКАБРЬ '!AS41=\"ОТ\",\"ОТ\",IF(V22=0,\"В\",\"Я\"))","v":"Я"},{"$f":"IF('[4]ГРАФИК К.П  ДЕКАБРЬ '!AT41=\"ОТ\",\"ОТ\",IF(W22=0,\"В\",\"Я\"))","v":"В"},{"$f":"IF('[4]ГРАФИК К.П  ДЕКАБРЬ '!AU41=\"ОТ\",\"ОТ\",IF(X22=0,\"В\",\"Я\"))","v":"Я"},{"$f":"IF('[4]ГРАФИК К.П  ДЕКАБРЬ '!AV41=\"ОТ\",\"ОТ\",IF(Y22=0,\"В\",\"Я\"))","v":"В"},{"$f":"IF('[4]ГРАФИК К.П  ДЕКАБРЬ '!AW41=\"ОТ\",\"ОТ\",IF(Z22=0,\"В\",\"Я\"))","v":"Я"},{"$f":"IF('[4]ГРАФИК К.П  ДЕКАБРЬ '!AX41=\"ОТ\",\"ОТ\",IF(AA22=0,\"В\",\"Я\"))","v":"В"},{"$f":"IF('[4]ГРАФИК К.П  ДЕКАБРЬ '!AY41=\"ОТ\",\"ОТ\",IF(AB22=0,\"В\",\"Я\"))","v":"Я"},{"$f":"IF('[4]ГРАФИК К.П  ДЕКАБРЬ '!AZ41=\"ОТ\",\"ОТ\",IF(AC22=0,\"В\",\"Я\"))","v":"В"},{"$f":"IF('[4]ГРАФИК К.П  ДЕКАБРЬ '!BA41=\"ОТ\",\"ОТ\",IF(AD22=0,\"В\",\"Я\"))","v":"Я"},{"$f":"IF('[4]ГРАФИК К.П  ДЕКАБРЬ '!BB41=\"ОТ\",\"ОТ\",IF(AE22=0,\"В\",\"Я\"))","v":"В"},{"$f":"IF('[4]ГРАФИК К.П  ДЕКАБРЬ '!BC41=\"ОТ\",\"ОТ\",IF(AF22=0,\"В\",\"Я\"))","v":"Я"},{"$f":"IF('[4]ГРАФИК К.П  ДЕКАБРЬ '!BD41=\"ОТ\",\"ОТ\",IF(AG22=0,\"В\",\"Я\"))","v":"В"},{"$f":"IF('[4]ГРАФИК К.П  ДЕКАБРЬ '!BE41=\"ОТ\",\"ОТ\",IF(AH22=0,\"В\",\"Я\"))","v":"Я"},{"$f":"IF('[4]ГРАФИК К.П  ДЕКАБРЬ '!BF41=\"ОТ\",\"ОТ\",IF(AI22=0,\"В\",\"Я\"))","v":"В"},{"$f":"IF('[4]ГРАФИК К.П  ДЕКАБРЬ '!BG41=\"ОТ\",\"ОТ\",IF(AJ22=0,\"В\",\"Я\"))","v":"Я"},{"$f":"IF('[4]ГРАФИК К.П  ДЕКАБРЬ '!BH41=\"ОТ\",\"ОТ\",IF(AK22=0,\"В\",\"Я\"))","v":"В"}]
[5,null,null,null,null,{"$f":"INDEX('[4]ГРАФИК К.П  ДЕКАБРЬ '!$AC$50:$HF$50,1,MATCH(F$10,'[4]ГРАФИК К.П  ДЕКАБРЬ '!$AC$19:$HF$19,0))","v":"11:00:00"},{"$f":"INDEX('[4]ГРАФИК К.П  ДЕКАБРЬ '!$AC$50:$HF$50,1,MATCH(G$10,'[4]ГРАФИК К.П  ДЕКАБРЬ '!$AC$19:$HF$19,0))","v":"00:00:00"},{"$f":"INDEX('[4]ГРАФИК К.П  ДЕКАБРЬ '!$AC$50:$HF$50,1,MATCH(H$10,'[4]ГРАФИК К.П  ДЕКАБРЬ '!$AC$19:$HF$19,0))","v":"11:00:00"},{"$f":"INDEX('[4]ГРАФИК К.П  ДЕКАБРЬ '!$AC$50:$HF$50,1,MATCH(I$10,'[4]ГРАФИК К.П  ДЕКАБРЬ '!$AC$19:$HF$19,0))","v":"00:00:00"},{"$f":"INDEX('[4]ГРАФИК К.П  ДЕКАБРЬ '!$AC$50:$HF$50,1,MATCH(J$10,'[4]ГРАФИК К.П  ДЕКАБРЬ '!$AC$19:$HF$19,0))","v":"12:00:00"},{"$f":"INDEX('[4]ГРАФИК К.П  ДЕКАБРЬ '!$AC$50:$HF$50,1,MATCH(K$10,'[4]ГРАФИК К.П  ДЕКАБРЬ '!$AC$19:$HF$19,0))","v":"00:00:00"},{"$f":"INDEX('[4]ГРАФИК К.П  ДЕКАБРЬ '!$AC$50:$HF$50,1,MATCH(L$10,'[4]ГРАФИК К.П  ДЕКАБРЬ '!$AC$19:$HF$19,0))","v":"11:00:00"},{"$f":"INDEX('[4]ГРАФИК К.П  ДЕКАБРЬ '!$AC$50:$HF$50,1,MATCH(M$10,'[4]ГРАФИК К.П  ДЕКАБРЬ '!$AC$19:$HF$19,0))","v":"00:00:00"},{"$f":"INDEX('[4]ГРАФИК К.П  ДЕКАБРЬ '!$AC$50:$HF$50,1,MATCH(N$10,'[4]ГРАФИК К.П  ДЕКАБРЬ '!$AC$19:$HF$19,0))","v":"11:00:00"},{"$f":"INDEX('[4]ГРАФИК К.П  ДЕКАБРЬ '!$AC$50:$HF$50,1,MATCH(O$10,'[4]ГРАФИК К.П  ДЕКАБРЬ '!$AC$19:$HF$19,0))","v":"00:00:00"},{"$f":"INDEX('[4]ГРАФИК К.П  ДЕКАБРЬ '!$AC$50:$HF$50,1,MATCH(P$10,'[4]ГРАФИК К.П  ДЕКАБРЬ '!$AC$19:$HF$19,0))","v":"11:00:00"},{"$f":"INDEX('[4]ГРАФИК К.П  ДЕКАБРЬ '!$AC$50:$HF$50,1,MATCH(Q$10,'[4]ГРАФИК К.П  ДЕКАБРЬ '!$AC$19:$HF$19,0))","v":"00:00:00"},{"$f":"INDEX('[4]ГРАФИК К.П  ДЕКАБРЬ '!$AC$50:$HF$50,1,MATCH(R$10,'[4]ГРАФИК К.П  ДЕКАБРЬ '!$AC$19:$HF$19,0))","v":"12:00:00"},{"$f":"INDEX('[4]ГРАФИК К.П  ДЕКАБРЬ '!$AC$50:$HF$50,1,MATCH(S$10,'[4]ГРАФИК К.П  ДЕКАБРЬ '!$AC$19:$HF$19,0))","v":"00:00:00"},{"$f":"INDEX('[4]ГРАФИК К.П  ДЕКАБРЬ '!$AC$50:$HF$50,1,MATCH(T$10,'[4]ГРАФИК К.П  ДЕКАБРЬ '!$AC$19:$HF$19,0))","v":"11:00:00"},null,{"$f":"INDEX('[4]ГРАФИК К.П  ДЕКАБРЬ '!$AC$50:$HF$50,1,MATCH(V$10,'[4]ГРАФИК К.П  ДЕКАБРЬ '!$AC$19:$HF$19,0))","v":"00:00:00"},{"$f":"INDEX('[4]ГРАФИК К.П  ДЕКАБРЬ '!$AC$50:$HF$50,1,MATCH(W$10,'[4]ГРАФИК К.П  ДЕКАБРЬ '!$AC$19:$HF$19,0))","v":"11:00:00"},{"$f":"INDEX('[4]ГРАФИК К.П  ДЕКАБРЬ '!$AC$50:$HF$50,1,MATCH(X$10,'[4]ГРАФИК К.П  ДЕКАБРЬ '!$AC$19:$HF$19,0))","v":"00:00:00"},{"$f":"INDEX('[4]ГРАФИК К.П  ДЕКАБРЬ '!$AC$50:$HF$50,1,MATCH(Y$10,'[4]ГРАФИК К.П  ДЕКАБРЬ '!$AC$19:$HF$19,0))","v":"12:00:00"},{"$f":"INDEX('[4]ГРАФИК К.П  ДЕКАБРЬ '!$AC$50:$HF$50,1,MATCH(Z$10,'[4]ГРАФИК К.П  ДЕКАБРЬ '!$AC$19:$HF$19,0))","v":"00:00:00"},{"$f":"INDEX('[4]ГРАФИК К.П  ДЕКАБРЬ '!$AC$50:$HF$50,1,MATCH(AA$10,'[4]ГРАФИК К.П  ДЕКАБРЬ '!$AC$19:$HF$19,0))","v":"11:00:00"},{"$f":"INDEX('[4]ГРАФИК К.П  ДЕКАБРЬ '!$AC$50:$HF$50,1,MATCH(AB$10,'[4]ГРАФИК К.П  ДЕКАБРЬ '!$AC$19:$HF$19,0))","v":"00:00:00"},{"$f":"INDEX('[4]ГРАФИК К.П  ДЕКАБРЬ '!$AC$50:$HF$50,1,MATCH(AC$10,'[4]ГРАФИК К.П  ДЕКАБРЬ '!$AC$19:$HF$19,0))","v":"11:00:00"},{"$f":"INDEX('[4]ГРАФИК К.П  ДЕКАБРЬ '!$AC$50:$HF$50,1,MATCH(AD$10,'[4]ГРАФИК К.П  ДЕКАБРЬ '!$AC$19:$HF$19,0))","v":"00:00:00"},{"$f":"INDEX('[4]ГРАФИК К.П  ДЕКАБРЬ '!$AC$50:$HF$50,1,MATCH(AE$10,'[4]ГРАФИК К.П  ДЕКАБРЬ '!$AC$19:$HF$19,0))","v":"12:00:00"},{"$f":"INDEX('[4]ГРАФИК К.П  ДЕКАБРЬ '!$AC$50:$HF$50,1,MATCH(AF$10,'[4]ГРАФИК К.П  ДЕКАБРЬ '!$AC$19:$HF$19,0))","v":"00:00:00"},{"$f":"INDEX('[4]ГРАФИК К.П  ДЕКАБРЬ '!$AC$50:$HF$50,1,MATCH(AG$10,'[4]ГРАФИК К.П  ДЕКАБРЬ '!$AC$19:$HF$19,0))","v":"12:00:00"},{"$f":"INDEX('[4]ГРАФИК К.П  ДЕКАБРЬ '!$AC$50:$HF$50,1,MATCH(AH$10,'[4]ГРАФИК К.П  ДЕКАБРЬ '!$AC$19:$HF$19,0))","v":"00:00:00"},{"$f":"INDEX('[4]ГРАФИК К.П  ДЕКАБРЬ '!$AC$50:$HF$50,1,MATCH(AI$10,'[4]ГРАФИК К.П  ДЕКАБРЬ '!$AC$19:$HF$19,0))","v":"12:00:00"},{"$f":"INDEX('[4]ГРАФИК К.П  ДЕКАБРЬ '!$AC$50:$HF$50,1,MATCH(AJ$10,'[4]ГРАФИК К.П  ДЕКАБРЬ '!$AC$19:$HF$19,0))","v":"00:00:00"},{"$f":"INDEX('[4]ГРАФИК К.П  ДЕКАБРЬ '!$AC$50:$HF$50,1,MATCH(AK$10,'[4]ГРАФИК К.П  ДЕКАБРЬ '!$AC$19:$HF$19,0))","v":"12:00:00"},{"$f":"COUNTIF($F24:$AK24,\">0\")","v":16},{"$f":"SUM($F$24:$AK$24)","v":7.625},null,null,null,null,null,null,null,null,{"$f":"COUNTIF($F25:$AK25,\"=От\")","v":0},null,null,null,null,null,null,null,null,{"$f":"COUNTIF(F25:AK25,\"В\")","v":15}]
[null,null,null,null,null,{"$f":"IF('[4]ГРАФИК К.П  ДЕКАБРЬ '!AC47=\"ОТ\",\"ОТ\",IF(F24=0,\"В\",\"Я\"))","v":"Я"},{"$f":"IF('[4]ГРАФИК К.П  ДЕКАБРЬ '!AD47=\"ОТ\",\"ОТ\",IF(G24=0,\"В\",\"Я\"))","v":"В"},{"$f":"IF('[4]ГРАФИК К.П  ДЕКАБРЬ '!AE47=\"ОТ\",\"ОТ\",IF(H24=0,\"В\",\"Я\"))","v":"Я"},{"$f":"IF('[4]ГРАФИК К.П  ДЕКАБРЬ '!AF47=\"ОТ\",\"ОТ\",IF(I24=0,\"В\",\"Я\"))","v":"В"},{"$f":"IF('[4]ГРАФИК К.П  ДЕКАБРЬ '!AG47=\"ОТ\",\"ОТ\",IF(J24=0,\"В\",\"Я\"))","v":"Я"},{"$f":"IF('[4]ГРАФИК К.П  ДЕКАБРЬ '!AH47=\"ОТ\",\"ОТ\",IF(K24=0,\"В\",\"Я\"))","v":"В"},{"$f":"IF('[4]ГРАФИК К.П  ДЕКАБРЬ '!AI47=\"ОТ\",\"ОТ\",IF(L24=0,\"В\",\"Я\"))","v":"Я"},{"$f":"IF('[4]ГРАФИК К.П  ДЕКАБРЬ '!AJ47=\"ОТ\",\"ОТ\",IF(M24=0,\"В\",\"Я\"))","v":"В"},{"$f":"IF('[4]ГРАФИК К.П  ДЕКАБРЬ '!AK47=\"ОТ\",\"ОТ\",IF(N24=0,\"В\",\"Я\"))","v":"Я"},{"$f":"IF('[4]ГРАФИК К.П  ДЕКАБРЬ '!AL47=\"ОТ\",\"ОТ\",IF(O24=0,\"В\",\"Я\"))","v":"В"},{"$f":"IF('[4]ГРАФИК К.П  ДЕКАБРЬ '!AM47=\"ОТ\",\"ОТ\",IF(P24=0,\"В\",\"Я\"))","v":"Я"},{"$f":"IF('[4]ГРАФИК К.П  ДЕКАБРЬ '!AN47=\"ОТ\",\"ОТ\",IF(Q24=0,\"В\",\"Я\"))","v":"В"},{"$f":"IF('[4]ГРАФИК К.П  ДЕКАБРЬ '!AO47=\"ОТ\",\"ОТ\",IF(R24=0,\"В\",\"Я\"))","v":"Я"},{"$f":"IF('[4]ГРАФИК К.П  ДЕКАБРЬ '!AP47=\"ОТ\",\"ОТ\",IF(S24=0,\"В\",\"Я\"))","v":"В"},{"$f":"IF('[4]ГРАФИК К.П  ДЕКАБРЬ '!AQ47=\"ОТ\",\"ОТ\",IF(T24=0,\"В\",\"Я\"))","v":"Я"},null,{"$f":"IF('[4]ГРАФИК К.П  ДЕКАБРЬ '!AS47=\"ОТ\",\"ОТ\",IF(V24=0,\"В\",\"Я\"))","v":"В"},{"$f":"IF('[4]ГРАФИК К.П  ДЕКАБРЬ '!AT47=\"ОТ\",\"ОТ\",IF(W24=0,\"В\",\"Я\"))","v":"Я"},{"$f":"IF('[4]ГРАФИК К.П  ДЕКАБРЬ '!AU47=\"ОТ\",\"ОТ\",IF(X24=0,\"В\",\"Я\"))","v":"В"},{"$f":"IF('[4]ГРАФИК К.П  ДЕКАБРЬ '!AV47=\"ОТ\",\"ОТ\",IF(Y24=0,\"В\",\"Я\"))","v":"Я"},{"$f":"IF('[4]ГРАФИК К.П  ДЕКАБРЬ '!AW47=\"ОТ\",\"ОТ\",IF(Z24=0,\"В\",\"Я\"))","v":"В"},{"$f":"IF('[4]ГРАФИК К.П  ДЕКАБРЬ '!AX47=\"ОТ\",\"ОТ\",IF(AA24=0,\"В\",\"Я\"))","v":"Я"},{"$f":"IF('[4]ГРАФИК К.П  ДЕКАБРЬ '!AY47=\"ОТ\",\"ОТ\",IF(AB24=0,\"В\",\"Я\"))","v":"В"},{"$f":"IF('[4]ГРАФИК К.П  ДЕКАБРЬ '!AZ47=\"ОТ\",\"ОТ\",IF(AC24=0,\"В\",\"Я\"))","v":"Я"},{"$f":"IF('[4]ГРАФИК К.П  ДЕКАБРЬ '!BA47=\"ОТ\",\"ОТ\",IF(AD24=0,\"В\",\"Я\"))","v":"В"},{"$f":"IF('[4]ГРАФИК К.П  ДЕКАБРЬ '!BB47=\"ОТ\",\"ОТ\",IF(AE24=0,\"В\",\"Я\"))","v":"Я"},{"$f":"IF('[4]ГРАФИК К.П  ДЕКАБРЬ '!BC47=\"ОТ\",\"ОТ\",IF(AF24=0,\"В\",\"Я\"))","v":"В"},{"$f":"IF('[4]ГРАФИК К.П  ДЕКАБРЬ '!BD47=\"ОТ\",\"ОТ\",IF(AG24=0,\"В\",\"Я\"))","v":"Я"},{"$f":"IF('[4]ГРАФИК К.П  ДЕКАБРЬ '!BE47=\"ОТ\",\"ОТ\",IF(AH24=0,\"В\",\"Я\"))","v":"В"},{"$f":"IF('[4]ГРАФИК К.П  ДЕКАБРЬ '!BF47=\"ОТ\",\"ОТ\",IF(AI24=0,\"В\",\"Я\"))","v":"Я"},{"$f":"IF('[4]ГРАФИК К.П  ДЕКАБРЬ '!BG47=\"ОТ\",\"ОТ\",IF(AJ24=0,\"В\",\"Я\"))","v":"В"},{"$f":"IF('[4]ГРАФИК К.П  ДЕКАБРЬ '!BH47=\"ОТ\",\"ОТ\",IF(AK24=0,\"В\",\"Я\"))","v":"Я"}]
[6,null,null,null,null,{"$f":"INDEX('[4]ГРАФИК К.П  ДЕКАБРЬ '!$AC$56:$HF$56,1,MATCH(F$10,'[4]ГРАФИК К.П  ДЕКАБРЬ '!$AC$19:$HF$19,0))","v":"00:00:00"},{"$f":"INDEX('[4]ГРАФИК К.П  ДЕКАБРЬ '!$AC$56:$HF$56,1,MATCH(G$10,'[4]ГРАФИК К.П  ДЕКАБРЬ '!$AC$19:$HF$19,0))","v":"12:00:00"},{"$f":"INDEX('[4]ГРАФИК К.П  ДЕКАБРЬ '!$AC$56:$HF$56,1,MATCH(H$10,'[4]ГРАФИК К.П  ДЕКАБРЬ '!$AC$19:$HF$19,0))","v":"00:00:00"},{"$f":"INDEX('[4]ГРАФИК К.П  ДЕКАБРЬ '!$AC$56:$HF$56,1,MATCH(I$10,'[4]ГРАФИК К.П  ДЕКАБРЬ '!$AC$19:$HF$19,0))","v":"12:00:00"},{"$f":"INDEX('[4]ГРАФИК К.П  ДЕКАБРЬ '!$AC$56:$HF$56,1,MATCH(J$10,'[4]ГРАФИК К.П  ДЕКАБРЬ '!$AC$19:$HF$19,0))","v":"00:00:00"},{"$f":"INDEX('[4]ГРАФИК К.П  ДЕКАБРЬ '!$AC$56:$HF$56,1,MATCH(K$10,'[4]ГРАФИК К.П  ДЕКАБРЬ '!$AC$19:$HF$19,0))","v":"12:00:00"},{"$f":"INDEX('[4]ГРАФИК К.П  ДЕКАБРЬ '!$AC$56:$HF$56,1,MATCH(L$10,'[4]ГРАФИК К.П  ДЕКАБРЬ '!$AC$19:$HF$19,0))","v":"00:00:00"},{"$f":"INDEX('[4]ГРАФИК К.П  ДЕКАБРЬ '!$AC$56:$HF$56,1,MATCH(M$10,'[4]ГРАФИК К.П  ДЕКАБРЬ '!$AC$19:$HF$19,0))","v":"12:00:00"},{"$f":"INDEX('[4]ГРАФИК К.П  ДЕКАБРЬ '!$AC$56:$HF$56,1,MATCH(N$10,'[4]ГРАФИК К.П  ДЕКАБРЬ '!$AC$19:$HF$19,0))","v":"00:00:00"},{"$f":"INDEX('[4]ГРАФИК К.П  ДЕКАБРЬ '!$AC$56:$HF$56,1,MATCH(O$10,'[4]ГРАФИК К.П  ДЕКАБРЬ '!$AC$19:$HF$19,0))","v":"12:00:00"},{"$f":"INDEX('[4]ГРАФИК К.П  ДЕКАБРЬ '!$AC$56:$HF$56,1,MATCH(P$10,'[4]ГРАФИК К.П  ДЕКАБРЬ '!$AC$19:$HF$19,0))","v":"00:00:00"},{"$f":"INDEX('[4]ГРАФИК К.П  ДЕКАБРЬ '!$AC$56:$HF$56,1,MATCH(Q$10,'[4]ГРАФИК К.П  ДЕКАБРЬ '!$AC$19:$HF$19,0))","v":"13:00:00"},{"$f":"INDEX('[4]ГРАФИК К.П  ДЕКАБРЬ '!$AC$56:$HF$56,1,MATCH(R$10,'[4]ГРАФИК К.П  ДЕКАБРЬ '!$AC$19:$HF$19,0))","v":"00:00:00"},{"$f":"INDEX('[4]ГРАФИК К.П  ДЕКАБРЬ '!$AC$56:$HF$56,1,MATCH(S$10,'[4]ГРАФИК К.П  ДЕКАБРЬ '!$AC$19:$HF$19,0))","v":"12:00:00"},{"$f":"INDEX('[4]ГРАФИК К.П  ДЕКАБРЬ '!$AC$56:$HF$56,1,MATCH(T$10,'[4]ГРАФИК К.П  ДЕКАБРЬ '!$AC$19:$HF$19,0))","v":"00:00:00"},{"$f":"INDEX('[4]ГРАФИК К.П  ДЕКАБРЬ '!$AC$56:$HF$56,1,MATCH(U$10,'[4]ГРАФИК К.П  ДЕКАБРЬ '!$AC$19:$HF$19,0))","v":{"$error":"#N/A"}},{"$f":"INDEX('[4]ГРАФИК К.П  ДЕКАБРЬ '!$AC$56:$HF$56,1,MATCH(V$10,'[4]ГРАФИК К.П  ДЕКАБРЬ '!$AC$19:$HF$19,0))","v":"12:00:00"},{"$f":"INDEX('[4]ГРАФИК К.П  ДЕКАБРЬ '!$AC$56:$HF$56,1,MATCH(W$10,'[4]ГРАФИК К.П  ДЕКАБРЬ '!$AC$19:$HF$19,0))","v":"00:00:00"},{"$f":"INDEX('[4]ГРАФИК К.П  ДЕКАБРЬ '!$AC$56:$HF$56,1,MATCH(X$10,'[4]ГРАФИК К.П  ДЕКАБРЬ '!$AC$19:$HF$19,0))","v":"12:00:00"},{"$f":"INDEX('[4]ГРАФИК К.П  ДЕКАБРЬ '!$AC$56:$HF$56,1,MATCH(Y$10,'[4]ГРАФИК К.П  ДЕКАБРЬ '!$AC$19:$HF$19,0))","v":"00:00:00"},{"$f":"INDEX('[4]ГРАФИК К.П  ДЕКАБРЬ '!$AC$56:$HF$56,1,MATCH(Z$10,'[4]ГРАФИК К.П  ДЕКАБРЬ '!$AC$19:$HF$19,0))","v":"13:00:00"},{"$f":"INDEX('[4]ГРАФИК К.П  ДЕКАБРЬ '!$AC$56:$HF$56,1,MATCH(AA$10,'[4]ГРАФИК К.П  ДЕКАБРЬ '!$AC$19:$HF$19,0))","v":"00:00:00"},{"$f":"INDEX('[4]ГРАФИК К.П  ДЕКАБРЬ '!$AC$56:$HF$56,1,MATCH(AB$10,'[4]ГРАФИК К.П  ДЕКАБРЬ '!$AC$19:$HF$19,0))","v":"12:00:00"},{"$f":"INDEX('[4]ГРАФИК К.П  ДЕКАБРЬ '!$AC$56:$HF$56,1,MATCH(AC$10,'[4]ГРАФИК К.П  ДЕКАБРЬ '!$AC$19:$HF$19,0))","v":"00:00:00"},{"$f":"INDEX('[4]ГРАФИК К.П  ДЕКАБРЬ '!$AC$56:$HF$56,1,MATCH(AD$10,'[4]ГРАФИК К.П  ДЕКАБРЬ '!$AC$19:$HF$19,0))","v":"12:00:00"},{"$f":"INDEX('[4]ГРАФИК К.П  ДЕКАБРЬ '!$AC$56:$HF$56,1,MATCH(AE$10,'[4]ГРАФИК К.П  ДЕКАБРЬ '!$AC$19:$HF$19,0))","v":"00:00:00"},{"$f":"INDEX('[4]ГРАФИК К.П  ДЕКАБРЬ '!$AC$56:$HF$56,1,MATCH(AF$10,'[4]ГРАФИК К.П  ДЕКАБРЬ '!$AC$19:$HF$19,0))","v":"13:00:00"},{"$f":"INDEX('[4]ГРАФИК К.П  ДЕКАБРЬ '!$AC$56:$HF$56,1,MATCH(AG$10,'[4]ГРАФИК К.П  ДЕКАБРЬ '!$AC$19:$HF$19,0))","v":"00:00:00"},{"$f":"INDEX('[4]ГРАФИК К.П  ДЕКАБРЬ '!$AC$56:$HF$56,1,MATCH(AH$10,'[4]ГРАФИК К.П  ДЕКАБРЬ '!$AC$19:$HF$19,0))","v":"12:00:00"},{"$f":"INDEX('[4]ГРАФИК К.П  ДЕКАБРЬ '!$AC$56:$HF$56,1,MATCH(AI$10,'[4]ГРАФИК К.П  ДЕКАБРЬ '!$AC$19:$HF$19,0))","v":"00:00:00"},{"$f":"INDEX('[4]ГРАФИК К.П  ДЕКАБРЬ '!$AC$56:$HF$56,1,MATCH(AJ$10,'[4]ГРАФИК К.П  ДЕКАБРЬ '!$AC$19:$HF$19,0))","v":"12:00:00"},{"$f":"INDEX('[4]ГРАФИК К.П  ДЕКАБРЬ '!$AC$56:$HF$56,1,MATCH(AK$10,'[4]ГРАФИК К.П  ДЕКАБРЬ '!$AC$19:$HF$19,0))","v":"00:00:00"},{"$f":"COUNTIF($F26:$AK26,\">0\")","v":15},{"$f":"SUM($F$26:$AK$26)","v":{"$error":"#N/A"}},null,null,null,null,null,null,null,null,{"$f":"COUNTIF($F27:$AK27,\"=От\")","v":0},null,null,null,null,null,null,null,null,{"$f":"COUNTIF(F27:AK27,\"В\")","v":16}]
[null,null,null,null,null,{"$f":"IF('[4]ГРАФИК К.П  ДЕКАБРЬ '!AC32=\"ОТ\",\"ОТ\",IF(F26=0,\"В\",\"Я\"))","v":"В"},{"$f":"IF('[4]ГРАФИК К.П  ДЕКАБРЬ '!AD32=\"ОТ\",\"ОТ\",IF(G26=0,\"В\",\"Я\"))","v":"Я"},{"$f":"IF('[4]ГРАФИК К.П  ДЕКАБРЬ '!AE32=\"ОТ\",\"ОТ\",IF(H26=0,\"В\",\"Я\"))","v":"В"},{"$f":"IF('[4]ГРАФИК К.П  ДЕКАБРЬ '!AF32=\"ОТ\",\"ОТ\",IF(I26=0,\"В\",\"Я\"))","v":"Я"},{"$f":"IF('[4]ГРАФИК К.П  ДЕКАБРЬ '!AG32=\"ОТ\",\"ОТ\",IF(J26=0,\"В\",\"Я\"))","v":"В"},{"$f":"IF('[4]ГРАФИК К.П  ДЕКАБРЬ '!AH32=\"ОТ\",\"ОТ\",IF(K26=0,\"В\",\"Я\"))","v":"Я"},{"$f":"IF('[4]ГРАФИК К.П  ДЕКАБРЬ '!AI32=\"ОТ\",\"ОТ\",IF(L26=0,\"В\",\"Я\"))","v":"В"},{"$f":"IF('[4]ГРАФИК К.П  ДЕКАБРЬ '!AJ32=\"ОТ\",\"ОТ\",IF(M26=0,\"В\",\"Я\"))","v":"Я"},{"$f":"IF('[4]ГРАФИК К.П  ДЕКАБРЬ '!AK32=\"ОТ\",\"ОТ\",IF(N26=0,\"В\",\"Я\"))","v":"В"},{"$f":"IF('[4]ГРАФИК К.П  ДЕКАБРЬ '!AL32=\"ОТ\",\"ОТ\",IF(O26=0,\"В\",\"Я\"))","v":"Я"},{"$f":"IF('[4]ГРАФИК К.П  ДЕКАБРЬ '!AM32=\"ОТ\",\"ОТ\",IF(P26=0,\"В\",\"Я\"))","v":"В"},{"$f":"IF('[4]ГРАФИК К.П  ДЕКАБРЬ '!AN32=\"ОТ\",\"ОТ\",IF(Q26=0,\"В\",\"Я\"))","v":"Я"},{"$f":"IF('[4]ГРАФИК К.П  ДЕКАБРЬ '!AO32=\"ОТ\",\"ОТ\",IF(R26=0,\"В\",\"Я\"))","v":"В"},{"$f":"IF('[4]ГРАФИК К.П  ДЕКАБРЬ '!AP32=\"ОТ\",\"ОТ\",IF(S26=0,\"В\",\"Я\"))","v":"Я"},{"$f":"IF('[4]ГРАФИК К.П  ДЕКАБРЬ '!AQ32=\"ОТ\",\"ОТ\",IF(T26=0,\"В\",\"Я\"))","v":"В"},null,{"$f":"IF('[4]ГРАФИК К.П  ДЕКАБРЬ '!AS32=\"ОТ\",\"ОТ\",IF(V26=0,\"В\",\"Я\"))","v":"Я"},{"$f":"IF('[4]ГРАФИК К.П  ДЕКАБРЬ '!AT32=\"ОТ\",\"ОТ\",IF(W26=0,\"В\",\"Я\"))","v":"В"},{"$f":"IF('[4]ГРАФИК К.П  ДЕКАБРЬ '!AU32=\"ОТ\",\"ОТ\",IF(X26=0,\"В\",\"Я\"))","v":"Я"},{"$f":"IF('[4]ГРАФИК К.П  ДЕКАБРЬ '!AV32=\"ОТ\",\"ОТ\",IF(Y26=0,\"В\",\"Я\"))","v":"В"},{"$f":"IF('[4]ГРАФИК К.П  ДЕКАБРЬ '!AW32=\"ОТ\",\"ОТ\",IF(Z26=0,\"В\",\"Я\"))","v":"Я"},{"$f":"IF('[4]ГРАФИК К.П  ДЕКАБРЬ '!AX32=\"ОТ\",\"ОТ\",IF(AA26=0,\"В\",\"Я\"))","v":"В"},{"$f":"IF('[4]ГРАФИК К.П  ДЕКАБРЬ '!AY32=\"ОТ\",\"ОТ\",IF(AB26=0,\"В\",\"Я\"))","v":"Я"},{"$f":"IF('[4]ГРАФИК К.П  ДЕКАБРЬ '!AZ32=\"ОТ\",\"ОТ\",IF(AC26=0,\"В\",\"Я\"))","v":"В"},{"$f":"IF('[4]ГРАФИК К.П  ДЕКАБРЬ '!BA32=\"ОТ\",\"ОТ\",IF(AD26=0,\"В\",\"Я\"))","v":"Я"},{"$f":"IF('[4]ГРАФИК К.П  ДЕКАБРЬ '!BB32=\"ОТ\",\"ОТ\",IF(AE26=0,\"В\",\"Я\"))","v":"В"},{"$f":"IF('[4]ГРАФИК К.П  ДЕКАБРЬ '!BC32=\"ОТ\",\"ОТ\",IF(AF26=0,\"В\",\"Я\"))","v":"Я"},{"$f":"IF('[4]ГРАФИК К.П  ДЕКАБРЬ '!BD32=\"ОТ\",\"ОТ\",IF(AG26=0,\"В\",\"Я\"))","v":"В"},{"$f":"IF('[4]ГРАФИК К.П  ДЕКАБРЬ '!BE32=\"ОТ\",\"ОТ\",IF(AH26=0,\"В\",\"Я\"))","v":"Я"},{"$f":"IF('[4]ГРАФИК К.П  ДЕКАБРЬ '!BF32=\"ОТ\",\"ОТ\",IF(AI26=0,\"В\",\"Я\"))","v":"В"},{"$f":"IF('[4]ГРАФИК К.П  ДЕКАБРЬ '!BG32=\"ОТ\",\"ОТ\",IF(AJ26=0,\"В\",\"Я\"))","v":"Я"},{"$f":"IF('[4]ГРАФИК К.П  ДЕКАБРЬ '!BH32=\"ОТ\",\"ОТ\",IF(AK26=0,\"В\",\"Я\"))","v":"В"}]
[7,null,null,null,null,{"$f":"INDEX('[4]ГРАФИК К.П  ДЕКАБРЬ '!$AC$62:$HF$62,1,MATCH(F$10,'[4]ГРАФИК К.П  ДЕКАБРЬ '!$AC$19:$HF$19,0))","v":"11:00:00"},{"$f":"INDEX('[4]ГРАФИК К.П  ДЕКАБРЬ '!$AC$62:$HF$62,1,MATCH(G$10,'[4]ГРАФИК К.П  ДЕКАБРЬ '!$AC$19:$HF$19,0))","v":"00:00:00"},{"$f":"INDEX('[4]ГРАФИК К.П  ДЕКАБРЬ '!$AC$62:$HF$62,1,MATCH(H$10,'[4]ГРАФИК К.П  ДЕКАБРЬ '!$AC$19:$HF$19,0))","v":"11:00:00"},{"$f":"INDEX('[4]ГРАФИК К.П  ДЕКАБРЬ '!$AC$62:$HF$62,1,MATCH(I$10,'[4]ГРАФИК К.П  ДЕКАБРЬ '!$AC$19:$HF$19,0))","v":"00:00:00"},{"$f":"INDEX('[4]ГРАФИК К.П  ДЕКАБРЬ '!$AC$62:$HF$62,1,MATCH(J$10,'[4]ГРАФИК К.П  ДЕКАБРЬ '!$AC$19:$HF$19,0))","v":"12:00:00"},{"$f":"INDEX('[4]ГРАФИК К.П  ДЕКАБРЬ '!$AC$62:$HF$62,1,MATCH(K$10,'[4]ГРАФИК К.П  ДЕКАБРЬ '!$AC$19:$HF$19,0))","v":"00:00:00"},{"$f":"INDEX('[4]ГРАФИК К.П  ДЕКАБРЬ '!$AC$62:$HF$62,1,MATCH(L$10,'[4]ГРАФИК К.П  ДЕКАБРЬ '!$AC$19:$HF$19,0))","v":"11:00:00"},{"$f":"INDEX('[4]ГРАФИК К.П  ДЕКАБРЬ '!$AC$62:$HF$62,1,MATCH(M$10,'[4]ГРАФИК К.П  ДЕКАБРЬ '!$AC$19:$HF$19,0))","v":"00:00:00"},{"$f":"INDEX('[4]ГРАФИК К.П  ДЕКАБРЬ '!$AC$62:$HF$62,1,MATCH(N$10,'[4]ГРАФИК К.П  ДЕКАБРЬ '!$AC$19:$HF$19,0))","v":"11:00:00"},{"$f":"INDEX('[4]ГРАФИК К.П  ДЕКАБРЬ '!$AC$62:$HF$62,1,MATCH(O$10,'[4]ГРАФИК К.П  ДЕКАБРЬ '!$AC$19:$HF$19,0))","v":"00:00:00"},{"$f":"INDEX('[4]ГРАФИК К.П  ДЕКАБРЬ '!$AC$62:$HF$62,1,MATCH(P$10,'[4]ГРАФИК К.П  ДЕКАБРЬ '!$AC$19:$HF$19,0))","v":"11:00:00"},{"$f":"INDEX('[4]ГРАФИК К.П  ДЕКАБРЬ '!$AC$62:$HF$62,1,MATCH(Q$10,'[4]ГРАФИК К.П  ДЕКАБРЬ '!$AC$19:$HF$19,0))","v":"00:00:00"},{"$f":"INDEX('[4]ГРАФИК К.П  ДЕКАБРЬ '!$AC$62:$HF$62,1,MATCH(R$10,'[4]ГРАФИК К.П  ДЕКАБРЬ '!$AC$19:$HF$19,0))","v":"12:00:00"},{"$f":"INDEX('[4]ГРАФИК К.П  ДЕКАБРЬ '!$AC$62:$HF$62,1,MATCH(S$10,'[4]ГРАФИК К.П  ДЕКАБРЬ '!$AC$19:$HF$19,0))","v":"00:00:00"},{"$f":"INDEX('[4]ГРАФИК К.П  ДЕКАБРЬ '!$AC$62:$HF$62,1,MATCH(T$10,'[4]ГРАФИК К.П  ДЕКАБРЬ '!$AC$19:$HF$19,0))","v":"11:00:00"},null,{"$f":"INDEX('[4]ГРАФИК К.П  ДЕКАБРЬ '!$AC$62:$HF$62,1,MATCH(V$10,'[4]ГРАФИК К.П  ДЕКАБРЬ '!$AC$19:$HF$19,0))","v":"00:00:00"},{"$f":"INDEX('[4]ГРАФИК К.П  ДЕКАБРЬ '!$AC$62:$HF$62,1,MATCH(W$10,'[4]ГРАФИК К.П  ДЕКАБРЬ '!$AC$19:$HF$19,0))","v":"11:00:00"},{"$f":"INDEX('[4]ГРАФИК К.П  ДЕКАБРЬ '!$AC$62:$HF$62,1,MATCH(X$10,'[4]ГРАФИК К.П  ДЕКАБРЬ '!$AC$19:$HF$19,0))","v":"00:00:00"},{"$f":"INDEX('[4]ГРАФИК К.П  ДЕКАБРЬ '!$AC$62:$HF$62,1,MATCH(Y$10,'[4]ГРАФИК К.П  ДЕКАБРЬ '!$AC$19:$HF$19,0))","v":"12:00:00"},{"$f":"INDEX('[4]ГРАФИК К.П  ДЕКАБРЬ '!$AC$62:$HF$62,1,MATCH(Z$10,'[4]ГРАФИК К.П  ДЕКАБРЬ '!$AC$19:$HF$19,0))","v":"00:00:00"},{"$f":"INDEX('[4]ГРАФИК К.П  ДЕКАБРЬ '!$AC$62:$HF$62,1,MATCH(AA$10,'[4]ГРАФИК К.П  ДЕКАБРЬ '!$AC$19:$HF$19,0))","v":"11:00:00"},{"$f":"INDEX('[4]ГРАФИК К.П  ДЕКАБРЬ '!$AC$62:$HF$62,1,MATCH(AB$10,'[4]ГРАФИК К.П  ДЕКАБРЬ '!$AC$19:$HF$19,0))","v":"00:00:00"},{"$f":"INDEX('[4]ГРАФИК К.П  ДЕКАБРЬ '!$AC$62:$HF$62,1,MATCH(AC$10,'[4]ГРАФИК К.П  ДЕКАБРЬ '!$AC$19:$HF$19,0))","v":"11:00:00"},{"$f":"INDEX('[4]ГРАФИК К.П  ДЕКАБРЬ '!$AC$62:$HF$62,1,MATCH(AD$10,'[4]ГРАФИК К.П  ДЕКАБРЬ '!$AC$19:$HF$19,0))","v":"00:00:00"},{"$f":"INDEX('[4]ГРАФИК К.П  ДЕКАБРЬ '!$AC$62:$HF$62,1,MATCH(AE$10,'[4]ГРАФИК К.П  ДЕКАБРЬ '!$AC$19:$HF$19,0))","v":"12:00:00"},{"$f":"INDEX('[4]ГРАФИК К.П  ДЕКАБРЬ '!$AC$62:$HF$62,1,MATCH(AF$10,'[4]ГРАФИК К.П  ДЕКАБРЬ '!$AC$19:$HF$19,0))","v":"00:00:00"},{"$f":"INDEX('[4]ГРАФИК К.П  ДЕКАБРЬ '!$AC$62:$HF$62,1,MATCH(AG$10,'[4]ГРАФИК К.П  ДЕКАБРЬ '!$AC$19:$HF$19,0))","v":"12:00:00"},{"$f":"INDEX('[4]ГРАФИК К.П  ДЕКАБРЬ '!$AC$62:$HF$62,1,MATCH(AH$10,'[4]ГРАФИК К.П  ДЕКАБРЬ '!$AC$19:$HF$19,0))","v":"00:00:00"},{"$f":"INDEX('[4]ГРАФИК К.П  ДЕКАБРЬ '!$AC$62:$HF$62,1,MATCH(AI$10,'[4]ГРАФИК К.П  ДЕКАБРЬ '!$AC$19:$HF$19,0))","v":"12:00:00"},{"$f":"INDEX('[4]ГРАФИК К.П  ДЕКАБРЬ '!$AC$62:$HF$62,1,MATCH(AJ$10,'[4]ГРАФИК К.П  ДЕКАБРЬ '!$AC$19:$HF$19,0))","v":"00:00:00"},{"$f":"INDEX('[4]ГРАФИК К.П  ДЕКАБРЬ '!$AC$62:$HF$62,1,MATCH(AK$10,'[4]ГРАФИК К.П  ДЕКАБРЬ '!$AC$19:$HF$19,0))","v":"12:00:00"},{"$f":"COUNTIF($F28:$AK28,\">0\")","v":16},{"$f":"SUM($F$28:$AK$28)","v":7.625},null,null,null,null,null,null,null,null,{"$f":"COUNTIF($F29:$AK29,\"=От\")","v":0},null,null,null,null,null,null,null,null,{"$f":"COUNTIF(F29:AK29,\"В\")","v":15}]
[null,null,null,null,null,{"$f":"IF('[4]ГРАФИК К.П  ДЕКАБРЬ '!AC59=\"ОТ\",\"ОТ\",IF(F28=0,\"В\",\"Я\"))","v":"Я"},{"$f":"IF('[4]ГРАФИК К.П  ДЕКАБРЬ '!AD59=\"ОТ\",\"ОТ\",IF(G28=0,\"В\",\"Я\"))","v":"В"},{"$f":"IF('[4]ГРАФИК К.П  ДЕКАБРЬ '!AE59=\"ОТ\",\"ОТ\",IF(H28=0,\"В\",\"Я\"))","v":"Я"},{"$f":"IF('[4]ГРАФИК К.П  ДЕКАБРЬ '!AF59=\"ОТ\",\"ОТ\",IF(I28=0,\"В\",\"Я\"))","v":"В"},{"$f":"IF('[4]ГРАФИК К.П  ДЕКАБРЬ '!AG59=\"ОТ\",\"ОТ\",IF(J28=0,\"В\",\"Я\"))","v":"Я"},{"$f":"IF('[4]ГРАФИК К.П  ДЕКАБРЬ '!AH59=\"ОТ\",\"ОТ\",IF(K28=0,\"В\",\"Я\"))","v":"В"},{"$f":"IF('[4]ГРАФИК К.П  ДЕКАБРЬ '!AI59=\"ОТ\",\"ОТ\",IF(L28=0,\"В\",\"Я\"))","v":"Я"},{"$f":"IF('[4]ГРАФИК К.П  ДЕКАБРЬ '!AJ59=\"ОТ\",\"ОТ\",IF(M28=0,\"В\",\"Я\"))","v":"В"},{"$f":"IF('[4]ГРАФИК К.П  ДЕКАБРЬ '!AK59=\"ОТ\",\"ОТ\",IF(N28=0,\"В\",\"Я\"))","v":"Я"},{"$f":"IF('[4]ГРАФИК К.П  ДЕКАБРЬ '!AL59=\"ОТ\",\"ОТ\",IF(O28=0,\"В\",\"Я\"))","v":"В"},{"$f":"IF('[4]ГРАФИК К.П  ДЕКАБРЬ '!AM59=\"ОТ\",\"ОТ\",IF(P28=0,\"В\",\"Я\"))","v":"Я"},{"$f":"IF('[4]ГРАФИК К.П  ДЕКАБРЬ '!AN59=\"ОТ\",\"ОТ\",IF(Q28=0,\"В\",\"Я\"))","v":"В"},{"$f":"IF('[4]ГРАФИК К.П  ДЕКАБРЬ '!AO59=\"ОТ\",\"ОТ\",IF(R28=0,\"В\",\"Я\"))","v":"Я"},{"$f":"IF('[4]ГРАФИК К.П  ДЕКАБРЬ '!AP59=\"ОТ\",\"ОТ\",IF(S28=0,\"В\",\"Я\"))","v":"В"},{"$f":"IF('[4]ГРАФИК К.П  ДЕКАБРЬ '!AQ59=\"ОТ\",\"ОТ\",IF(T28=0,\"В\",\"Я\"))","v":"Я"},null,{"$f":"IF('[4]ГРАФИК К.П  ДЕКАБРЬ '!AS59=\"ОТ\",\"ОТ\",IF(V28=0,\"В\",\"Я\"))","v":"В"},{"$f":"IF('[4]ГРАФИК К.П  ДЕКАБРЬ '!AT59=\"ОТ\",\"ОТ\",IF(W28=0,\"В\",\"Я\"))","v":"Я"},{"$f":"IF('[4]ГРАФИК К.П  ДЕКАБРЬ '!AU59=\"ОТ\",\"ОТ\",IF(X28=0,\"В\",\"Я\"))","v":"В"},{"$f":"IF('[4]ГРАФИК К.П  ДЕКАБРЬ '!AV59=\"ОТ\",\"ОТ\",IF(Y28=0,\"В\",\"Я\"))","v":"Я"},{"$f":"IF('[4]ГРАФИК К.П  ДЕКАБРЬ '!AW59=\"ОТ\",\"ОТ\",IF(Z28=0,\"В\",\"Я\"))","v":"В"},{"$f":"IF('[4]ГРАФИК К.П  ДЕКАБРЬ '!AX59=\"ОТ\",\"ОТ\",IF(AA28=0,\"В\",\"Я\"))","v":"Я"},{"$f":"IF('[4]ГРАФИК К.П  ДЕКАБРЬ '!AY59=\"ОТ\",\"ОТ\",IF(AB28=0,\"В\",\"Я\"))","v":"В"},{"$f":"IF('[4]ГРАФИК К.П  ДЕКАБРЬ '!AZ59=\"ОТ\",\"ОТ\",IF(AC28=0,\"В\",\"Я\"))","v":"Я"},{"$f":"IF('[4]ГРАФИК К.П  ДЕКАБРЬ '!BA59=\"ОТ\",\"ОТ\",IF(AD28=0,\"В\",\"Я\"))","v":"В"},{"$f":"IF('[4]ГРАФИК К.П  ДЕКАБРЬ '!BB59=\"ОТ\",\"ОТ\",IF(AE28=0,\"В\",\"Я\"))","v":"Я"},{"$f":"IF('[4]ГРАФИК К.П  ДЕКАБРЬ '!BC59=\"ОТ\",\"ОТ\",IF(AF28=0,\"В\",\"Я\"))","v":"В"},{"$f":"IF('[4]ГРАФИК К.П  ДЕКАБРЬ '!BD59=\"ОТ\",\"ОТ\",IF(AG28=0,\"В\",\"Я\"))","v":"Я"},{"$f":"IF('[4]ГРАФИК К.П  ДЕКАБРЬ '!BE59=\"ОТ\",\"ОТ\",IF(AH28=0,\"В\",\"Я\"))","v":"В"},{"$f":"IF('[4]ГРАФИК К.П  ДЕКАБРЬ '!BF59=\"ОТ\",\"ОТ\",IF(AI28=0,\"В\",\"Я\"))","v":"Я"},{"$f":"IF('[4]ГРАФИК К.П  ДЕКАБРЬ '!BG59=\"ОТ\",\"ОТ\",IF(AJ28=0,\"В\",\"Я\"))","v":"В"},{"$f":"IF('[4]ГРАФИК К.П  ДЕКАБРЬ '!BH59=\"ОТ\",\"ОТ\",IF(AK28=0,\"В\",\"Я\"))","v":"Я"}]
[8,null,null,null,null,{"$f":"INDEX('[4]ГРАФИК К.П  ДЕКАБРЬ '!$AC$68:$HF$68,1,MATCH(F$10,'[4]ГРАФИК К.П  ДЕКАБРЬ '!$AC$19:$HF$19,0))","v":"00:00:00"},{"$f":"INDEX('[4]ГРАФИК К.П  ДЕКАБРЬ '!$AC$68:$HF$68,1,MATCH(G$10,'[4]ГРАФИК К.П  ДЕКАБРЬ '!$AC$19:$HF$19,0))","v":"07:00:00"},{"$f":"INDEX('[4]ГРАФИК К.П  ДЕКАБРЬ '!$AC$68:$HF$68,1,MATCH(H$10,'[4]ГРАФИК К.П  ДЕКАБРЬ '!$AC$19:$HF$19,0))","v":"07:00:00"},{"$f":"INDEX('[4]ГРАФИК К.П  ДЕКАБРЬ '!$AC$68:$HF$68,1,MATCH(I$10,'[4]ГРАФИК К.П  ДЕКАБРЬ '!$AC$19:$HF$19,0))","v":"07:00:00"},{"$f":"INDEX('[4]ГРАФИК К.П  ДЕКАБРЬ '!$AC$68:$HF$68,1,MATCH(J$10,'[4]ГРАФИК К.П  ДЕКАБРЬ '!$AC$19:$HF$19,0))","v":"07:00:00"},{"$f":"INDEX('[4]ГРАФИК К.П  ДЕКАБРЬ '!$AC$68:$HF$68,1,MATCH(K$10,'[4]ГРАФИК К.П  ДЕКАБРЬ '!$AC$19:$HF$19,0))","v":"07:00:00"},{"$f":"INDEX('[4]ГРАФИК К.П  ДЕКАБРЬ '!$AC$68:$HF$68,1,MATCH(L$10,'[4]ГРАФИК К.П  ДЕКАБРЬ '!$AC$19:$HF$19,0))","v":"05:00:00"},{"$f":"INDEX('[4]ГРАФИК К.П  ДЕКАБРЬ '!$AC$68:$HF$68,1,MATCH(M$10,'[4]ГРАФИК К.П  ДЕКАБРЬ '!$AC$19:$HF$19,0))","v":"00:00:00"},{"$f":"INDEX('[4]ГРАФИК К.П  ДЕКАБРЬ '!$AC$68:$HF$68,1,MATCH(N$10,'[4]ГРАФИК К.П  ДЕКАБРЬ '!$AC$19:$HF$19,0))","v":"07:00:00"},{"$f":"INDEX('[4]ГРАФИК К.П  ДЕКАБРЬ '!$AC$68:$HF$68,1,MATCH(O$10,'[4]ГРАФИК К.П  ДЕКАБРЬ '!$AC$19:$HF$19,0))","v":"07:00:00"},{"$f":"INDEX('[4]ГРАФИК К.П  ДЕКАБРЬ '!$AC$68:$HF$68,1,MATCH(P$10,'[4]ГРАФИК К.П  ДЕКАБРЬ '!$AC$19:$HF$19,0))","v":"07:00:00"},{"$f":"INDEX('[4]ГРАФИК К.П  ДЕКАБРЬ '!$AC$68:$HF$68,1,MATCH(Q$10,'[4]ГРАФИК К.П  ДЕКАБРЬ '!$AC$19:$HF$19,0))","v":"07:00:00"},{"$f":"INDEX('[4]ГРАФИК К.П  ДЕКАБРЬ '!$AC$68:$HF$68,1,MATCH(R$10,'[4]ГРАФИК К.П  ДЕКАБРЬ '!$AC$19:$HF$19,0))","v":"07:00:00"},{"$f":"INDEX('[4]ГРАФИК К.П  ДЕКАБРЬ '!$AC$68:$HF$68,1,MATCH(S$10,'[4]ГРАФИК К.П  ДЕКАБРЬ '!$AC$19:$HF$19,0))","v":"05:00:00"},{"$f":"INDEX('[4]ГРАФИК К.П  ДЕКАБРЬ '!$AC$68:$HF$68,1,MATCH(T$10,'[4]ГРАФИК К.П  ДЕКАБРЬ '!$AC$19:$HF$19,0))","v":"00:00:00"},null,{"$f":"INDEX('[4]ГРАФИК К.П  ДЕКАБРЬ '!$AC$68:$HF$68,1,MATCH(V$10,'[4]ГРАФИК К.П  ДЕКАБРЬ '!$AC$19:$HF$19,0))","v":"07:00:00"},{"$f":"INDEX('[4]ГРАФИК К.П  ДЕКАБРЬ '!$AC$68:$HF$68,1,MATCH(W$10,'[4]ГРАФИК К.П  ДЕКАБРЬ '!$AC$19:$HF$19,0))","v":"07:00:00"},{"$f":"INDEX('[4]ГРАФИК К.П  ДЕКАБРЬ '!$AC$68:$HF$68,1,MATCH(X$10,'[4]ГРАФИК К.П  ДЕКАБРЬ '!$AC$19:$HF$19,0))","v":"07:00:00"},{"$f":"INDEX('[4]ГРАФИК К.П  ДЕКАБРЬ '!$AC$68:$HF$68,1,MATCH(Y$10,'[4]ГРАФИК К.П  ДЕКАБРЬ '!$AC$19:$HF$19,0))","v":"07:00:00"},{"$f":"INDEX('[4]ГРАФИК К.П  ДЕКАБРЬ '!$AC$68:$HF$68,1,MATCH(Z$10,'[4]ГРАФИК К.П  ДЕКАБРЬ '!$AC$19:$HF$19,0))","v":"07:00:00"},{"$f":"INDEX('[4]ГРАФИК К.П  ДЕКАБРЬ '!$AC$68:$HF$68,1,MATCH(AA$10,'[4]ГРАФИК К.П  ДЕКАБРЬ '!$AC$19:$HF$19,0))","v":"05:00:00"},{"$f":"INDEX('[4]ГРАФИК К.П  ДЕКАБРЬ '!$AC$68:$HF$68,1,MATCH(AB$10,'[4]ГРАФИК К.П  ДЕКАБРЬ '!$AC$19:$HF$19,0))","v":"00:00:00"},{"$f":"INDEX('[4]ГРАФИК К.П  ДЕКАБРЬ '!$AC$68:$HF$68,1,MATCH(AC$10,'[4]ГРАФИК К.П  ДЕКАБРЬ '!$AC$19:$HF$19,0))","v":"07:00:00"},{"$f":"INDEX('[4]ГРАФИК К.П  ДЕКАБРЬ '!$AC$68:$HF$68,1,MATCH(AD$10,'[4]ГРАФИК К.П  ДЕКАБРЬ '!$AC$19:$HF$19,0))","v":"08:00:00"},{"$f":"INDEX('[4]ГРАФИК К.П  ДЕКАБРЬ '!$AC$68:$HF$68,1,MATCH(AE$10,'[4]ГРАФИК К.П  ДЕКАБРЬ '!$AC$19:$HF$19,0))","v":"08:00:00"},{"$f":"INDEX('[4]ГРАФИК К.П  ДЕКАБРЬ '!$AC$68:$HF$68,1,MATCH(AF$10,'[4]ГРАФИК К.П  ДЕКАБРЬ '!$AC$19:$HF$19,0))","v":"08:00:00"},{"$f":"INDEX('[4]ГРАФИК К.П  ДЕКАБРЬ '!$AC$68:$HF$68,1,MATCH(AG$10,'[4]ГРАФИК К.П  ДЕКАБРЬ '!$AC$19:$HF$19,0))","v":"08:00:00"},{"$f":"INDEX('[4]ГРАФИК К.П  ДЕКАБРЬ '!$AC$68:$HF$68,1,MATCH(AH$10,'[4]ГРАФИК К.П  ДЕКАБРЬ '!$AC$19:$HF$19,0))","v":"08:00:00"},{"$f":"INDEX('[4]ГРАФИК К.П  ДЕКАБРЬ '!$AC$68:$HF$68,1,MATCH(AI$10,'[4]ГРАФИК К.П  ДЕКАБРЬ '!$AC$19:$HF$19,0))","v":"08:00:00"},{"$f":"INDEX('[4]ГРАФИК К.П  ДЕКАБРЬ '!$AC$68:$HF$68,1,MATCH(AJ$10,'[4]ГРАФИК К.П  ДЕКАБРЬ '!$AC$19:$HF$19,0))","v":"00:00:00"},{"$f":"INDEX('[4]ГРАФИК К.П  ДЕКАБРЬ '!$AC$68:$HF$68,1,MATCH(AK$10,'[4]ГРАФИК К.П  ДЕКАБРЬ '!$AC$19:$HF$19,0))","v":"08:00:00"},{"$f":"COUNTIF($F30:$AK30,\">0\")","v":26},{"$f":"SUM($F$30:$AK$30)","v":7.6249999999999973},null,null,null,null,null,null,null,null,{"$f":"COUNTIF($F31:$AK31,\"=От\")","v":0},null,null,null,null,null,null,null,null,{"$f":"COUNTIF(F31:AK31,\"В\")","v":5}]
[null,null,null,null,null,{"$f":"IF('[4]ГРАФИК К.П  ДЕКАБРЬ '!AC65=\"ОТ\",\"ОТ\",IF(F30=0,\"В\",\"Я\"))","v":"В"},{"$f":"IF('[4]ГРАФИК К.П  ДЕКАБРЬ '!AD65=\"ОТ\",\"ОТ\",IF(G30=0,\"В\",\"Я\"))","v":"Я"},{"$f":"IF('[4]ГРАФИК К.П  ДЕКАБРЬ '!AE65=\"ОТ\",\"ОТ\",IF(H30=0,\"В\",\"Я\"))","v":"Я"},{"$f":"IF('[4]ГРАФИК К.П  ДЕКАБРЬ '!AF65=\"ОТ\",\"ОТ\",IF(I30=0,\"В\",\"Я\"))","v":"Я"},{"$f":"IF('[4]ГРАФИК К.П  ДЕКАБРЬ '!AG65=\"ОТ\",\"ОТ\",IF(J30=0,\"В\",\"Я\"))","v":"Я"},{"$f":"IF('[4]ГРАФИК К.П  ДЕКАБРЬ '!AH65=\"ОТ\",\"ОТ\",IF(K30=0,\"В\",\"Я\"))","v":"Я"},{"$f":"IF('[4]ГРАФИК К.П  ДЕКАБРЬ '!AI65=\"ОТ\",\"ОТ\",IF(L30=0,\"В\",\"Я\"))","v":"Я"},{"$f":"IF('[4]ГРАФИК К.П  ДЕКАБРЬ '!AJ65=\"ОТ\",\"ОТ\",IF(M30=0,\"В\",\"Я\"))","v":"В"},{"$f":"IF('[4]ГРАФИК К.П  ДЕКАБРЬ '!AK65=\"ОТ\",\"ОТ\",IF(N30=0,\"В\",\"Я\"))","v":"Я"},{"$f":"IF('[4]ГРАФИК К.П  ДЕКАБРЬ '!AL65=\"ОТ\",\"ОТ\",IF(O30=0,\"В\",\"Я\"))","v":"Я"},{"$f":"IF('[4]ГРАФИК К.П  ДЕКАБРЬ '!AM65=\"ОТ\",\"ОТ\",IF(P30=0,\"В\",\"Я\"))","v":"Я"},{"$f":"IF('[4]ГРАФИК К.П  ДЕКАБРЬ '!AN65=\"ОТ\",\"ОТ\",IF(Q30=0,\"В\",\"Я\"))","v":"Я"},{"$f":"IF('[4]ГРАФИК К.П  ДЕКАБРЬ '!AO65=\"ОТ\",\"ОТ\",IF(R30=0,\"В\",\"Я\"))","v":"Я"},{"$f":"IF('[4]ГРАФИК К.П  ДЕКАБРЬ '!AP65=\"ОТ\",\"ОТ\",IF(S30=0,\"В\",\"Я\"))","v":"Я"},{"$f":"IF('[4]ГРАФИК К.П  ДЕКАБРЬ '!AQ65=\"ОТ\",\"ОТ\",IF(T30=0,\"В\",\"Я\"))","v":"В"},null,{"$f":"IF('[4]ГРАФИК К.П  ДЕКАБРЬ '!AS65=\"ОТ\",\"ОТ\",IF(V30=0,\"В\",\"Я\"))","v":"Я"},{"$f":"IF('[4]ГРАФИК К.П  ДЕКАБРЬ '!AT65=\"ОТ\",\"ОТ\",IF(W30=0,\"В\",\"Я\"))","v":"Я"},{"$f":"IF('[4]ГРАФИК К.П  ДЕКАБРЬ '!AU65=\"ОТ\",\"ОТ\",IF(X30=0,\"В\",\"Я\"))","v":"Я"},{"$f":"IF('[4]ГРАФИК К.П  ДЕКАБРЬ '!AV65=\"ОТ\",\"ОТ\",IF(Y30=0,\"В\",\"Я\"))","v":"Я"},{"$f":"IF('[4]ГРАФИК К.П  ДЕКАБРЬ '!AW65=\"ОТ\",\"ОТ\",IF(Z30=0,\"В\",\"Я\"))","v":"Я"},{"$f":"IF('[4]ГРАФИК К.П  ДЕКАБРЬ '!AX65=\"ОТ\",\"ОТ\",IF(AA30=0,\"В\",\"Я\"))","v":"Я"},{"$f":"IF('[4]ГРАФИК К.П  ДЕКАБРЬ '!AY65=\"ОТ\",\"ОТ\",IF(AB30=0,\"В\",\"Я\"))","v":"В"},{"$f":"IF('[4]ГРАФИК К.П  ДЕКАБРЬ '!AZ65=\"ОТ\",\"ОТ\",IF(AC30=0,\"В\",\"Я\"))","v":"Я"},{"$f":"IF('[4]ГРАФИК К.П  ДЕКАБРЬ '!BA65=\"ОТ\",\"ОТ\",IF(AD30=0,\"В\",\"Я\"))","v":"Я"},{"$f":"IF('[4]ГРАФИК К.П  ДЕКАБРЬ '!BB65=\"ОТ\",\"ОТ\",IF(AE30=0,\"В\",\"Я\"))","v":"Я"},{"$f":"IF('[4]ГРАФИК К.П  ДЕКАБРЬ '!BC65=\"ОТ\",\"ОТ\",IF(AF30=0,\"В\",\"Я\"))","v":"Я"},{"$f":"IF('[4]ГРАФИК К.П  ДЕКАБРЬ '!BD65=\"ОТ\",\"ОТ\",IF(AG30=0,\"В\",\"Я\"))","v":"Я"},{"$f":"IF('[4]ГРАФИК К.П  ДЕКАБРЬ '!BE65=\"ОТ\",\"ОТ\",IF(AH30=0,\"В\",\"Я\"))","v":"Я"},{"$f":"IF('[4]ГРАФИК К.П  ДЕКАБРЬ '!BF65=\"ОТ\",\"ОТ\",IF(AI30=0,\"В\",\"Я\"))","v":"Я"},{"$f":"IF('[4]ГРАФИК К.П  ДЕКАБРЬ '!BG65=\"ОТ\",\"ОТ\",IF(AJ30=0,\"В\",\"Я\"))","v":"В"},{"$f":"IF('[4]ГРАФИК К.П  ДЕКАБРЬ '!BH65=\"ОТ\",\"ОТ\",IF(AK30=0,\"В\",\"Я\"))","v":"Я"}]
[9,null,null,null,null,{"$f":"INDEX('[4]ГРАФИК К.П  ДЕКАБРЬ '!$AC$74:$HF$74,1,MATCH(F$10,'[4]ГРАФИК К.П  ДЕКАБРЬ '!$AC$19:$HF$19,0))","v":"00:00:00"},{"$f":"INDEX('[4]ГРАФИК К.П  ДЕКАБРЬ '!$AC$74:$HF$74,1,MATCH(G$10,'[4]ГРАФИК К.П  ДЕКАБРЬ '!$AC$19:$HF$19,0))","v":"01:00:00"},{"$f":"INDEX('[4]ГРАФИК К.П  ДЕКАБРЬ '!$AC$74:$HF$74,1,MATCH(H$10,'[4]ГРАФИК К.П  ДЕКАБРЬ '!$AC$19:$HF$19,0))","v":"01:00:00"},{"$f":"INDEX('[4]ГРАФИК К.П  ДЕКАБРЬ '!$AC$74:$HF$74,1,MATCH(I$10,'[4]ГРАФИК К.П  ДЕКАБРЬ '!$AC$19:$HF$19,0))","v":"01:00:00"},{"$f":"INDEX('[4]ГРАФИК К.П  ДЕКАБРЬ '!$AC$74:$HF$74,1,MATCH(J$10,'[4]ГРАФИК К.П  ДЕКАБРЬ '!$AC$19:$HF$19,0))","v":"01:00:00"},{"$f":"INDEX('[4]ГРАФИК К.П  ДЕКАБРЬ '!$AC$74:$HF$74,1,MATCH(K$10,'[4]ГРАФИК К.П  ДЕКАБРЬ '!$AC$19:$HF$19,0))","v":"02:00:00"},{"$f":"INDEX('[4]ГРАФИК К.П  ДЕКАБРЬ '!$AC$74:$HF$74,1,MATCH(L$10,'[4]ГРАФИК К.П  ДЕКАБРЬ '!$AC$19:$HF$19,0))","v":"02:00:00"},{"$f":"INDEX('[4]ГРАФИК К.П  ДЕКАБРЬ '!$AC$74:$HF$74,1,MATCH(M$10,'[4]ГРАФИК К.П  ДЕКАБРЬ '!$AC$19:$HF$19,0))","v":"00:00:00"},{"$f":"INDEX('[4]ГРАФИК К.П  ДЕКАБРЬ '!$AC$74:$HF$74,1,MATCH(N$10,'[4]ГРАФИК К.П  ДЕКАБРЬ '!$AC$19:$HF$19,0))","v":"02:00:00"},{"$f":"INDEX('[4]ГРАФИК К.П  ДЕКАБРЬ '!$AC$74:$HF$74,1,MATCH(O$10,'[4]ГРАФИК К.П  ДЕКАБРЬ '!$AC$19:$HF$19,0))","v":"02:00:00"},{"$f":"INDEX('[4]ГРАФИК К.П  ДЕКАБРЬ '!$AC$74:$HF$74,1,MATCH(P$10,'[4]ГРАФИК К.П  ДЕКАБРЬ '!$AC$19:$HF$19,0))","v":"02:00:00"},{"$f":"INDEX('[4]ГРАФИК К.П  ДЕКАБРЬ '!$AC$74:$HF$74,1,MATCH(Q$10,'[4]ГРАФИК К.П  ДЕКАБРЬ '!$AC$19:$HF$19,0))","v":"02:00:00"},{"$f":"INDEX('[4]ГРАФИК К.П  ДЕКАБРЬ '!$AC$74:$HF$74,1,MATCH(R$10,'[4]ГРАФИК К.П  ДЕКАБРЬ '!$AC$19:$HF$19,0))","v":"02:00:00"},{"$f":"INDEX('[4]ГРАФИК К.П  ДЕКАБРЬ '!$AC$74:$HF$74,1,MATCH(S$10,'[4]ГРАФИК К.П  ДЕКАБРЬ '!$AC$19:$HF$19,0))","v":"02:00:00"},{"$f":"INDEX('[4]ГРАФИК К.П  ДЕКАБРЬ '!$AC$74:$HF$74,1,MATCH(T$10,'[4]ГРАФИК К.П  ДЕКАБРЬ '!$AC$19:$HF$19,0))","v":"00:00:00"},null,{"$f":"INDEX('[4]ГРАФИК К.П  ДЕКАБРЬ '!$AC$74:$HF$74,1,MATCH(V$10,'[4]ГРАФИК К.П  ДЕКАБРЬ '!$AC$19:$HF$19,0))","v":"02:00:00"},{"$f":"INDEX('[4]ГРАФИК К.П  ДЕКАБРЬ '!$AC$74:$HF$74,1,MATCH(W$10,'[4]ГРАФИК К.П  ДЕКАБРЬ '!$AC$19:$HF$19,0))","v":"02:00:00"},{"$f":"INDEX('[4]ГРАФИК К.П  ДЕКАБРЬ '!$AC$74:$HF$74,1,MATCH(X$10,'[4]ГРАФИК К.П  ДЕКАБРЬ '!$AC$19:$HF$19,0))","v":"02:00:00"},{"$f":"INDEX('[4]ГРАФИК К.П  ДЕКАБРЬ '!$AC$74:$HF$74,1,MATCH(Y$10,'[4]ГРАФИК К.П  ДЕКАБРЬ '!$AC$19:$HF$19,0))","v":"02:00:00"},{"$f":"INDEX('[4]ГРАФИК К.П  ДЕКАБРЬ '!$AC$74:$HF$74,1,MATCH(Z$10,'[4]ГРАФИК К.П  ДЕКАБРЬ '!$AC$19:$HF$19,0))","v":"02:00:00"},{"$f":"INDEX('[4]ГРАФИК К.П  ДЕКАБРЬ '!$AC$74:$HF$74,1,MATCH(AA$10,'[4]ГРАФИК К.П  ДЕКАБРЬ '!$AC$19:$HF$19,0))","v":"02:00:00"},{"$f":"INDEX('[4]ГРАФИК К.П  ДЕКАБРЬ '!$AC$74:$HF$74,1,MATCH(AB$10,'[4]ГРАФИК К.П  ДЕКАБРЬ '!$AC$19:$HF$19,0))","v":"00:00:00"},{"$f":"INDEX('[4]ГРАФИК К.П  ДЕКАБРЬ '!$AC$74:$HF$74,1,MATCH(AC$10,'[4]ГРАФИК К.П  ДЕКАБРЬ '!$AC$19:$HF$19,0))","v":"02:00:00"},{"$f":"INDEX('[4]ГРАФИК К.П  ДЕКАБРЬ '!$AC$74:$HF$74,1,MATCH(AD$10,'[4]ГРАФИК К.П  ДЕКАБРЬ '!$AC$19:$HF$19,0))","v":"02:00:00"},{"$f":"INDEX('[4]ГРАФИК К.П  ДЕКАБРЬ '!$AC$74:$HF$74,1,MATCH(AE$10,'[4]ГРАФИК К.П  ДЕКАБРЬ '!$AC$19:$HF$19,0))","v":"02:00:00"},{"$f":"INDEX('[4]ГРАФИК К.П  ДЕКАБРЬ '!$AC$74:$HF$74,1,MATCH(AF$10,'[4]ГРАФИК К.П  ДЕКАБРЬ '!$AC$19:$HF$19,0))","v":"02:00:00"},{"$f":"INDEX('[4]ГРАФИК К.П  ДЕКАБРЬ '!$AC$74:$HF$74,1,MATCH(AG$10,'[4]ГРАФИК К.П  ДЕКАБРЬ '!$AC$19:$HF$19,0))","v":"02:00:00"},{"$f":"INDEX('[4]ГРАФИК К.П  ДЕКАБРЬ '!$AC$74:$HF$74,1,MATCH(AH$10,'[4]ГРАФИК К.П  ДЕКАБРЬ '!$AC$19:$HF$19,0))","v":"01:00:00"},{"$f":"INDEX('[4]ГРАФИК К.П  ДЕКАБРЬ '!$AC$74:$HF$74,1,MATCH(AI$10,'[4]ГРАФИК К.П  ДЕКАБРЬ '!$AC$19:$HF$19,0))","v":"01:00:00"},{"$f":"INDEX('[4]ГРАФИК К.П  ДЕКАБРЬ '!$AC$74:$HF$74,1,MATCH(AJ$10,'[4]ГРАФИК К.П  ДЕКАБРЬ '!$AC$19:$HF$19,0))","v":"00:00:00"},{"$f":"INDEX('[4]ГРАФИК К.П  ДЕКАБРЬ '!$AC$74:$HF$74,1,MATCH(AK$10,'[4]ГРАФИК К.П  ДЕКАБРЬ '!$AC$19:$HF$19,0))","v":"01:45:00"},{"$f":"COUNTIF($F32:$AK32,\">0\")","v":26},{"$f":"SUM($F$32:$AK$32)","v":1.9062499999999996},null,null,null,null,null,null,null,null,{"$f":"COUNTIF($F33:$AK33,\"=От\")","v":0},null,null,null,null,null,null,null,null,5]
[null,null,null,null,null,{"$f":"IF('[4]ГРАФИК К.П  ДЕКАБРЬ '!AC71=\"ОТ\",\"ОТ\",IF(F32=0,\"В\",\"Я\"))","v":"В"},{"$f":"IF('[4]ГРАФИК К.П  ДЕКАБРЬ '!AD71=\"ОТ\",\"ОТ\",IF(G32=0,\"В\",\"Я\"))","v":"Я"},{"$f":"IF('[4]ГРАФИК К.П  ДЕКАБРЬ '!AE71=\"ОТ\",\"ОТ\",IF(H32=0,\"В\",\"Я\"))","v":"Я"},{"$f":"IF('[4]ГРАФИК К.П  ДЕКАБРЬ '!AF71=\"ОТ\",\"ОТ\",IF(I32=0,\"В\",\"Я\"))","v":"Я"},{"$f":"IF('[4]ГРАФИК К.П  ДЕКАБРЬ '!AG71=\"ОТ\",\"ОТ\",IF(J32=0,\"В\",\"Я\"))","v":"Я"},{"$f":"IF('[4]ГРАФИК К.П  ДЕКАБРЬ '!AH71=\"ОТ\",\"ОТ\",IF(K32=0,\"В\",\"Я\"))","v":"Я"},{"$f":"IF('[4]ГРАФИК К.П  ДЕКАБРЬ '!AI71=\"ОТ\",\"ОТ\",IF(L32=0,\"В\",\"Я\"))","v":"Я"},{"$f":"IF('[4]ГРАФИК К.П  ДЕКАБРЬ '!AJ71=\"ОТ\",\"ОТ\",IF(M32=0,\"В\",\"Я\"))","v":"В"},{"$f":"IF('[4]ГРАФИК К.П  ДЕКАБРЬ '!AK71=\"ОТ\",\"ОТ\",IF(N32=0,\"В\",\"Я\"))","v":"Я"},{"$f":"IF('[4]ГРАФИК К.П  ДЕКАБРЬ '!AL71=\"ОТ\",\"ОТ\",IF(O32=0,\"В\",\"Я\"))","v":"Я"},{"$f":"IF('[4]ГРАФИК К.П  ДЕКАБРЬ '!AM71=\"ОТ\",\"ОТ\",IF(P32=0,\"В\",\"Я\"))","v":"Я"},{"$f":"IF('[4]ГРАФИК К.П  ДЕКАБРЬ '!AN71=\"ОТ\",\"ОТ\",IF(Q32=0,\"В\",\"Я\"))","v":"Я"},{"$f":"IF('[4]ГРАФИК К.П  ДЕКАБРЬ '!AO71=\"ОТ\",\"ОТ\",IF(R32=0,\"В\",\"Я\"))","v":"Я"},{"$f":"IF('[4]ГРАФИК К.П  ДЕКАБРЬ '!AP71=\"ОТ\",\"ОТ\",IF(S32=0,\"В\",\"Я\"))","v":"Я"},{"$f":"IF('[4]ГРАФИК К.П  ДЕКАБРЬ '!AQ71=\"ОТ\",\"ОТ\",IF(T32=0,\"В\",\"Я\"))","v":"В"},null,{"$f":"IF('[4]ГРАФИК К.П  ДЕКАБРЬ '!AS71=\"ОТ\",\"ОТ\",IF(V32=0,\"В\",\"Я\"))","v":"Я"},{"$f":"IF('[4]ГРАФИК К.П  ДЕКАБРЬ '!AT71=\"ОТ\",\"ОТ\",IF(W32=0,\"В\",\"Я\"))","v":"Я"},{"$f":"IF('[4]ГРАФИК К.П  ДЕКАБРЬ '!AU71=\"ОТ\",\"ОТ\",IF(X32=0,\"В\",\"Я\"))","v":"Я"},{"$f":"IF('[4]ГРАФИК К.П  ДЕКАБРЬ '!AV71=\"ОТ\",\"ОТ\",IF(Y32=0,\"В\",\"Я\"))","v":"Я"},{"$f":"IF('[4]ГРАФИК К.П  ДЕКАБРЬ '!AW71=\"ОТ\",\"ОТ\",IF(Z32=0,\"В\",\"Я\"))","v":"Я"},{"$f":"IF('[4]ГРАФИК К.П  ДЕКАБРЬ '!AX71=\"ОТ\",\"ОТ\",IF(AA32=0,\"В\",\"Я\"))","v":"Я"},{"$f":"IF('[4]ГРАФИК К.П  ДЕКАБРЬ '!AY71=\"ОТ\",\"ОТ\",IF(AB32=0,\"В\",\"Я\"))","v":"В"},{"$f":"IF('[4]ГРАФИК К.П  ДЕКАБРЬ '!AZ71=\"ОТ\",\"ОТ\",IF(AC32=0,\"В\",\"Я\"))","v":"Я"},{"$f":"IF('[4]ГРАФИК К.П  ДЕКАБРЬ '!BA71=\"ОТ\",\"ОТ\",IF(AD32=0,\"В\",\"Я\"))","v":"Я"},{"$f":"IF('[4]ГРАФИК К.П  ДЕКАБРЬ '!BB71=\"ОТ\",\"ОТ\",IF(AE32=0,\"В\",\"Я\"))","v":"Я"},{"$f":"IF('[4]ГРАФИК К.П  ДЕКАБРЬ '!BC71=\"ОТ\",\"ОТ\",IF(AF32=0,\"В\",\"Я\"))","v":"Я"},{"$f":"IF('[4]ГРАФИК К.П  ДЕКАБРЬ '!BD71=\"ОТ\",\"ОТ\",IF(AG32=0,\"В\",\"Я\"))","v":"Я"},{"$f":"IF('[4]ГРАФИК К.П  ДЕКАБРЬ '!BE71=\"ОТ\",\"ОТ\",IF(AH32=0,\"В\",\"Я\"))","v":"Я"},{"$f":"IF('[4]ГРАФИК К.П  ДЕКАБРЬ '!BF71=\"ОТ\",\"ОТ\",IF(AI32=0,\"В\",\"Я\"))","v":"Я"},{"$f":"IF('[4]ГРАФИК К.П  ДЕКАБРЬ '!BG71=\"ОТ\",\"ОТ\",IF(AJ32=0,\"В\",\"Я\"))","v":"В"},{"$f":"IF('[4]ГРАФИК К.П  ДЕКАБРЬ '!BH71=\"ОТ\",\"ОТ\",IF(AK32=0,\"В\",\"Я\"))","v":"Я"}]
[10,null,null,null,null,{"$f":"INDEX('[4]ГРАФИК К.П  ДЕКАБРЬ '!$AC$79:$HF$79,1,MATCH(F$10,'[4]ГРАФИК К.П  ДЕКАБРЬ '!$AC$19:$HF$19,0))","v":"00:00:00"},{"$f":"INDEX('[4]ГРАФИК К.П  ДЕКАБРЬ '!$AC$79:$HF$79,1,MATCH(G$10,'[4]ГРАФИК К.П  ДЕКАБРЬ '!$AC$19:$HF$19,0))","v":"10:00:00"},{"$f":"INDEX('[4]ГРАФИК К.П  ДЕКАБРЬ '!$AC$79:$HF$79,1,MATCH(H$10,'[4]ГРАФИК К.П  ДЕКАБРЬ '!$AC$19:$HF$19,0))","v":"09:00:00"},{"$f":"INDEX('[4]ГРАФИК К.П  ДЕКАБРЬ '!$AC$79:$HF$79,1,MATCH(I$10,'[4]ГРАФИК К.П  ДЕКАБРЬ '!$AC$19:$HF$19,0))","v":"00:00:00"},{"$f":"INDEX('[4]ГРАФИК К.П  ДЕКАБРЬ '!$AC$79:$HF$79,1,MATCH(J$10,'[4]ГРАФИК К.П  ДЕКАБРЬ '!$AC$19:$HF$19,0))","v":"10:00:00"},{"$f":"INDEX('[4]ГРАФИК К.П  ДЕКАБРЬ '!$AC$79:$HF$79,1,MATCH(K$10,'[4]ГРАФИК К.П  ДЕКАБРЬ '!$AC$19:$HF$19,0))","v":"09:00:00"},{"$f":"INDEX('[4]ГРАФИК К.П  ДЕКАБРЬ '!$AC$79:$HF$79,1,MATCH(L$10,'[4]ГРАФИК К.П  ДЕКАБРЬ '!$AC$19:$HF$19,0))","v":"00:00:00"},{"$f":"INDEX('[4]ГРАФИК К.П  ДЕКАБРЬ '!$AC$79:$HF$79,1,MATCH(M$10,'[4]ГРАФИК К.П  ДЕКАБРЬ '!$AC$19:$HF$19,0))","v":"10:00:00"},{"$f":"INDEX('[4]ГРАФИК К.П  ДЕКАБРЬ '!$AC$79:$HF$79,1,MATCH(N$10,'[4]ГРАФИК К.П  ДЕКАБРЬ '!$AC$19:$HF$19,0))","v":"09:00:00"},{"$f":"INDEX('[4]ГРАФИК К.П  ДЕКАБРЬ '!$AC$79:$HF$79,1,MATCH(O$10,'[4]ГРАФИК К.П  ДЕКАБРЬ '!$AC$19:$HF$19,0))","v":"00:00:00"},{"$f":"INDEX('[4]ГРАФИК К.П  ДЕКАБРЬ '!$AC$79:$HF$79,1,MATCH(P$10,'[4]ГРАФИК К.П  ДЕКАБРЬ '!$AC$19:$HF$19,0))","v":"09:00:00"},{"$f":"INDEX('[4]ГРАФИК К.П  ДЕКАБРЬ '!$AC$79:$HF$79,1,MATCH(Q$10,'[4]ГРАФИК К.П  ДЕКАБРЬ '!$AC$19:$HF$19,0))","v":"09:00:00"},{"$f":"INDEX('[4]ГРАФИК К.П  ДЕКАБРЬ '!$AC$79:$HF$79,1,MATCH(R$10,'[4]ГРАФИК К.П  ДЕКАБРЬ '!$AC$19:$HF$19,0))","v":"00:00:00"},{"$f":"INDEX('[4]ГРАФИК К.П  ДЕКАБРЬ '!$AC$79:$HF$79,1,MATCH(S$10,'[4]ГРАФИК К.П  ДЕКАБРЬ '!$AC$19:$HF$19,0))","v":"09:00:00"},{"$f":"INDEX('[4]ГРАФИК К.П  ДЕКАБРЬ '!$AC$79:$HF$79,1,MATCH(T$10,'[4]ГРАФИК К.П  ДЕКАБРЬ '!$AC$19:$HF$19,0))","v":"09:00:00"},null,{"$f":"INDEX('[4]ГРАФИК К.П  ДЕКАБРЬ '!$AC$79:$HF$79,1,MATCH(V$10,'[4]ГРАФИК К.П  ДЕКАБРЬ '!$AC$19:$HF$19,0))","v":"00:00:00"},{"$f":"INDEX('[4]ГРАФИК К.П  ДЕКАБРЬ '!$AC$79:$HF$79,1,MATCH(W$10,'[4]ГРАФИК К.П  ДЕКАБРЬ '!$AC$19:$HF$19,0))","v":"09:00:00"},{"$f":"INDEX('[4]ГРАФИК К.П  ДЕКАБРЬ '!$AC$79:$HF$79,1,MATCH(X$10,'[4]ГРАФИК К.П  ДЕКАБРЬ '!$AC$19:$HF$19,0))","v":"09:00:00"},{"$f":"INDEX('[4]ГРАФИК К.П  ДЕКАБРЬ '!$AC$79:$HF$79,1,MATCH(Y$10,'[4]ГРАФИК К.П  ДЕКАБРЬ '!$AC$19:$HF$19,0))","v":"00:00:00"},{"$f":"INDEX('[4]ГРАФИК К.П  ДЕКАБРЬ '!$AC$79:$HF$79,1,MATCH(Z$10,'[4]ГРАФИК К.П  ДЕКАБРЬ '!$AC$19:$HF$19,0))","v":"09:00:00"},{"$f":"INDEX('[4]ГРАФИК К.П  ДЕКАБРЬ '!$AC$79:$HF$79,1,MATCH(AA$10,'[4]ГРАФИК К.П  ДЕКАБРЬ '!$AC$19:$HF$19,0))","v":"09:00:00"},{"$f":"INDEX('[4]ГРАФИК К.П  ДЕКАБРЬ '!$AC$79:$HF$79,1,MATCH(AB$10,'[4]ГРАФИК К.П  ДЕКАБРЬ '!$AC$19:$HF$19,0))","v":"00:00:00"},{"$f":"INDEX('[4]ГРАФИК К.П  ДЕКАБРЬ '!$AC$79:$HF$79,1,MATCH(AC$10,'[4]ГРАФИК К.П  ДЕКАБРЬ '!$AC$19:$HF$19,0))","v":"09:00:00"},{"$f":"INDEX('[4]ГРАФИК К.П  ДЕКАБРЬ '!$AC$79:$HF$79,1,MATCH(AD$10,'[4]ГРАФИК К.П  ДЕКАБРЬ '!$AC$19:$HF$19,0))","v":"09:00:00"},{"$f":"INDEX('[4]ГРАФИК К.П  ДЕКАБРЬ '!$AC$79:$HF$79,1,MATCH(AE$10,'[4]ГРАФИК К.П  ДЕКАБРЬ '!$AC$19:$HF$19,0))","v":"00:00:00"},{"$f":"INDEX('[4]ГРАФИК К.П  ДЕКАБРЬ '!$AC$79:$HF$79,1,MATCH(AF$10,'[4]ГРАФИК К.П  ДЕКАБРЬ '!$AC$19:$HF$19,0))","v":"09:00:00"},{"$f":"INDEX('[4]ГРАФИК К.П  ДЕКАБРЬ '!$AC$79:$HF$79,1,MATCH(AG$10,'[4]ГРАФИК К.П  ДЕКАБРЬ '!$AC$19:$HF$19,0))","v":"09:00:00"},{"$f":"INDEX('[4]ГРАФИК К.П  ДЕКАБРЬ '!$AC$79:$HF$79,1,MATCH(AH$10,'[4]ГРАФИК К.П  ДЕКАБРЬ '!$AC$19:$HF$19,0))","v":"00:00:00"},{"$f":"INDEX('[4]ГРАФИК К.П  ДЕКАБРЬ '!$AC$79:$HF$79,1,MATCH(AI$10,'[4]ГРАФИК К.П  ДЕКАБРЬ '!$AC$19:$HF$19,0))","v":"09:00:00"},{"$f":"INDEX('[4]ГРАФИК К.П  ДЕКАБРЬ '!$AC$79:$HF$79,1,MATCH(AJ$10,'[4]ГРАФИК К.П  ДЕКАБРЬ '!$AC$19:$HF$19,0))","v":"09:00:00"},{"$f":"INDEX('[4]ГРАФИК К.П  ДЕКАБРЬ '!$AC$79:$HF$79,1,MATCH(AK$10,'[4]ГРАФИК К.П  ДЕКАБРЬ '!$AC$19:$HF$19,0))","v":"00:00:00"},{"$f":"COUNTIF($F34:$AK34,\">0\")","v":20},{"$f":"SUM($F$34:$AK$34)","v":7.625},null,{"$f":"'[4]ГРАФИК К.П.СЕНТЯБРЬ 2020  '!HY79","v":79.999999999999986},null,null,null,null,null,null,{"$f":"COUNTIF($F35:$AK35,\"=От\")","v":0},null,null,null,null,null,null,null,null,11]
[null,null,null,null,null,{"$f":"IF('[4]ГРАФИК К.П  ДЕКАБРЬ '!AC77=\"ОТ\",\"ОТ\",IF(F34=0,\"В\",\"Я\"))","v":"В"},{"$f":"IF('[4]ГРАФИК К.П  ДЕКАБРЬ '!AD77=\"ОТ\",\"ОТ\",IF(G34=0,\"В\",\"Я\"))","v":"Я"},{"$f":"IF('[4]ГРАФИК К.П  ДЕКАБРЬ '!AE77=\"ОТ\",\"ОТ\",IF(H34=0,\"В\",\"Я\"))","v":"Я"},{"$f":"IF('[4]ГРАФИК К.П  ДЕКАБРЬ '!AF77=\"ОТ\",\"ОТ\",IF(I34=0,\"В\",\"Я\"))","v":"В"},{"$f":"IF('[4]ГРАФИК К.П  ДЕКАБРЬ '!AG77=\"ОТ\",\"ОТ\",IF(J34=0,\"В\",\"Я\"))","v":"Я"},{"$f":"IF('[4]ГРАФИК К.П  ДЕКАБРЬ '!AH77=\"ОТ\",\"ОТ\",IF(K34=0,\"В\",\"Я\"))","v":"Я"},{"$f":"IF('[4]ГРАФИК К.П  ДЕКАБРЬ '!AI77=\"ОТ\",\"ОТ\",IF(L34=0,\"В\",\"Я\"))","v":"В"},{"$f":"IF('[4]ГРАФИК К.П  ДЕКАБРЬ '!AJ77=\"ОТ\",\"ОТ\",IF(M34=0,\"В\",\"Я\"))","v":"Я"},{"$f":"IF('[4]ГРАФИК К.П  ДЕКАБРЬ '!AK77=\"ОТ\",\"ОТ\",IF(N34=0,\"В\",\"Я\"))","v":"Я"},{"$f":"IF('[4]ГРАФИК К.П  ДЕКАБРЬ '!AL77=\"ОТ\",\"ОТ\",IF(O34=0,\"В\",\"Я\"))","v":"В"},{"$f":"IF('[4]ГРАФИК К.П  ДЕКАБРЬ '!AM77=\"ОТ\",\"ОТ\",IF(P34=0,\"В\",\"Я\"))","v":"Я"},{"$f":"IF('[4]ГРАФИК К.П  ДЕКАБРЬ '!AN77=\"ОТ\",\"ОТ\",IF(Q34=0,\"В\",\"Я\"))","v":"Я"},{"$f":"IF('[4]ГРАФИК К.П  ДЕКАБРЬ '!AO77=\"ОТ\",\"ОТ\",IF(R34=0,\"В\",\"Я\"))","v":"В"},{"$f":"IF('[4]ГРАФИК К.П  ДЕКАБРЬ '!AP77=\"ОТ\",\"ОТ\",IF(S34=0,\"В\",\"Я\"))","v":"Я"},{"$f":"IF('[4]ГРАФИК К.П  ДЕКАБРЬ '!AQ77=\"ОТ\",\"ОТ\",IF(T34=0,\"В\",\"Я\"))","v":"Я"},null,{"$f":"IF('[4]ГРАФИК К.П  ДЕКАБРЬ '!AS77=\"ОТ\",\"ОТ\",IF(V34=0,\"В\",\"Я\"))","v":"В"},{"$f":"IF('[4]ГРАФИК К.П  ДЕКАБРЬ '!AT77=\"ОТ\",\"ОТ\",IF(W34=0,\"В\",\"Я\"))","v":"Я"},{"$f":"IF('[4]ГРАФИК К.П  ДЕКАБРЬ '!AU77=\"ОТ\",\"ОТ\",IF(X34=0,\"В\",\"Я\"))","v":"Я"},{"$f":"IF('[4]ГРАФИК К.П  ДЕКАБРЬ '!AV77=\"ОТ\",\"ОТ\",IF(Y34=0,\"В\",\"Я\"))","v":"В"},{"$f":"IF('[4]ГРАФИК К.П  ДЕКАБРЬ '!AW77=\"ОТ\",\"ОТ\",IF(Z34=0,\"В\",\"Я\"))","v":"Я"},{"$f":"IF('[4]ГРАФИК К.П  ДЕКАБРЬ '!AX77=\"ОТ\",\"ОТ\",IF(AA34=0,\"В\",\"Я\"))","v":"Я"},{"$f":"IF('[4]ГРАФИК К.П  ДЕКАБРЬ '!AY77=\"ОТ\",\"ОТ\",IF(AB34=0,\"В\",\"Я\"))","v":"В"},{"$f":"IF('[4]ГРАФИК К.П  ДЕКАБРЬ '!AZ77=\"ОТ\",\"ОТ\",IF(AC34=0,\"В\",\"Я\"))","v":"Я"},{"$f":"IF('[4]ГРАФИК К.П  ДЕКАБРЬ '!BA77=\"ОТ\",\"ОТ\",IF(AD34=0,\"В\",\"Я\"))","v":"Я"},{"$f":"IF('[4]ГРАФИК К.П  ДЕКАБРЬ '!BB77=\"ОТ\",\"ОТ\",IF(AE34=0,\"В\",\"Я\"))","v":"В"},{"$f":"IF('[4]ГРАФИК К.П  ДЕКАБРЬ '!BC77=\"ОТ\",\"ОТ\",IF(AF34=0,\"В\",\"Я\"))","v":"Я"},{"$f":"IF('[4]ГРАФИК К.П  ДЕКАБРЬ '!BD77=\"ОТ\",\"ОТ\",IF(AG34=0,\"В\",\"Я\"))","v":"Я"},{"$f":"IF('[4]ГРАФИК К.П  ДЕКАБРЬ '!BE77=\"ОТ\",\"ОТ\",IF(AH34=0,\"В\",\"Я\"))","v":"В"},{"$f":"IF('[4]ГРАФИК К.П  ДЕКАБРЬ '!BF77=\"ОТ\",\"ОТ\",IF(AI34=0,\"В\",\"Я\"))","v":"Я"},{"$f":"IF('[4]ГРАФИК К.П  ДЕКАБРЬ '!BG77=\"ОТ\",\"ОТ\",IF(AJ34=0,\"В\",\"Я\"))","v":"Я"},{"$f":"IF('[4]ГРАФИК К.П  ДЕКАБРЬ '!BH77=\"ОТ\",\"ОТ\",IF(AK34=0,\"В\",\"Я\"))","v":"В"}]
[11,null,null,null,null,{"$f":"INDEX('[4]ГРАФИК К.П  ДЕКАБРЬ '!$AC$84:$HF$84,1,MATCH(F$10,'[4]ГРАФИК К.П  ДЕКАБРЬ '!$AC$19:$HF$19,0))","v":0},{"$f":"INDEX('[4]ГРАФИК К.П  ДЕКАБРЬ '!$AC$84:$HF$84,1,MATCH(G$10,'[4]ГРАФИК К.П  ДЕКАБРЬ '!$AC$19:$HF$19,0))","v":4},{"$f":"INDEX('[4]ГРАФИК К.П  ДЕКАБРЬ '!$AC$84:$HF$84,1,MATCH(H$10,'[4]ГРАФИК К.П  ДЕКАБРЬ '!$AC$19:$HF$19,0))","v":0},{"$f":"INDEX('[4]ГРАФИК К.П  ДЕКАБРЬ '!$AC$84:$HF$84,1,MATCH(I$10,'[4]ГРАФИК К.П  ДЕКАБРЬ '!$AC$19:$HF$19,0))","v":0},{"$f":"INDEX('[4]ГРАФИК К.П  ДЕКАБРЬ '!$AC$84:$HF$84,1,MATCH(J$10,'[4]ГРАФИК К.П  ДЕКАБРЬ '!$AC$19:$HF$19,0))","v":4},{"$f":"INDEX('[4]ГРАФИК К.П  ДЕКАБРЬ '!$AC$84:$HF$84,1,MATCH(K$10,'[4]ГРАФИК К.П  ДЕКАБРЬ '!$AC$19:$HF$19,0))","v":0},{"$f":"INDEX('[4]ГРАФИК К.П  ДЕКАБРЬ '!$AC$84:$HF$84,1,MATCH(L$10,'[4]ГРАФИК К.П  ДЕКАБРЬ '!$AC$19:$HF$19,0))","v":0},{"$f":"INDEX('[4]ГРАФИК К.П  ДЕКАБРЬ '!$AC$84:$HF$84,1,MATCH(M$10,'[4]ГРАФИК К.П  ДЕКАБРЬ '!$AC$19:$HF$19,0))","v":4},{"$f":"INDEX('[4]ГРАФИК К.П  ДЕКАБРЬ '!$AC$84:$HF$84,1,MATCH(N$10,'[4]ГРАФИК К.П  ДЕКАБРЬ '!$AC$19:$HF$19,0))","v":0},{"$f":"INDEX('[4]ГРАФИК К.П  ДЕКАБРЬ '!$AC$84:$HF$84,1,MATCH(O$10,'[4]ГРАФИК К.П  ДЕКАБРЬ '!$AC$19:$HF$19,0))","v":0},{"$f":"INDEX('[4]ГРАФИК К.П  ДЕКАБРЬ '!$AC$84:$HF$84,1,MATCH(P$10,'[4]ГРАФИК К.П  ДЕКАБРЬ '!$AC$19:$HF$19,0))","v":4},{"$f":"INDEX('[4]ГРАФИК К.П  ДЕКАБРЬ '!$AC$84:$HF$84,1,MATCH(Q$10,'[4]ГРАФИК К.П  ДЕКАБРЬ '!$AC$19:$HF$19,0))","v":0},{"$f":"INDEX('[4]ГРАФИК К.П  ДЕКАБРЬ '!$AC$84:$HF$84,1,MATCH(R$10,'[4]ГРАФИК К.П  ДЕКАБРЬ '!$AC$19:$HF$19,0))","v":0},{"$f":"INDEX('[4]ГРАФИК К.П  ДЕКАБРЬ '!$AC$84:$HF$84,1,MATCH(S$10,'[4]ГРАФИК К.П  ДЕКАБРЬ '!$AC$19:$HF$19,0))","v":4},{"$f":"INDEX('[4]ГРАФИК К.П  ДЕКАБРЬ '!$AC$84:$HF$84,1,MATCH(T$10,'[4]ГРАФИК К.П  ДЕКАБРЬ '!$AC$19:$HF$19,0))","v":0},null,{"$f":"INDEX('[4]ГРАФИК К.П  ДЕКАБРЬ '!$AC$84:$HF$84,1,MATCH(V$10,'[4]ГРАФИК К.П  ДЕКАБРЬ '!$AC$19:$HF$19,0))","v":0},{"$f":"INDEX('[4]ГРАФИК К.П  ДЕКАБРЬ '!$AC$84:$HF$84,1,MATCH(W$10,'[4]ГРАФИК К.П  ДЕКАБРЬ '!$AC$19:$HF$19,0))","v":4.45},{"$f":"INDEX('[4]ГРАФИК К.П  ДЕКАБРЬ '!$AC$84:$HF$84,1,MATCH(X$10,'[4]ГРАФИК К.П  ДЕКАБРЬ '!$AC$19:$HF$19,0))","v":0},{"$f":"INDEX('[4]ГРАФИК К.П  ДЕКАБРЬ '!$AC$84:$HF$84,1,MATCH(Y$10,'[4]ГРАФИК К.П  ДЕКАБРЬ '!$AC$19:$HF$19,0))","v":0},{"$f":"INDEX('[4]ГРАФИК К.П  ДЕКАБРЬ '!$AC$84:$HF$84,1,MATCH(Z$10,'[4]ГРАФИК К.П  ДЕКАБРЬ '!$AC$19:$HF$19,0))","v":5},{"$f":"INDEX('[4]ГРАФИК К.П  ДЕКАБРЬ '!$AC$84:$HF$84,1,MATCH(AA$10,'[4]ГРАФИК К.П  ДЕКАБРЬ '!$AC$19:$HF$19,0))","v":0},{"$f":"INDEX('[4]ГРАФИК К.П  ДЕКАБРЬ '!$AC$84:$HF$84,1,MATCH(AB$10,'[4]ГРАФИК К.П  ДЕКАБРЬ '!$AC$19:$HF$19,0))","v":0},{"$f":"INDEX('[4]ГРАФИК К.П  ДЕКАБРЬ '!$AC$84:$HF$84,1,MATCH(AC$10,'[4]ГРАФИК К.П  ДЕКАБРЬ '!$AC$19:$HF$19,0))","v":5},{"$f":"INDEX('[4]ГРАФИК К.П  ДЕКАБРЬ '!$AC$84:$HF$84,1,MATCH(AD$10,'[4]ГРАФИК К.П  ДЕКАБРЬ '!$AC$19:$HF$19,0))","v":0},{"$f":"INDEX('[4]ГРАФИК К.П  ДЕКАБРЬ '!$AC$84:$HF$84,1,MATCH(AE$10,'[4]ГРАФИК К.П  ДЕКАБРЬ '!$AC$19:$HF$19,0))","v":0},{"$f":"INDEX('[4]ГРАФИК К.П  ДЕКАБРЬ '!$AC$84:$HF$84,1,MATCH(AF$10,'[4]ГРАФИК К.П  ДЕКАБРЬ '!$AC$19:$HF$19,0))","v":5},{"$f":"INDEX('[4]ГРАФИК К.П  ДЕКАБРЬ '!$AC$84:$HF$84,1,MATCH(AG$10,'[4]ГРАФИК К.П  ДЕКАБРЬ '!$AC$19:$HF$19,0))","v":0},{"$f":"INDEX('[4]ГРАФИК К.П  ДЕКАБРЬ '!$AC$84:$HF$84,1,MATCH(AH$10,'[4]ГРАФИК К.П  ДЕКАБРЬ '!$AC$19:$HF$19,0))","v":0},{"$f":"INDEX('[4]ГРАФИК К.П  ДЕКАБРЬ '!$AC$84:$HF$84,1,MATCH(AI$10,'[4]ГРАФИК К.П  ДЕКАБРЬ '!$AC$19:$HF$19,0))","v":5},{"$f":"INDEX('[4]ГРАФИК К.П  ДЕКАБРЬ '!$AC$84:$HF$84,1,MATCH(AJ$10,'[4]ГРАФИК К.П  ДЕКАБРЬ '!$AC$19:$HF$19,0))","v":0},{"$f":"INDEX('[4]ГРАФИК К.П  ДЕКАБРЬ '!$AC$84:$HF$84,1,MATCH(AK$10,'[4]ГРАФИК К.П  ДЕКАБРЬ '!$AC$19:$HF$19,0))","v":0},10,{"$f":"SUM($F$36:$AK$36)","v":44.45}]
[null,null,null,null,null,{"$f":"IF('[4]ГРАФИК К.П  ДЕКАБРЬ '!AC84=\"ОТ\",\"ОТ\",IF(F36=0,\"В\",\"Я\"))","v":"В"},{"$f":"IF('[4]ГРАФИК К.П  ДЕКАБРЬ '!AD84=\"ОТ\",\"ОТ\",IF(G36=0,\"В\",\"Я\"))","v":"Я"},{"$f":"IF('[4]ГРАФИК К.П  ДЕКАБРЬ '!AE84=\"ОТ\",\"ОТ\",IF(H36=0,\"В\",\"Я\"))","v":"В"},{"$f":"IF('[4]ГРАФИК К.П  ДЕКАБРЬ '!AF84=\"ОТ\",\"ОТ\",IF(I36=0,\"В\",\"Я\"))","v":"В"},{"$f":"IF('[4]ГРАФИК К.П  ДЕКАБРЬ '!AG84=\"ОТ\",\"ОТ\",IF(J36=0,\"В\",\"Я\"))","v":"Я"},{"$f":"IF('[4]ГРАФИК К.П  ДЕКАБРЬ '!AH84=\"ОТ\",\"ОТ\",IF(K36=0,\"В\",\"Я\"))","v":"В"},{"$f":"IF('[4]ГРАФИК К.П  ДЕКАБРЬ '!AI84=\"ОТ\",\"ОТ\",IF(L36=0,\"В\",\"Я\"))","v":"В"},{"$f":"IF('[4]ГРАФИК К.П  ДЕКАБРЬ '!AJ84=\"ОТ\",\"ОТ\",IF(M36=0,\"В\",\"Я\"))","v":"Я"},{"$f":"IF('[4]ГРАФИК К.П  ДЕКАБРЬ '!AK84=\"ОТ\",\"ОТ\",IF(N36=0,\"В\",\"Я\"))","v":"В"},{"$f":"IF('[4]ГРАФИК К.П  ДЕКАБРЬ '!AL84=\"ОТ\",\"ОТ\",IF(O36=0,\"В\",\"Я\"))","v":"В"},{"$f":"IF('[4]ГРАФИК К.П  ДЕКАБРЬ '!AM84=\"ОТ\",\"ОТ\",IF(P36=0,\"В\",\"Я\"))","v":"Я"},{"$f":"IF('[4]ГРАФИК К.П  ДЕКАБРЬ '!AN84=\"ОТ\",\"ОТ\",IF(Q36=0,\"В\",\"Я\"))","v":"В"},{"$f":"IF('[4]ГРАФИК К.П  ДЕКАБРЬ '!AO84=\"ОТ\",\"ОТ\",IF(R36=0,\"В\",\"Я\"))","v":"В"},{"$f":"IF('[4]ГРАФИК К.П  ДЕКАБРЬ '!AP84=\"ОТ\",\"ОТ\",IF(S36=0,\"В\",\"Я\"))","v":"Я"},{"$f":"IF('[4]ГРАФИК К.П  ДЕКАБРЬ '!AQ84=\"ОТ\",\"ОТ\",IF(T36=0,\"В\",\"Я\"))","v":"В"},null,{"$f":"IF('[4]ГРАФИК К.П  ДЕКАБРЬ '!AS84=\"ОТ\",\"ОТ\",IF(V36=0,\"В\",\"Я\"))","v":"В"},{"$f":"IF('[4]ГРАФИК К.П  ДЕКАБРЬ '!AT84=\"ОТ\",\"ОТ\",IF(W36=0,\"В\",\"Я\"))","v":"Я"},{"$f":"IF('[4]ГРАФИК К.П  ДЕКАБРЬ '!AU84=\"ОТ\",\"ОТ\",IF(X36=0,\"В\",\"Я\"))","v":"В"},{"$f":"IF('[4]ГРАФИК К.П  ДЕКАБРЬ '!AV84=\"ОТ\",\"ОТ\",IF(Y36=0,\"В\",\"Я\"))","v":"В"},{"$f":"IF('[4]ГРАФИК К.П  ДЕКАБРЬ '!AW84=\"ОТ\",\"ОТ\",IF(Z36=0,\"В\",\"Я\"))","v":"Я"},{"$f":"IF('[4]ГРАФИК К.П  ДЕКАБРЬ '!AX84=\"ОТ\",\"ОТ\",IF(AA36=0,\"В\",\"Я\"))","v":"В"},{"$f":"IF('[4]ГРАФИК К.П  ДЕКАБРЬ '!AY84=\"ОТ\",\"ОТ\",IF(AB36=0,\"В\",\"Я\"))","v":"В"},{"$f":"IF('[4]ГРАФИК К.П  ДЕКАБРЬ '!AZ84=\"ОТ\",\"ОТ\",IF(AC36=0,\"В\",\"Я\"))","v":"Я"},{"$f":"IF('[4]ГРАФИК К.П  ДЕКАБРЬ '!BA84=\"ОТ\",\"ОТ\",IF(AD36=0,\"В\",\"Я\"))","v":"В"},{"$f":"IF('[4]ГРАФИК К.П  ДЕКАБРЬ '!BB84=\"ОТ\",\"ОТ\",IF(AE36=0,\"В\",\"Я\"))","v":"В"},{"$f":"IF('[4]ГРАФИК К.П  ДЕКАБРЬ '!BC84=\"ОТ\",\"ОТ\",IF(AF36=0,\"В\",\"Я\"))","v":"Я"},{"$f":"IF('[4]ГРАФИК К.П  ДЕКАБРЬ '!BD84=\"ОТ\",\"ОТ\",IF(AG36=0,\"В\",\"Я\"))","v":"В"},{"$f":"IF('[4]ГРАФИК К.П  ДЕКАБРЬ '!BE84=\"ОТ\",\"ОТ\",IF(AH36=0,\"В\",\"Я\"))","v":"В"},{"$f":"IF('[4]ГРАФИК К.П  ДЕКАБРЬ '!BF84=\"ОТ\",\"ОТ\",IF(AI36=0,\"В\",\"Я\"))","v":"Я"},{"$f":"IF('[4]ГРАФИК К.П  ДЕКАБРЬ '!BG84=\"ОТ\",\"ОТ\",IF(AJ36=0,\"В\",\"Я\"))","v":"В"},{"$f":"IF('[4]ГРАФИК К.П  ДЕКАБРЬ '!BH84=\"ОТ\",\"ОТ\",IF(AK36=0,\"В\",\"Я\"))","v":"В"}]
[12,"101",null,null,null,{"$f":"INDEX('[4]ГРАФИК К.П  ДЕКАБРЬ '!$AC$92:$HF$92,1,MATCH(F$10,'[4]ГРАФИК К.П  ДЕКАБРЬ '!$AC$19:$HF$19,0))","v":"00:00:00"},{"$f":"INDEX('[4]ГРАФИК К.П  ДЕКАБРЬ '!$AC$92:$HF$92,1,MATCH(G$10,'[4]ГРАФИК К.П  ДЕКАБРЬ '!$AC$19:$HF$19,0))","v":"00:00:00"},{"$f":"INDEX('[4]ГРАФИК К.П  ДЕКАБРЬ '!$AC$92:$HF$92,1,MATCH(H$10,'[4]ГРАФИК К.П  ДЕКАБРЬ '!$AC$19:$HF$19,0))","v":"00:00:00"},{"$f":"INDEX('[4]ГРАФИК К.П  ДЕКАБРЬ '!$AC$92:$HF$92,1,MATCH(I$10,'[4]ГРАФИК К.П  ДЕКАБРЬ '!$AC$19:$HF$19,0))","v":"00:00:00"},{"$f":"INDEX('[4]ГРАФИК К.П  ДЕКАБРЬ '!$AC$92:$HF$92,1,MATCH(J$10,'[4]ГРАФИК К.П  ДЕКАБРЬ '!$AC$19:$HF$19,0))","v":"00:00:00"},{"$f":"INDEX('[4]ГРАФИК К.П  ДЕКАБРЬ '!$AC$92:$HF$92,1,MATCH(K$10,'[4]ГРАФИК К.П  ДЕКАБРЬ '!$AC$19:$HF$19,0))","v":"00:00:00"},{"$f":"INDEX('[4]ГРАФИК К.П  ДЕКАБРЬ '!$AC$92:$HF$92,1,MATCH(L$10,'[4]ГРАФИК К.П  ДЕКАБРЬ '!$AC$19:$HF$19,0))","v":"00:00:00"},{"$f":"INDEX('[4]ГРАФИК К.П  ДЕКАБРЬ '!$AC$92:$HF$92,1,MATCH(M$10,'[4]ГРАФИК К.П  ДЕКАБРЬ '!$AC$19:$HF$19,0))","v":"00:00:00"},{"$f":"INDEX('[4]ГРАФИК К.П  ДЕКАБРЬ '!$AC$92:$HF$92,1,MATCH(N$10,'[4]ГРАФИК К.П  ДЕКАБРЬ '!$AC$19:$HF$19,0))","v":"00:00:00"},{"$f":"INDEX('[4]ГРАФИК К.П  ДЕКАБРЬ '!$AC$92:$HF$92,1,MATCH(O$10,'[4]ГРАФИК К.П  ДЕКАБРЬ '!$AC$19:$HF$19,0))","v":"00:00:00"},{"$f":"INDEX('[4]ГРАФИК К.П  ДЕКАБРЬ '!$AC$92:$HF$92,1,MATCH(P$10,'[4]ГРАФИК К.П  ДЕКАБРЬ '!$AC$19:$HF$19,0))","v":"00:00:00"},{"$f":"INDEX('[4]ГРАФИК К.П  ДЕКАБРЬ '!$AC$92:$HF$92,1,MATCH(Q$10,'[4]ГРАФИК К.П  ДЕКАБРЬ '!$AC$19:$HF$19,0))","v":"00:00:00"},{"$f":"INDEX('[4]ГРАФИК К.П  ДЕКАБРЬ '!$AC$92:$HF$92,1,MATCH(R$10,'[4]ГРАФИК К.П  ДЕКАБРЬ '!$AC$19:$HF$19,0))","v":"00:00:00"},{"$f":"INDEX('[4]ГРАФИК К.П  ДЕКАБРЬ '!$AC$92:$HF$92,1,MATCH(S$10,'[4]ГРАФИК К.П  ДЕКАБРЬ '!$AC$19:$HF$19,0))","v":"02:00:00"},{"$f":"INDEX('[4]ГРАФИК К.П  ДЕКАБРЬ '!$AC$92:$HF$92,1,MATCH(T$10,'[4]ГРАФИК К.П  ДЕКАБРЬ '!$AC$19:$HF$19,0))","v":"07:30:00"},null,{"$f":"INDEX('[4]ГРАФИК К.П  ДЕКАБРЬ '!$AC$92:$HF$92,1,MATCH(V$10,'[4]ГРАФИК К.П  ДЕКАБРЬ '!$AC$19:$HF$19,0))","v":"00:00:00"},{"$f":"INDEX('[4]ГРАФИК К.П  ДЕКАБРЬ '!$AC$92:$HF$92,1,MATCH(W$10,'[4]ГРАФИК К.П  ДЕКАБРЬ '!$AC$19:$HF$19,0))","v":"02:00:00"},{"$f":"INDEX('[4]ГРАФИК К.П  ДЕКАБРЬ '!$AC$92:$HF$92,1,MATCH(X$10,'[4]ГРАФИК К.П  ДЕКАБРЬ '!$AC$19:$HF$19,0))","v":"07:30:00"},{"$f":"INDEX('[4]ГРАФИК К.П  ДЕКАБРЬ '!$AC$92:$HF$92,1,MATCH(Y$10,'[4]ГРАФИК К.П  ДЕКАБРЬ '!$AC$19:$HF$19,0))","v":"00:00:00"},{"$f":"INDEX('[4]ГРАФИК К.П  ДЕКАБРЬ '!$AC$92:$HF$92,1,MATCH(Z$10,'[4]ГРАФИК К.П  ДЕКАБРЬ '!$AC$19:$HF$19,0))","v":"01:00:00"},{"$f":"INDEX('[4]ГРАФИК К.П  ДЕКАБРЬ '!$AC$92:$HF$92,1,MATCH(AA$10,'[4]ГРАФИК К.П  ДЕКАБРЬ '!$AC$19:$HF$19,0))","v":"07:30:00"},{"$f":"INDEX('[4]ГРАФИК К.П  ДЕКАБРЬ '!$AC$92:$HF$92,1,MATCH(AB$10,'[4]ГРАФИК К.П  ДЕКАБРЬ '!$AC$19:$HF$19,0))","v":"00:00:00"},{"$f":"INDEX('[4]ГРАФИК К.П  ДЕКАБРЬ '!$AC$92:$HF$92,1,MATCH(AC$10,'[4]ГРАФИК К.П  ДЕКАБРЬ '!$AC$19:$HF$19,0))","v":"01:00:00"},{"$f":"INDEX('[4]ГРАФИК К.П  ДЕКАБРЬ '!$AC$92:$HF$92,1,MATCH(AD$10,'[4]ГРАФИК К.П  ДЕКАБРЬ '!$AC$19:$HF$19,0))","v":"07:30:00"},{"$f":"INDEX('[4]ГРАФИК К.П  ДЕКАБРЬ '!$AC$92:$HF$92,1,MATCH(AE$10,'[4]ГРАФИК К.П  ДЕКАБРЬ '!$AC$19:$HF$19,0))","v":"00:00:00"},{"$f":"INDEX('[4]ГРАФИК К.П  ДЕКАБРЬ '!$AC$92:$HF$92,1,MATCH(AF$10,'[4]ГРАФИК К.П  ДЕКАБРЬ '!$AC$19:$HF$19,0))","v":"01:00:00"},{"$f":"INDEX('[4]ГРАФИК К.П  ДЕКАБРЬ '!$AC$92:$HF$92,1,MATCH(AG$10,'[4]ГРАФИК К.П  ДЕКАБРЬ '!$AC$19:$HF$19,0))","v":"07:30:00"},{"$f":"INDEX('[4]ГРАФИК К.П  ДЕКАБРЬ '!$AC$92:$HF$92,1,MATCH(AH$10,'[4]ГРАФИК К.П  ДЕКАБРЬ '!$AC$19:$HF$19,0))","v":"00:00:00"},{"$f":"INDEX('[4]ГРАФИК К.П  ДЕКАБРЬ '!$AC$92:$HF$92,1,MATCH(AI$10,'[4]ГРАФИК К.П  ДЕКАБРЬ '!$AC$19:$HF$19,0))","v":"01:30:00"},{"$f":"INDEX('[4]ГРАФИК К.П  ДЕКАБРЬ '!$AC$92:$HF$92,1,MATCH(AJ$10,'[4]ГРАФИК К.П  ДЕКАБРЬ '!$AC$19:$HF$19,0))","v":"07:30:00"},{"$f":"INDEX('[4]ГРАФИК К.П  ДЕКАБРЬ '!$AC$92:$HF$92,1,MATCH(AK$10,'[4]ГРАФИК К.П  ДЕКАБРЬ '!$AC$19:$HF$19,0))","v":"00:00:00"},{"$f":"COUNTIF($F38:$AK38,\">0\")","v":12},{"$f":"SUM($F$38:$AK$38)","v":2.2291666666666665},null,{"$f":"'[4]ГРАФИК К.П.СЕНТЯБРЬ 2020  '!HY91","v":72.999999999999986},{"$f":"COUNTIF($F38:$AK38,\"=12\")+COUNTIF($F39:$AK39,\"=8\")*2","v":0},{"$f":"SUMIF($F$12:$AK$12,\"ЧП\",$F38:$AK38)","v":0},{"$f":"SUMPRODUCT(IF(ISNUMBER(F38:AK38),(F38:AK38>8)*(F38:AK38-8),0))","v":0},{"$f":"SUMIF($F$39:$AK$39,\"в\",$F38:$AK38)","v":0},{"$f":"IF($AN38>$BF$7,$AN38-$BF$7,\"–\")","v":"–"},null,{"$f":"COUNTIF($F38:$AK38,\"=От\")","v":0},{"$f":"COUNTIF($F38:$AK38,\"=Б\")","v":0},{"$f":"COUNTIF($F38:$AK38,\"=А\")","v":0},{"$f":"COUNTIF($F38:$AK38,\"=Ор\")","v":0},{"$f":"COUNTIF($F38:$AK38,\"=У\")","v":0},{"$f":"COUNTIF($F38:$AK38,\"=Ч\")","v":0},{"$f":"COUNTIF($F38:$AK38,\"=Пр\")","v":0},{"$f":"COUNTIF($F38:$AK38,\"=Ож\")","v":0},{"$f":"COUNTIF($F38:$AK38,\"=К\")","v":0},31]
[null,null,null,null,null,{"$f":"IF('[4]ГРАФИК К.П  ДЕКАБРЬ '!AC90=\"ОТ\",\"ОТ\",IF(F38=0,\"В\",\"Я\"))","v":"ОТ"},{"$f":"IF('[4]ГРАФИК К.П  ДЕКАБРЬ '!AD90=\"ОТ\",\"ОТ\",IF(G38=0,\"В\",\"Я\"))","v":"В"},{"$f":"IF('[4]ГРАФИК К.П  ДЕКАБРЬ '!AE90=\"ОТ\",\"ОТ\",IF(H38=0,\"В\",\"Я\"))","v":"В"},{"$f":"IF('[4]ГРАФИК К.П  ДЕКАБРЬ '!AF90=\"ОТ\",\"ОТ\",IF(I38=0,\"В\",\"Я\"))","v":"В"},{"$f":"IF('[4]ГРАФИК К.П  ДЕКАБРЬ '!AG90=\"ОТ\",\"ОТ\",IF(J38=0,\"В\",\"Я\"))","v":"В"},{"$f":"IF('[4]ГРАФИК К.П  ДЕКАБРЬ '!AH90=\"ОТ\",\"ОТ\",IF(K38=0,\"В\",\"Я\"))","v":"В"},{"$f":"IF('[4]ГРАФИК К.П  ДЕКАБРЬ '!AI90=\"ОТ\",\"ОТ\",IF(L38=0,\"В\",\"Я\"))","v":"ОТ"},{"$f":"IF('[4]ГРАФИК К.П  ДЕКАБРЬ '!AJ90=\"ОТ\",\"ОТ\",IF(M38=0,\"В\",\"Я\"))","v":"В"},{"$f":"IF('[4]ГРАФИК К.П  ДЕКАБРЬ '!AK90=\"ОТ\",\"ОТ\",IF(N38=0,\"В\",\"Я\"))","v":"В"},{"$f":"IF('[4]ГРАФИК К.П  ДЕКАБРЬ '!AL90=\"ОТ\",\"ОТ\",IF(O38=0,\"В\",\"Я\"))","v":"В"},{"$f":"IF('[4]ГРАФИК К.П  ДЕКАБРЬ '!AM90=\"ОТ\",\"ОТ\",IF(P38=0,\"В\",\"Я\"))","v":"В"},{"$f":"IF('[4]ГРАФИК К.П  ДЕКАБРЬ '!AN90=\"ОТ\",\"ОТ\",IF(Q38=0,\"В\",\"Я\"))","v":"В"},{"$f":"IF('[4]ГРАФИК К.П  ДЕКАБРЬ '!AO90=\"ОТ\",\"ОТ\",IF(R38=0,\"В\",\"Я\"))","v":"ОТ"},{"$f":"IF('[4]ГРАФИК К.П  ДЕКАБРЬ '!AP90=\"ОТ\",\"ОТ\",IF(S38=0,\"В\",\"Я\"))","v":"Я"},{"$f":"IF('[4]ГРАФИК К.П  ДЕКАБРЬ '!AQ90=\"ОТ\",\"ОТ\",IF(T38=0,\"В\",\"Я\"))","v":"Я"},null,{"$f":"IF('[4]ГРАФИК К.П  ДЕКАБРЬ '!AS90=\"ОТ\",\"ОТ\",IF(V38=0,\"В\",\"Я\"))","v":"В"},{"$f":"IF('[4]ГРАФИК К.П  ДЕКАБРЬ '!AT90=\"ОТ\",\"ОТ\",IF(W38=0,\"В\",\"Я\"))","v":"Я"},{"$f":"IF('[4]ГРАФИК К.П  ДЕКАБРЬ '!AU90=\"ОТ\",\"ОТ\",IF(X38=0,\"В\",\"Я\"))","v":"ОТ"},{"$f":"IF('[4]ГРАФИК К.П  ДЕКАБРЬ '!AV90=\"ОТ\",\"ОТ\",IF(Y38=0,\"В\",\"Я\"))","v":"В"},{"$f":"IF('[4]ГРАФИК К.П  ДЕКАБРЬ '!AW90=\"ОТ\",\"ОТ\",IF(Z38=0,\"В\",\"Я\"))","v":"Я"},{"$f":"IF('[4]ГРАФИК К.П  ДЕКАБРЬ '!AX90=\"ОТ\",\"ОТ\",IF(AA38=0,\"В\",\"Я\"))","v":"Я"},{"$f":"IF('[4]ГРАФИК К.П  ДЕКАБРЬ '!AY90=\"ОТ\",\"ОТ\",IF(AB38=0,\"В\",\"Я\"))","v":"В"},{"$f":"IF('[4]ГРАФИК К.П  ДЕКАБРЬ '!AZ90=\"ОТ\",\"ОТ\",IF(AC38=0,\"В\",\"Я\"))","v":"Я"},{"$f":"IF('[4]ГРАФИК К.П  ДЕКАБРЬ '!BA90=\"ОТ\",\"ОТ\",IF(AD38=0,\"В\",\"Я\"))","v":"ОТ"},{"$f":"IF('[4]ГРАФИК К.П  ДЕКАБРЬ '!BB90=\"ОТ\",\"ОТ\",IF(AE38=0,\"В\",\"Я\"))","v":"В"},{"$f":"IF('[4]ГРАФИК К.П  ДЕКАБРЬ '!BC90=\"ОТ\",\"ОТ\",IF(AF38=0,\"В\",\"Я\"))","v":"Я"},{"$f":"IF('[4]ГРАФИК К.П  ДЕКАБРЬ '!BD90=\"ОТ\",\"ОТ\",IF(AG38=0,\"В\",\"Я\"))","v":"Я"},{"$f":"IF('[4]ГРАФИК К.П  ДЕКАБРЬ '!BE90=\"ОТ\",\"ОТ\",IF(AH38=0,\"В\",\"Я\"))","v":"В"},{"$f":"IF('[4]ГРАФИК К.П  ДЕКАБРЬ '!BF90=\"ОТ\",\"ОТ\",IF(AI38=0,\"В\",\"Я\"))","v":"Я"},{"$f":"IF('[4]ГРАФИК К.П  ДЕКАБРЬ '!BG90=\"ОТ\",\"ОТ\",IF(AJ38=0,\"В\",\"Я\"))","v":"ОТ"},{"$f":"IF('[4]ГРАФИК К.П  ДЕКАБРЬ '!BH90=\"ОТ\",\"ОТ\",IF(AK38=0,\"В\",\"Я\"))","v":"В"}]
[null,null,null,null,null,{"$f":"COUNTIF(F$16:F$31,\"Я\")+COUNTIF(F$34:F$39,\"Я\")","v":3},{"$f":"COUNTIF(G$16:G$31,\"Я\")+COUNTIF(G$34:G$39,\"Я\")","v":6},{"$f":"COUNTIF(H$16:H$31,\"Я\")+COUNTIF(H$34:H$39,\"Я\")","v":6},5,7,6,4,5,5,5,7,6,5,7,5,null,4,8,6,5,8,6,3,7,6,5,8,7,4,7,4,5,{"$f":"SUM(F40:AK40)","v":175}]
[null,null,null,null,null,{"$f":"SUM(F16,F18,F20,F22,F24,F26,F28,F30)+SUM(F34,F37,F38)","v":1.125},{"$f":"SUM(G16,G18,G20,G22,G24,G26,G28,G30)+SUM(G34,G37,G38)","v":2.0833333333333335},2.25,1.9583333333333335,2.4166666666666665,2.375,1.4166666666666665,1.625,1.958333333333333,1.9583333333333335,2.208333333333333,2.4166666666666665,1.9583333333333335,1.9583333333333335,1.8125,null,{"$f":"SUM(V16,V18,V20,V22,V24,V26,V28,V30)+SUM(V34,V37,V38)","v":1.625},{"$f":"SUM(W16,W18,W20,W22,W24,W26,W28,W30)+SUM(W34,W37,W38)","v":2.2916666666666665},2.6041666666666665,1.9583333333333335,2.458333333333333,2.1041666666666665,1.2083333333333335,1.958333333333333,2.645833333333333,2,2.4999999999999996,2.6875,1.6666666666666667,1.9791666666666667,2.0208333333333335,2,{"$f":"SUM(F41:AK41)","v":63.229166666666664}]
[null,null,null,"2020-12-01"]
[null,null,null,2020]
[null,null,null,12]
[null,null,null,1,2,3,4,5,6,7,8,9,10,11,12,13,14,15,16,17,18,19,20,21,22,23,24,25,26,27,28,29,30,31]
[]
[null,null,null,null,null,null,null,null,null,null,null,null,null,null,null,null,null,null,null,null,null,null,null,null,null,null,null,null,null,null,null,null,null,null,null,null,null,null,"2020-01-01"]
[null,null,null,null,null,null,null,null,null,null,null,null,null,null,null,null,null,null,null,null,null,null,null,null,null,null,null,null,null,null,null,null,null,null,null,null,null,null,"2020-01-02"]
[null,null,null,null,null,null,null,null,null,null,null,null,null,null,null,null,null,null,null,null,null,null,null,null,null,null,null,null,null,null,null,null,null,null,null,null,null,null,"2020-01-03"]
[null,null,null,null,null,null,null,null,"помогите пожалуйста сделать так, чтобы формула при протягивании не выдавала Н/Д",null,null,null,null,null,null,null,null,null,null,null,null,null,null,null,null,null,null,null,null,null,null,null,null,null,null,null,null,null,"2020-01-04"]
[null,null,null,null,null,null,null,null,null,null,null,null,null,null,null,null,null,null,null,null,null,null,null,null,null,null,null,null,null,null,null,null,null,null,null,null,null,null,"2020-01-05"]
[null,null,null,null,null,null,null,null,null,null,null,null,null,null,null,null,null,null,null,null,null,null,null,null,null,null,null,null,null,null,null,null,null,null,null,null,null,null,"2020-01-06"]
[null,null,null,null,null,null,null,null,null,null,null,null,null,null,null,null,null,null,null,null,null,null,null,null,null,null,null,null,null,null,null,null,null,null,null,null,null,null,"2020-01-07"]
[null,null,null,null,null,null,null,null,null,null,null,null,null,null,null,null,null,null,null,null,null,null,null,null,null,null,null,null,null,null,null,null,null,null,null,null,null,null,"2020-01-08"]
[null,null,null,null,null,null,null,null,"ячейки должны быть пустыми при протягивании формулы",null,null,null,null,null,null,null,null,null,null,null,null,null,null,null,null,null,null,null,null,null,null,null,null,null,null,null,null,null,"2020-02-23"]
[null,null,null,null,null,null,null,null,null,null,null,null,null,null,null,null,null,null,null,null,null,null,null,null,null,null,null,null,null,null,null,null,null,null,null,null,null,null,"2020-03-08"]
[null,null,null,null,null,null,null,null,null,null,null,null,null,null,null,null,null,null,null,null,null,null,null,null,null,null,null,null,null,null,null,null,null,null,null,null,null,null,"2020-05-01"]
[null,null,null,null,null,null,null,null,null,null,null,null,null,null,null,null,null,null,null,null,null,null,null,null,null,null,null,null,null,null,null,null,null,null,null,null,null,null,"2020-06-12"]
[]
[null,null,null,null,null,null,null,null,null,null,null,null,null,null,null,null,null,null,null,null,null,null,null,null,null,null,null,null,null,null,null,null,null,null,null,null,null,null,"2020-05-09"]
[]
[]
[null,null,null,null,null,null,null,null,null,null,null,null,null,null,null,null,null,null,null,null,null,null,null,null,null,null,null,null,null,null,null,null,null,null,null,null,null,null,"2020-11-04"]